{"text_format":"1","workbook":"xlsx","n_sheets":1,"sheets":["WellOps"],"not_rendered":{"charts":0,"images":2,"macros":1,"external_links":0,"defined_names":2,"comments":1,"pivot_tables":0},"unopened":[],"bounds":{"document_bytes":16777216,"sheet_cells":100000,"rows_first":2000,"rows_last":500,"rows_between":2000,"halvings":0,"cell_chars":16384,"cell_head_chars":4096},"cells_cut":0,"cells_raw":0,"read":"row_number_cap","date_system":"1904"}

{"sheet":"WellOps","index":0,"n_rows":1048576,"n_cols":16377,"rows_kept":4500,"cut":true,"hidden":false,"merged":[[226,6,226,7],[225,6,225,7],[224,6,224,7],[223,6,223,7],[222,6,222,7],[220,8,221,9],[229,8,229,9],[228,8,228,9],[227,8,227,9],[226,8,226,9],[225,8,225,9],[224,8,224,9],[223,8,223,9],[222,8,222,9],[1048575,16376,1048575,16383],[229,10,229,11],[220,4,221,5],[229,4,229,5],[228,4,228,5],[227,4,227,5],[226,4,226,5],[225,4,225,5],[224,4,224,5],[223,4,223,5],[222,4,222,5],[220,10,220,12],[228,10,228,11],[227,10,227,11],[226,10,226,11],[225,10,225,11],[224,10,224,11],[223,10,223,11],[222,10,222,11],[221,10,221,11],[220,6,221,7],[229,6,229,7],[228,6,228,7],[227,6,227,7],[14,4,14,5],[14,7,14,8],[14,9,14,12],[170,4,170,5],[169,4,169,5],[168,4,168,5],[167,4,167,5],[166,4,166,5],[165,4,165,5],[164,4,164,5],[163,4,163,5],[162,4,162,5],[170,6,170,9],[169,6,169,9],[168,6,168,9],[3,2,3,12],[8,2,8,3],[10,2,10,3],[8,4,8,7],[11,2,11,3],[15,4,15,5],[19,9,19,12],[18,9,18,12],[17,9,17,12],[16,9,16,12],[18,7,18,8],[15,7,15,8],[15,9,15,12],[19,7,19,8],[16,4,16,5],[19,4,19,5],[18,4,18,5],[17,4,17,5],[17,7,17,8],[16,7,16,8],[10,4,10,8],[11,4,11,5],[11,7,11,8],[11,10,11,12],[1,20,1,26],[2,20,2,26],[527,6,527,8],[527,2,527,3],[526,2,526,3],[527,11,527,12],[46,2,46,12],[47,2,47,4],[47,8,47,11],[381,3,381,4],[22,4,22,5],[47,5,47,6],[30,2,30,5],[30,6,30,8],[20,9,20,12],[21,7,21,8],[26,8,26,10],[8,8,8,11],[36,2,36,4],[30,9,30,11],[31,2,31,5],[31,6,31,8],[31,9,31,11],[28,11,28,12],[16,42,16,44],[18,45,18,46],[23,4,23,5],[23,7,23,8],[23,9,23,12],[27,6,27,7],[26,6,26,7],[27,4,27,5],[26,4,26,5],[20,7,20,8],[22,9,22,12],[22,7,22,8],[18,17,18,19],[20,17,20,19],[21,4,21,5],[20,4,20,5],[21,9,21,12],[24,2,24,9],[27,11,27,12],[27,8,27,10],[220,3,221,3],[28,8,28,10],[26,2,26,3],[27,2,27,3],[28,6,28,7],[28,4,28,5],[28,2,28,3],[26,11,26,12],[36,9,36,12],[35,2,35,4],[167,6,167,9],[166,6,166,9],[165,6,165,9],[164,6,164,9],[163,6,163,9],[162,6,162,9]],"bounds":{"rows_first":2000,"rows_last":500,"rows_between":2000,"halvings":0},"read":"row_number_cap"}
[null,null,null,null,null,null,null,null,null,null,null,null,null,null,null,null,null,null,null,null,null,null,null,null,null,null,null,null,null,null,"r2"]
[null,null,null,null,null,null,null,null,null,null,null,null,null,null,null,null,null,null,null,null,null,null,null,null,null,null,null,null,null,null,2,"ABANDON"]
[null,null,null,null,null,null,null,null,null,null,null,null,null,null,null,null,null,null,null,null,null,null,null,null,null,null,null,1,null,null,null,"ADD LEG(S)"]
[null,null,"APPLICATION  FOR  APPROVAL OF  WELL  OPERATIONS",null,null,null,null,null,null,null,null,null,null,null,null,null,null,null,null,null,null,null,null,null,null,1,null,1,"Yes",null,null,"CONVERT"]
[null,null,null,null,null,null,null,null,null,null,null,null,null,null,null,null,null,null,null,null,null,null,null,null,null,1,null,1,"No",null,null,"CASING REPAIR"]
[null,null,"In compliance with Section 47 of the Drilling and Production Regulation, application is hereby made for approval of the following operations:",null,null,null,null,null,null,null,null,null,null,null,null,null,null,null,null,null,null,null,null,null,null,null,null,1,null,null,null,"DEEPEN"]
[null,null,null,null,null,null,null,null,null,null,null,null,null,null,null,null,null,null,null,null,null,null,null,null,null,null,null,1,null,null,null,"ISOLATE CASING LEAK"]
[null,null,null,null,null,null,null,null,null,null,null,null,null,null,null,null,null,null,null,null,null,null,null,null,null,null,null,1,null,null,null,"RECOMPLETE"]
[null,null,"PROPOSED WELL OPERATION:",null,{"$f":"IF($AE$2=1,\"\",IF($AE$2=2,\"ABANDON\",IF($AE$2=3,\"ADD LEG(S)\", IF($AE$2=4, \"CONVERT\", IF($AE$2=5,\"CASING REPAIR\", IF($AE$2=6, \"DEEPEN\",IF($AE$2=7,\"ISOLATE CASING LEAK\", IF($AE$2=8,\"RECOMPLETE\",IF($AE$2=9,\"REMOVE  CASING\", IF($AE$2=10,\"SUSPEND\",\"\"))))))))))","v":"ABANDON"},null,null,null,"Planned Commencement Date:",null,null,null,"",null,null,null,null,null,null,null,null,null,null,null,null,null,null,1,null,null,null,"REMOVE CASING"]
[null,null,null,null,null,null,null,null,null,null,null,null,null,null,null,null,null,null,null,null,null,null,null,null,null,null,null,1,null,null,null,"SUSPEND"]
[null,null,"Name    of    Licensee:",null,null,null,null,null,null,null,null,null,null,null,null,null,null,null,null,null,null,null,null,null,null,null,null,1]
[null,null,"C o .  R e p r e s e n t a t I v e :",null,null,null,"Phone  No:",null,null,"Email:"]
[]
[null,null,"WELL INFORMATION:",null,null,null,null,null,null,null,null,null,null,null,null,null,null,null,null,null,null,null,null,null,null,null,null,null,null,null,null,null,null,null,null,null,0]
[null,null,"Licence \nNo.","Surface\nLocation","Unique Well Identifier\n",null,"Current \nStatus","Casing Issues\nor \nStuck Fish?",null,"Reason for Proposed Operations",null,null,null,null,null,null,null,null,null,null,null,null,null,null,null,null,null,null,null,null,null,null,null,null,null,null,{"$f":"AK14+1","v":1}]
[null,null,null,null,null,null,{"$f":"IF(C16=\"\",\"\", IF(AE16=1,\"\",IF(AE16=2,\"COOP\",IF(AE16=3,\"Susp.\",IF(AE16=4,\"SWD\",IF(AE16=5,\"Shut-in\",IF(AE16=6,\"Injector\")))))))","v":""},{"$f":"IF(C16=\"\",\"\",IF(AB3=1,\"\",IF(AB3=2,\"Yes\",IF(AB3=3,\"No\",\"\"))))","v":""},null,null,null,null,null,null,{"$f":"IF(AND(OR($AE$2=4, $AE$2=10), C16<>\"\"),1, 0)","v":0},{"$f":"IF($AE$2=4,\"CONV\",(IF($AE$2=10,\"SUSP\",\"CONV\")))","v":"CONV"},null,null,null,null,null,null,null,null,null,null,null,null,null,null,1,null,null,null,null,null,{"$f":"AK15+1","v":2}]
[null,null,null,null,null,null,{"$f":"IF(C17=\"\",\"\", IF(AE17=1,\"\",IF(AE17=2,\"COOP\",IF(AE17=3,\"Susp.\",IF(AE17=4,\"SWD\",IF(AE17=5,\"Shut-in\",IF(AE17=6,\"Injector\")))))))","v":""},{"$f":"IF(C17=\"\",\"\",IF(AB4=1,\"\",IF(AB4=2,\"Yes\",IF(AB4=3,\"No\",\"\"))))","v":""},null,null,null,null,null,null,{"$f":"IF(AND(OR($AE$2=4, $AE$2=10), C17<>\"\"),1, 0)","v":0},{"$f":"IF($AE$2=4,\"CONV\",(IF($AE$2=10,\"SUSP\",\"CONV\")))","v":"CONV"},null,null,null,null,null,null,null,null,null,null,null,null,null,null,1,"COOP",null,"Yes",null,null,3]
[null,null,null,null,null,null,"","",null,null,null,null,null,null,0,"CONV",null,null,null,null,null,null,null,null,null,null,null,null,"Approval No: 1",null,1,"Susp.",null,"No",null,null,4]
[null,null,null,null,null,null,"","",null,null,null,null,null,null,0,"CONV",null,null,null,null,null,null,null,null,null,null,null,null,"Expiry: ",null,1,"SWD",null,null,null,null,5]
[null,null,null,null,null,null,"","",null,null,null,null,null,null,0,"CONV",null,null,null,null,null,null,null,null,null,null,null,null,null,null,1,"Shut-in",null,null,null,null,6]
[null,null,null,null,null,null,"","",null,null,null,null,null,null,0,"CONV",null,null,null,null,null,null,null,null,null,null,null,null,null,null,1,"Injector",null,null,null,null,7]
[null,null,null,null,null,null,"","",null,null,null,null,null,null,0,"CONV",null,null,null,null,null,null,null,null,null,null,null,null,null,null,1,null,null,null,null,null,8]
[null,null,null,null,null,null,"","",null,null,null,null,null,null,0,"CONV",null,null,null,null,null,null,null,null,null,null,null,null,null,null,1,null,null,null,null,null,9]
[null,null,null,null,null,null,"",{"$f":"IF(C24=\"\",\"\",IF(AB11=1,\"\",IF(AB11=2,\"Yes\",IF(AB11=3,\"No\",\"\"))))","v":""},null,null,null,null,null,null,{"$f":"IF(OR($AE$2=4, $AE$2=10), 0, 1)","v":1},{"$f":"IF($AE$2=2,\"AB\",(IF($AE$2=1,\"ISO LEAK/REM CAS\",IF($AE$2=3,\"ADD LEG\",IF($AE$2=5,\"CAS REP\",IF($AE$2=6,\"DEEP\",IF($AE$2=7,\"ISO LEAK/REM CAS\",IF($AE$2=8,\"RECOMP\",IF($AE$2=9,\"ISO LEAK/REM CAS\",\"AB\")))))))))","v":"AB"},null,null,null,null,null,null,null,null,null,null,null,null,null,null,1]
[null,null,"Legend:  COOP -  Capable of Oil Production   /   SWD - Salt Water Disposal   /   Susp. - Suspended",null,null,null,null,null,null,null,null,null,null,null,1]
[null,null,null,null,null,null,null,null,null,null,null,null,null,null,1]
[null,null,"Casing Details:",null,"Size (mm)",null,"Weight (kg/m)",null,"Depth (m)",null,null,"Cemented to Surface?",null,null,{"$f":"IF(OR($AE$2=4, $AE$2=10), 0, 1)","v":1},{"$f":"IF($AE$2=2,\"AB\",(IF($AE$2=1,\"ISO LEAK/REM CAS\",IF($AE$2=3,\"ADD LEG\",IF($AE$2=5,\"CAS REP\",IF($AE$2=6,\"DEEP\",IF($AE$2=7,\"ISO LEAK/REM CAS\",IF($AE$2=8,\"RECOMP\",IF($AE$2=9,\"ISO LEAK/REM CAS\",\"AB\")))))))))","v":"AB"}]
[null,null,"Surface Casing",null,null,null,null,null,null,null,null,{"$f":"IF(Z4=1,\"\",IF(Z4=2,\"Yes\",\"No\"))","v":""},null,null,1,"AB"]
[null,null,"Int. / Production Casing",null,null,null,null,null,null,null,null,{"$f":"IF(Z5=1,\"\",IF(Z5=2,\"Yes\",\"No\"))","v":""},null,null,1,"AB"]
[null,null,null,null,null,null,null,null,null,null,null,null,null,null,1,"AB"]
[null,null,"Perforation Intervals (m)",null,null,null,"Plugback Total Depth (m)",null,null,"Openhole Interval (m)",null,null,"Total Depth (m)",null,1,"AB"]
[null,null,null,null,null,null,null,null,null,null,null,null,null,null,1,"AB"]
[null,null,null,null,null,null,null,null,null,null,null,null,null,null,0]
[null,null,null,null,null,null,null,null,null,null,null,null,null,null,1]
[null,null,null,null,null,null,null,null,null,null,null,null,null,null,1]
[null,null,null,null,null,null,null,null,null,null,null,null,null,null,1]
[null,null,"Date",null,null,null,null,null,null,"Signature of Applicant",null,null,null,null,1]
[null,null,null,null,null,null,null,null,null,null,null,null,null,null,1]
[null,null,null,null,null,null,null,null,null,null,null,null,null,null,0]
[null,null,null,null,null,null,null,null,null,null,null,null,null,null,0]
[null,null,null,null,null,null,null,null,null,null,null,null,null,null,0,null,null,null,null,null,null,null,null,null,null,null,null,null,null,null,null,null,null,null,null,null,{"$f":"AK23+1","v":10}]
[null,null,null,null,null,null,null,null,null,null,null,null,null,null,0,null,null,null,null,null,null,null,null,null,null,null,null,null,"date issue",null,true,"roundoff near",null,"roundoff far",null,null,11]
[null,null,null,null,null,null,null,null,null,null,null,null,null,null,0,null,null,null,null,null,null,null,null,null,null,null,"2018-11-28",null,{"$f":"AJ47+C527","v":43664.363222453707},{"$f":"EOMONTH(AE43,0)","v":43860},{"$f":"AC43+180","v":43844.363222453707},{"$f":"AD43+1","v":43861},{"$f":"EOMONTH(AE43, -1)","v":43829},{"$f":"AG43+1","v":43830},null,null,12]
[null,null,null,null,null,null,null,null,null,null,null,null,null,null,0,null,null,null,null,null,null,null,null,null,null,null,null,null,{"$f":"AC43","v":"2023-07-19T08:43:02.420"},"2024-01-31","2024-01-15T08:43:02.420","2024-02-01","2023-12-31","2024-01-01",null,null,13]
[null,null,null,null,null,null,null,null,null,null,null,null,null,null,0,null,null,null,null,null,null,null,null,null,null,null,null,null,null,null,null,null,null,null,null,null,14]
[null,null,"For assistance in completing this form, please call  at 1-800-223-5215 (toll free).",null,null,null,null,null,null,null,null,null,null,null,1,null,null,null,null,null,null,null,null,null,null,null,null,null,{"$f":"format(AC44,\"mm/yyyy\")","v":{"$error":"#NAME?"}},null,null,null,null,null,null,null,15]
[null,null,"F  O  R      D  E  P  A  R  T  M  E  N  T      U  S  E     O  N  L  Y",null,null,null,null,null,null,null,null,null,null,null,1,null,null,null,null,null,null,null,null,null,null,null,null,null,"suspexp date",null,{"$f":"DAY(C527)","v":19},null,null,null,366,{"$f":"AI47-366","v":0},16]
[null,null,null,null,null,null,null,null,"This approval expires on:",null,null,null,{"$f":"IF(AE2=10, AC48, IF(AE47<=15,AH44,AF44))","v":"2024-02-01"},null,1,null,null,null,null,null,null,null,null,null,null,null,null,null,{"$f":"AC43+45","v":43709.363222453707},null,null,null,null,null,null,null,17]
[null,null,null,null,null,null,null,null,null,"..",null,null,null,null,1,null,null,null,null,null,null,null,null,null,null,null,null,null,null,null,null,null,null,null,null,null,18]
[null,null,"This application has been approved subject to the following terms and conditions:",null,null,null,null,null,null,null,null,null,null,null,1,null,null,null,null,null,null,null,null,null,null,null,null,null,null,null,null,null,null,null,null,null,19]
[null,null,null,null,null,null,null,null,null,null,null,null,null,null,1,null,null,null,null,null,null,null,null,null,null,null,null,null,null,null,null,null,null,null,null,null,20]
[null,null,"1.)","The Field District office is to be notified prior to commencing operations. All pressure tests must be witnessed by an ",null,null,null,null,null,null,null,null,null,"ABANDONMENT",{"$f":"IF(D52=\"\",0,1)","v":1},"AB",null,null,{"$f":"T52&\".)\"","v":"1.)"},1,null,null,null,null,null,null,"2013-05-02",null,null,null,null,null,null,null,null,null,21,null,null,null,null,null,null,null,null,null,null,null,null,null,null,null,null,null,null,null,null,null,"The Field District office is to be notified prior to commencing operations. All pressure tests must be witnessed by an "]
[null,null,null,"Inspector.",null,null,null,null,null,null,null,null,null,null,{"$f":"IF(D53=\"\",0,1)","v":1},"AB",null,null,null,null,null,null,null,null,null,null,null,null,null,null,null,null,null,null,null,null,22,null,null,null,null,null,null,null,null,null,null,null,null,null,null,null,null,null,null,null,null,null,"Inspector."]
[null,null,null,null,null,null,null,null,null,null,null,null,null,null,0,"AB",null,null,null,null,null,null,null,null,null,null,"",null,null,null,null,null,null,null,null,null,23]
[null,null,{"$f":"IF(D55=\"\",\"\", S55)","v":"2.)"},"Co. is to contact the surface owner at least 24 hours prior to entering the lease.",null,null,null,null,null,null,null,null,null,null,1,"AB",null,null,{"$f":"T55&\".)\"","v":"2.)"},{"$f":"IF(D55<>\"\",T52+1, T52)","v":2},null,null,null,null,null,null,null,null,{"$f":"AC50+45","v":45},null,null,null,null,null,null,null,24,null,null,null,null,null,null,null,null,null,null,null,null,null,null,null,null,null,null,null,null,null,"Co. is to contact the surface owner at least 24 hours prior to entering the lease."]
[null,null,null,null,null,null,null,null,null,null,null,null,null,null,0,"AB",null,null,null,null,null,null,null,null,null,null,null,null,null,null,null,null,null,null,null,null,25]
[null,null," ",null,null,null,null,null,null,null,null,null,null,null,0,"AB",null,null,null,null,null,null,null,null,null,null,null,null,{"$f":"AC55","v":45},null,1465,{"$f":"NOW()","v":43664.363222453707},null,null,null,null,26]
[null,null,{"$f":"IF(D58=\"\",\"\", S58)","v":"3.)"},"If the pressure test of the surface/production casing annulus fails, then Co. is to contact a Field petroleum  ",null,null,null,null,null,null,null,null,null,null,1,"AB",null,null,{"$f":"T58&\".)\"","v":"3.)"},{"$f":"IF(D58<>\"\",T55+1, T55)","v":3},null,null,null,null,null,null,null,null,null,null,null,null,null,null,null,null,27,null,null,null,null,null,null,null,null,null,null,null,null,null,null,null,null,null,null,null,null,null,"If the pressure test of the surface/production casing annulus fails, then Co. is to contact a Field petroleum  "]
[null,null,null,"inspector prior to proceeding with the abandonment.",null,null,null,null,null,null,null,null,null,null,1,"AB",null,null,null,null,null,null,null,null,null,null,null,null,null,null,null,null,null,null,null,null,28,null,null,null,null,null,null,null,null,null,null,null,null,null,null,null,null,null,null,null,null,null,"inspector prior to proceeding with the abandonment."]
[null,null,null,null,null,null,null,null,null,null,null,null,null,null,0,"AB",null,null,null,null,null,null,null,null,null,null,null,null,null,null,null,null,null,null,null,null,29]
[null,null,{"$f":"IF(D61=\"\",\"\", S61)","v":"4.)"},"Co. is to ensure that proper procedures are exercised to ensure that the surface casing & vent are not frozen",null,null,null,null,null,null,null,null,null,null,1,"AB",null,null,{"$f":"T61&\".)\"","v":"4.)"},{"$f":"IF(D61<>\"\",T58+1, T58)","v":4},null,null,null,null,null,null,null,null,null,null,null,null,null,null,null,null,30,null,null,null,null,null,null,null,null,null,null,null,null,null,null,null,null,null,null,null,null,null,"Co. is to ensure that proper procedures are exercised to ensure that the surface casing & vent are not frozen"]
[null,null,null,"off for pressure testing during the winter months.",null,null,null,null,null,null,null,null,null,null,1,"AB",null,null,null,null,null,null,null,null,null,null,null,null,null,null,null,null,null,null,null,null,31,null,null,null,null,null,null,null,null,null,null,null,null,null,null,null,null,null,null,null,null,null,"off for pressure testing during the winter months."]
[null,null,null,null,null,null,null,null,null,null,null,null,null,null,0,"AB",null,null,null,null,null,null,null,null,null,null,null,null,null,null,null,null,null,null,null,null,32]
[null,null,{"$f":"IF(D64=\"\",\"\", S64)","v":"5.)"},"The flowline(s) is to be abandoned as per attached flowline abandonment form(s).",null,null,null,null,null,null,null,null,null,null,1,"AB",null,null,{"$f":"T64&\".)\"","v":"5.)"},{"$f":"IF(D64<>\"\",T61+1, T61)","v":5},null,null,null,null,null,null,null,null,null,null,null,null,null,null,null,null,33,null,null,null,null,null,null,null,null,null,null,null,null,null,null,null,null,null,null,null,null,null,"The flowline(s) is to be abandoned as per attached flowline abandonment form(s)."]
[null,null,null,null,null,null,null,null,null,null,null,null,null,null,0,"AB",null,null,null,null,null,null,null,null,null,null,null,null,null,null,null,null,null,null,null,null,34]
[null,null,null,null,null,null,null,null,null,null,null,null,null,null,0,"AB",null,null,null,null,null,null,null,null,null,null,null,null,null,null,null,null,null,null,null,null,35]
[null,null,{"$f":"IF(D67=\"\",\"\", S67)","v":"6.)"},"Our records indicate the top of Lower Amaranth to be at #### m (TVD) or #### m (MD), therefore the bottom ",null,null,null,null,null,null,null,null,null,null,1,"AB",null,null,{"$f":"T67&\".)\"","v":"6.)"},{"$f":"IF(D67<>\"\",T64+1, T64)","v":6},null,null,null,null,null,null,null,null,null,null,null,null,null,null,null,null,36,null,null,null,null,null,null,null,null,null,null,null,null,null,null,null,null,null,null,null,null,null,"Our records indicate the top of Lower Amaranth to be at #### m (TVD) or #### m (MD), therefore the bottom "]
[null,null,null,"plug is to be set approximately 5m above the top of Lower Amaranth, at a depth not lower than #### m (TVD)  ",null,null,null,null,null,null,null,null,null,null,1,"AB",null,null,null,null,null,null,null,null,null,null,null,null,null,null,null,null,null,null,null,null,37,null,null,null,null,null,null,null,null,null,null,null,null,null,null,null,null,null,null,null,null,null,"plug is to be set approximately 5m above the top of Lower Amaranth, at a depth not lower than #### m (TVD)  "]
[null,null,null,"or #### m (MD).",null,null,null,null,null,null,null,null,null,null,1,"AB",null,null,null,null,null,null,null,null,null,null,null,null,null,null,null,null,null,null,null,null,38,null,null,null,null,null,null,null,null,null,null,null,null,null,null,null,null,null,null,null,null,null,"or #### m (MD)."]
[null,null,{"$f":"IF(D70=\"\",\"\", S70)","v":"7.)"},"Our records indicate that there was no recorded cement returns therefore the wellbore will have  to be   ",null,null,null,null,null,null,null,null,null,null,1,"AB",null,null,{"$f":"T70&\".)\"","v":"7.)"},{"$f":"IF(D70<>\"\",T67+1, T67)","v":7},null,null,null,null,null,null,null,null,null,null,null,null,null,null,null,null,39,null,null,null,null,null,null,null,null,null,null,null,null,null,null,null,null,null,null,null,null,null,"Our records indicate that there was no recorded cement returns therefore the wellbore will have  to be   "]
[null,null,null,"perforated at #### m and a 30m cement plug circulated. The top of the plug is to be at a depth not lower",null,null,null,null,null,null,null,null,null,null,1,"AB",null,null,null,null,null,null,null,null,null,null,null,null,null,null,null,null,null,null,null,null,40,null,null,null,null,null,null,null,null,null,null,null,null,null,null,null,null,null,null,null,null,null,"perforated at #### m and a 30m cement plug circulated. The top of the plug is to be at a depth not lower"]
[null,null,null," than XXXX m. ",null,null,null,null,null,null,null,null,null,null,1,"AB",null,null,null,null,null,null,null,null,null,null,null,null,null,null,null,null,null,null,null,null,41,null,null,null,null,null,null,null,null,null,null,null,null,null,null,null,null,null,null,null,null,null," than XXXX m. "]
[null,null,{"$f":"IF(D73=\"\",\"\", S73)","v":"8.)"},"If Co.  is unable to get proper circulation then they must contact a Field petroleum inspector prior to proceeding",null,null,null,null,null,null,null,null,null,null,1,"AB",null,null,{"$f":"T73&\".)\"","v":"8.)"},{"$f":"IF(D73<>\"\",T70+1, T70)","v":8},null,null,null,null,null,null,null,null,null,null,null,null,null,null,null,null,42,null,null,null,null,null,null,null,null,null,null,null,null,null,null,null,null,null,null,null,null,null,"If Co.  is unable to get proper circulation then they must contact a Field petroleum inspector prior to proceeding"]
[null,null,null," with the abandonment. ",null,null,null,null,null,null,null,null,null,null,1,"AB",null,null,null,null,null,null,null,null,null,null,null,null,null,null,null,null,null,null,null,null,43,null,null,null,null,null,null,null,null,null,null,null,null,null,null,null,null,null,null,null,null,null," with the abandonment. "]
[null,null,null,null,null,null,null,null,null,null,null,null,null,null,0,"AB",null,null,null,null,null,null,null,null,null,null,null,null,null,null,null,null,null,null,null,null,44]
[null,null,{"$f":"IF(D76=\"\",\"\", S76)","v":"9.)"},"In lieu of a bridge plug and 8m of cement, Co. is required to run a continuous cement plug from below  the ",null,null,null,null,null,null,null,null,null,null,1,"AB",null,null,{"$f":"T76&\".)\"","v":"9.)"},{"$f":"IF(D76<>\"\",T73+1, T73)","v":9},null,null,null,null,null,null,null,null,null,null,null,null,null,null,null,null,45,null,null,null,null,null,null,null,null,null,null,null,null,null,null,null,null,null,null,null,null,null,"In lieu of a bridge plug and 8m of cement, Co. is required to run a continuous cement plug from below  the "]
[null,null,null,"perforations to 15m above the top of the Lower Amaranth at a depth not lower than XXXX m. This plug would have",null,null,null,null,null,null,null,null,null,null,1,"AB",null,null,null,null,null,null,null,null,null,null,null,null,null,null,null,null,null,null,null,null,46,null,null,null,null,null,null,null,null,null,null,null,null,null,null,null,null,null,null,null,null,null,"perforations to 15m above the top of the Lower Amaranth at a depth not lower than XXXX m. This plug would have"]
[null,null,null," to be probed with a force of 18 kN, and after the plug is set the casing above the plug would have to be pressure tested to 3 500 kPa. ",null,null,null,null,null,null,null,null,null,null,1,"AB",null,null,null,null,null,null,null,null,null,null,null,null,null,null,null,null,null,null,null,null,47,null,null,null,null,null,null,null,null,null,null,null,null,null,null,null,null,null,null,null,null,null," to be probed with a force of 18 kN, and after the plug is set the casing above the plug would have to be pressure tested to 3 500 kPa. "]
[null,null,{"$f":"IF(D79=\"\",\"\", S79)","v":"10.)"},"Our records indicate the surface casing shoe to be at XXXXX m (TVD), therefore the top plug is to be  set  5m below",null,null,null,null,null,null,null,null,null,null,1,"AB",null,null,{"$f":"T79&\".)\"","v":"10.)"},{"$f":"IF(D79<>\"\",T76+1, T76)","v":10},null,null,null,null,null,null,null,null,null,null,null,null,null,null,null,null,48,null,null,null,null,null,null,null,null,null,null,null,null,null,null,null,null,null,null,null,null,null,"Our records indicate the surface casing shoe to be at XXXXX m (TVD), therefore the top plug is to be  set  5m below"]
[null,null,null,"at a depth of XXXX m (TVD).",null,null,null,null,null,null,null,null,null,null,1,"AB",null,null,null,null,null,null,null,null,null,null,null,null,null,null,null,null,null,null,null,null,49,null,null,null,null,null,null,null,null,null,null,null,null,null,null,null,null,null,null,null,null,null,"at a depth of XXXX m (TVD)."]
[null,null,null,null,null,null,null,null,null,null,null,null,null,null,0,"AB",null,null,null,null,null,null,null,null,null,null,null,null,null,null,null,null,null,null,null,null,50]
[null,null,{"$f":"IF(D82=\"\",\"\", S82)","v":"11.)"},"As per Subsection 45(3) of the regulation, Co. is to install wellhead equipment with minimum working pressure  ",null,null,null,null,null,null,null,null,null,null,1,"AB",null,null,{"$f":"T82&\".)\"","v":"11.)"},{"$f":"IF(D82<>\"\",T79+1, T79)","v":11},null,null,null,null,null,null,null,null,null,null,null,null,null,null,null,null,51,null,null,null,null,null,null,null,null,null,null,null,null,null,null,null,null,null,null,null,null,null,"As per Subsection 45(3) of the regulation, Co. is to install wellhead equipment with minimum working pressure  "]
[null,null,null,"rating of 7 000 kPa or the maximum expected wellhead pressure, whichever is greater.",null,null,null,null,null,null,null,null,null,null,1,"AB",null,null,null,null,null,null,null,null,null,null,null,null,null,null,null,null,null,null,null,null,52,null,null,null,null,null,null,null,null,null,null,null,null,null,null,null,null,null,null,null,null,null,"rating of 7 000 kPa or the maximum expected wellhead pressure, whichever is greater."]
[null,null,null,null,null,null,null,null,null,null,null,null,null,null,0,"AB",null,null,null,null,null,null,null,null,null,null,null,null,null,null,null,null,null,null,null,null,53]
[null,null,{"$f":"IF(D85=\"\",\"\", S85)","v":"12.)"},"Our records show the OD of the XXXX casing is XXXX mm, please adjust your tools, materials and  cementing  ",null,null,null,null,null,null,null,null,null,null,1,"AB",null,null,{"$f":"T85&\".)\"","v":"12.)"},{"$f":"IF(D85<>\"\",T82+1, T82)","v":12},null,null,null,null,null,null,null,null,null,null,null,null,null,null,null,null,54,null,null,null,null,null,null,null,null,null,null,null,null,null,null,null,null,null,null,null,null,null,"Our records show the OD of the XXXX casing is XXXX mm, please adjust your tools, materials and  cementing  "]
[null,null,null,"volumes accordingly.",null,null,null,null,null,null,null,null,null,null,1,"AB",null,null,null,null,null,null,null,null,null,null,null,null,null,null,null,null,null,null,null,null,55,null,null,null,null,null,null,null,null,null,null,null,null,null,null,null,null,null,null,null,null,null,"volumes accordingly."]
[null,null,null,null,null,null,null,null,null,null,null,null,null,null,0,"AB",null,null,null,null,null,null,null,null,null,null,null,null,null,null,null,null,null,null,null,null,56]
[null,null,{"$f":"IF(D88=\"\",\"\", S88)","v":"13.)"},"This area has significant potential for high volume shallow depth gas flows. Co. is to use extra caution  ",null,null,null,null,null,null,null,null,null,null,1,"AB",null,null,{"$f":"T88&\".)\"","v":"13.)"},{"$f":"IF(D88<>\"\",T85+1, T85)","v":13},null,null,null,null,null,null,null,null,null,null,null,null,null,null,null,null,57,null,null,null,null,null,null,null,null,null,null,null,null,null,null,null,null,null,null,null,null,null,"This area has significant potential for high volume shallow depth gas flows. Co. is to use extra caution  "]
[null,null,null,"if the casing has to be perforated below the surface casing shoe. Please refer to Informational Notice 05-03 (attached)",null,null,null,null,null,null,null,null,null,null,1,"AB",null,null,null,null,null,null,null,null,null,null,null,null,null,null,null,null,null,null,null,null,58,null,null,null,null,null,null,null,null,null,null,null,null,null,null,null,null,null,null,null,null,null,"if the casing has to be perforated below the surface casing shoe. Please refer to Informational Notice 05-03 (attached)"]
[null,null,null,null,null,null,null,null,null,null,null,null,null,null,0,"AB",null,null,null,null,null,null,null,null,null,null,null,null,null,null,null,null,null,null,null,null,59]
[null,null,{"$f":"IF(D91=\"\",\"\", S91)","v":"14.)"},"Our records indicate that there is a bottom bridge plug set at XXXX m. Reposition and reset the bridge plug not ",null,null,null,null,null,null,null,null,null,null,1,"AB",null,null,{"$f":"T91&\".)\"","v":"14.)"},{"$f":"IF(D91<>\"\",T88+1, T88)","v":14},null,null,null,null,null,null,null,null,null,null,null,null,null,null,null,null,60,null,null,null,null,null,null,null,null,null,null,null,null,null,null,null,null,null,null,null,null,null,"Our records indicate that there is a bottom bridge plug set at XXXX m. Reposition and reset the bridge plug not "]
[null,null,null,"  deeper than XXXX m TVD (XXXXm MD). If this is not possible, set another bridge plug not deeper than ",null,null,null,null,null,null,null,null,null,null,1,"AB",null,null,null,null,null,null,null,null,null,null,null,null,null,null,null,null,null,null,null,null,61,null,null,null,null,null,null,null,null,null,null,null,null,null,null,null,null,null,null,null,null,null,"  deeper than XXXX m TVD (XXXXm MD). If this is not possible, set another bridge plug not deeper than "]
[null,null,null," XXXX m TVD (XXXXm MD). In both options, place an 8 m cement on top of the plug ",null,null,null,null,null,null,null,null,null,null,1,"AB",null,null,null,null,null,null,null,null,null,null,null,null,null,null,null,null,null,null,null,null,62,null,null,null,null,null,null,null,null,null,null,null,null,null,null,null,null,null,null,null,null,null," XXXX m TVD (XXXXm MD). In both options, place an 8 m cement on top of the plug "]
[null,null,{"$f":"IF(D94=\"\",\"\", S94)","v":"15.)"},"Our records indicate that there is a fish stuck throughout the hole down to approximately XXXX m TVD (XXXXm MD). ",null,null,null,null,null,null,null,null,null,null,1,"AB",null,null,{"$f":"T94&\".)\"","v":"15.)"},{"$f":"IF(D94<>\"\",T91+1, T91)","v":15},null,null,null,null,null,null,null,null,null,null,null,null,null,null,null,null,63,null,null,null,null,null,null,null,null,null,null,null,null,null,null,null,null,null,null,null,null,null,"Our records indicate that there is a fish stuck throughout the hole down to approximately XXXX m TVD (XXXXm MD). "]
[null,null,null,"Co. is required to remove the fish or at least remove it from  top down to the setting depth of  ",null,null,null,null,null,null,null,null,null,null,1,"AB",null,null,null,null,null,null,null,null,null,null,null,null,null,null,null,null,null,null,null,null,64,null,null,null,null,null,null,null,null,null,null,null,null,null,null,null,null,null,null,null,null,null,"Co. is required to remove the fish or at least remove it from  top down to the setting depth of  "]
[null,null,null,"the bottom bridge plug at ##### m.",null,null,null,null,null,null,null,null,null,null,1,"AB",null,null,null,null,null,null,null,null,null,null,null,null,null,null,null,null,null,null,null,null,65,null,null,null,null,null,null,null,null,null,null,null,null,null,null,null,null,null,null,null,null,null,"the bottom bridge plug at ##### m."]
[null,null,{"$f":"IF(D97=\"\",\"\", S97)","v":"16.)"},"Our records indicate that there is a fish stuck in the hole at XXXXm TVD (XXXXm MD) with the top of the fish at ",null,null,null,null,null,null,null,null,null,null,1,"AB",null,null,{"$f":"T97&\".)\"","v":"16.)"},{"$f":"IF(D97<>\"\",T94+1, T94)","v":16},null,null,null,null,null,null,null,null,null,null,null,null,null,null,null,null,{"$f":"AK96+1","v":66},null,null,null,null,null,null,null,null,null,null,null,null,null,null,null,null,null,null,null,null,null,"Our records indicate that there is a fish stuck in the hole at XXXXm TVD (XXXXm MD) with the top of the fish at "]
[null,null,null,"XXXXm  to XXXX m. Co. is required to remove the fish prior to setting the bottom bridge plug at XXXX m.",null,null,null,null,null,null,null,null,null,null,1,"AB",null,null,null,null,null,null,null,null,null,null,null,null,null,null,null,null,null,null,null,null,67,null,null,null,null,null,null,null,null,null,null,null,null,null,null,null,null,null,null,null,null,null,"XXXXm  to XXXX m. Co. is required to remove the fish prior to setting the bottom bridge plug at XXXX m."]
[null,null,null,null,null,null,null,null,null,null,null,null,null,null,0,"AB",null,null,null,null,null,null,null,null,null,null,null,null,null,null,null,null,null,null,null,null,68]
[null,null,{"$f":"IF(D100=\"\",\"\", S100)","v":"17.)"},"Because this well is located in an area where the Lower Amaranth is not present, Co. is to set a bridge plug within 5 m",null,null,null,null,null,null,null,null,null,null,1,"AB",null,null,{"$f":"T100&\".)\"","v":"17.)"},{"$f":"IF(D100<>\"\",T97+1, T97)","v":17},null,null,null,null,null,null,null,null,null,null,null,null,null,null,null,null,69,null,null,null,null,null,null,null,null,null,null,null,null,null,null,null,null,null,null,null,null,null,"Because this well is located in an area where the Lower Amaranth is not present, Co. is to set a bridge plug within 5 m"]
[null,null,null,"from the topmost perforations and capped with approximately XXXX mMD-long continuous cement plug not lower",null,null,null,null,null,null,null,null,null,null,1,"AB",null,null,null,null,null,null,null,null,null,null,null,null,null,null,null,null,null,null,null,null,70,null,null,null,null,null,null,null,null,null,null,null,null,null,null,null,null,null,null,null,null,null,"from the topmost perforations and capped with approximately XXXX mMD-long continuous cement plug not lower"]
[null,null,null,"than XXXX mMD or XXXX mTVD. ",null,null,null,null,null,null,null,null,null,null,1,"AB",null,null,null,null,null,null,null,null,null,null,null,null,null,null,null,null,null,null,null,null,71,null,null,null,null,null,null,null,null,null,null,null,null,null,null,null,null,null,null,null,null,null,"than XXXX mMD or XXXX mTVD. "]
[null,null,{"$f":"IF(D103=\"\",\"\", S103)","v":""},null,null,null,null,null,null,null,null,null,null,null,0,"AB",null,null,{"$f":"T103&\".)\"","v":"17.)"},{"$f":"IF(D103<>\"\",T100+1, T100)","v":17},null,null,null,null,null,null,null,null,null,null,null,null,null,null,null,null,72]
[null,null,null,null,null,null,null,null,null,null,null,null,null,null,0,"AB",null,null,null,null,null,null,null,null,null,null,null,null,null,null,null,null,null,null,null,null,73]
[null,null,null,null,null,null,null,null,null,null,null,null,null,null,0,"AB",null,null,null,null,null,null,null,null,null,null,null,null,null,null,null,null,null,null,null,null,74]
[null,null,{"$f":"IF(D106=\"\",\"\", S106)","v":""},null,null,null,null,null,null,null,null,null,null,null,0,"AB",null,null,{"$f":"T106&\".)\"","v":"17.)"},{"$f":"IF(D106<>\"\",T103+1, T103)","v":17},null,null,null,null,null,null,null,null,null,null,null,null,null,null,null,null,75]
[null,null,null,null,null,null,null,null,null,null,null,null,null,null,0,"AB",null,null,null,null,null,null,null,null,null,null,null,null,null,null,null,null,null,null,null,null,76]
[null,null,null,null,null,null,null,null,null,null,null,null,null,null,0,"AB",null,null,null,null,null,null,null,null,null,null,null,null,null,null,null,null,null,null,null,null,77]
[null,null,{"$f":"IF(D109=\"\",\"\", S109)","v":""},null,null,null,null,null,null,null,null,null,null,null,0,"AB",null,null,{"$f":"T109&\".)\"","v":"17.)"},{"$f":"IF(D109<>\"\",T106+1, T106)","v":17},null,null,null,null,null,null,null,null,null,null,null,null,null,null,null,null,78]
[null,null,null,null,null,null,null,null,null,null,null,null,null,null,0,"AB",null,null,null,null,null,null,null,null,null,null,null,null,null,null,null,null,null,null,null,null,79]
[null,null,null,null,null,null,null,null,null,null,null,null,null,null,0,"AB",null,null,null,null,null,null,null,null,null,null,null,null,null,null,null,null,null,null,null,null,80]
[null,null,{"$f":"IF(D112=\"\",\"\", S112)","v":"18.)"},"Because this well is located in an area where the Lower Amaranth is not present, Co. is to run approximately",null,null,null,null,null,null,null,null,null,null,1,"AB",null,null,{"$f":"T112&\".)\"","v":"18.)"},{"$f":"IF(D112<>\"\",T109+1, T109)","v":18},null,null,null,null,null,null,null,null,null,null,null,null,null,null,null,null,81,null,null,null,null,null,null,null,null,null,null,null,null,null,null,null,null,null,null,null,null,null,"Because this well is located in an area where the Lower Amaranth is not present, Co. is to run approximately"]
[null,null,null,"XXXX mMD long continuous cement plug from below the perforations to a depth not lower than Xxxx mTVD  or",null,null,null,null,null,null,null,null,null,null,1,"AB",null,null,null,null,null,null,null,null,null,null,null,null,null,null,null,null,null,null,null,null,82,null,null,null,null,null,null,null,null,null,null,null,null,null,null,null,null,null,null,null,null,null,"XXXX mMD long continuous cement plug from below the perforations to a depth not lower than Xxxx mTVD  or"]
[null,null,null,"XXXX mMD.",null,null,null,null,null,null,null,null,null,null,1,"AB",null,null,null,null,null,null,null,null,null,null,null,null,null,null,null,null,null,null,null,null,83,null,null,null,null,null,null,null,null,null,null,null,null,null,null,null,null,null,null,null,null,null,"XXXX mMD."]
[null,null,{"$f":"IF(D115=\"\",\"\", S115)","v":"19.)"},"Because this well is located in an area where the Lower Amaranth is not present, Co. is to set a bridge plug at ",null,null,null,null,null,null,null,null,null,null,1,"AB",null,null,{"$f":"T115&\".)\"","v":"19.)"},{"$f":"IF(D115<>\"\",T112+1, T112)","v":19},null,null,null,null,null,null,null,null,null,null,null,null,null,null,null,null,84,null,null,null,null,null,null,null,null,null,null,null,null,null,null,null,null,null,null,null,null,null,"Because this well is located in an area where the Lower Amaranth is not present, Co. is to set a bridge plug at "]
[null,null,null,"XXXX mMD or as low as possible and then run approximately XXXX mMD-long continuous cement plug to a depth",null,null,null,null,null,null,null,null,null,null,1,"AB",null,null,null,null,null,null,null,null,null,null,null,null,null,null,null,null,null,null,null,null,85,null,null,null,null,null,null,null,null,null,null,null,null,null,null,null,null,null,null,null,null,null,"XXXX mMD or as low as possible and then run approximately XXXX mMD-long continuous cement plug to a depth"]
[null,null,null,"not lower than XXXX mMD. ",null,null,null,null,null,null,null,null,null,null,{"$f":"IF(D117=\"\",0,1)","v":1},"AB",null,null,null,null,null,null,null,null,null,null,null,null,null,null,null,null,null,null,null,null,86,null,null,null,null,null,null,null,null,null,null,null,null,null,null,null,null,null,null,null,null,null,"not lower than XXXX mMD. "]
[null,null,null,null,null,null,null,null,null,null,null,null,null,null,0,"AB",null,null,null,null,null,null,null,null,null,null,null,null,null,null,null,null,null,null,null,null,87]
[null,null,null,null,null,null,null,null,null,null,null,null,null,null,0,"AB",null,null,null,null,null,null,null,null,null,null,null,null,null,null,null,null,null,null,null,null,88]
[null,null,null,null,null,null,null,null,null,null,null,null,null,null,0,"AB",null,null,null,null,null,null,null,null,null,null,null,null,null,null,null,null,null,null,null,null,89]
[null,null,{"$f":"IF(D121=\"\",\"\", S121)","v":"20.)"},"Co. is to ensure that the probable presence of stuck fishes in the hole starting at XXXXm TVD (XXXXm MD)",null,null,null,null,null,null,null,null,null,null,1,"AB",null,null,{"$f":"T121&\".)\"","v":"20.)"},{"$f":"IF(D121<>\"\",T115+1, T115)","v":20},null,null,null,null,null,null,null,null,null,null,null,null,null,null,null,null,90,null,null,null,null,null,null,null,null,null,null,null,null,null,null,null,null,null,null,null,null,null,"Co. is to ensure that the probable presence of stuck fishes in the hole starting at XXXXm TVD (XXXXm MD)"]
[null,null,null," up will not affect Co. ability to abandon the well as per Section 47(2) of the regulation. As per Informational  ",null,null,null,null,null,null,null,null,null,null,1,"AB",null,null,null,null,null,null,null,null,null,null,null,null,null,null,null,null,null,null,null,null,91,null,null,null,null,null,null,null,null,null,null,null,null,null,null,null,null,null,null,null,null,null," up will not affect Co. ability to abandon the well as per Section 47(2) of the regulation. As per Informational  "]
[null,null,null," Notice 04-02, Co. must exert efforts to recover any fish stuck in the hole more than 15m above of the  base ",null,null,null,null,null,null,null,null,null,null,1,"AB",null,null,null,null,null,null,null,null,null,null,null,null,null,null,null,null,null,null,null,null,92,null,null,null,null,null,null,null,null,null,null,null,null,null,null,null,null,null,null,null,null,null," Notice 04-02, Co. must exert efforts to recover any fish stuck in the hole more than 15m above of the  base "]
[null,null,null," of the Upper Amaranth formation to ensure the bottom abandonment plug can effectively isolate the ",null,null,null,null,null,null,null,null,null,null,1,"AB",null,null,null,null,null,null,null,null,null,null,null,null,null,null,null,null,null,null,null,null,93,null,null,null,null,null,null,null,null,null,null,null,null,null,null,null,null,null,null,null,null,null," of the Upper Amaranth formation to ensure the bottom abandonment plug can effectively isolate the "]
[null,null,null," producing formation from the remainder of the wellbore. ",null,null,null,null,null,null,null,null,null,null,1,"AB",null,null,null,null,null,null,null,null,null,null,null,null,null,null,null,null,null,null,null,null,94,null,null,null,null,null,null,null,null,null,null,null,null,null,null,null,null,null,null,null,null,null," producing formation from the remainder of the wellbore. "]
[null,null,null,null,null,null,null,null,null,null,null,null,null,null,0,"AB",null,null,null,null,null,null,null,null,null,null,null,null,null,null,null,null,null,null,null,null,95]
[null,null,{"$f":"IF(D127=\"\",\"\", S127)","v":"21.)"},"Co. is required to set a bridge plug above the XXXX perforations and pressure test, and if  successful cap  the ",null,null,null,null,null,null,null,null,null,null,1,"AB",null,null,{"$f":"T127&\".)\"","v":"21.)"},{"$f":"IF(D127<>\"\",T121+1, T121)","v":21},null,null,null,null,null,null,null,null,null,null,null,null,null,null,null,null,96,null,null,null,null,null,null,null,null,null,null,null,null,null,null,null,null,null,null,null,null,null,"Co. is required to set a bridge plug above the XXXX perforations and pressure test, and if  successful cap  the "]
[null,null,null,"plug with 8m cement. Co. is then required to set a second bridge plug 5m above the base of the Amaranth  ",null,null,null,null,null,null,null,null,null,null,1,"AB",null,null,null,null,null,null,null,null,null,null,null,null,null,null,null,null,null,null,null,null,97,null,null,null,null,null,null,null,null,null,null,null,null,null,null,null,null,null,null,null,null,null,"plug with 8m cement. Co. is then required to set a second bridge plug 5m above the base of the Amaranth  "]
[null,null,null,"Evaporite at a depth not lower than XXXXm TVD (XXXX m MD) and cap with 8m cement or; in lieu of setting two    ",null,null,null,null,null,null,null,null,null,null,1,"AB",null,null,null,null,null,null,null,null,null,null,null,null,null,null,null,null,null,null,null,null,98,null,null,null,null,null,null,null,null,null,null,null,null,null,null,null,null,null,null,null,null,null,"Evaporite at a depth not lower than XXXXm TVD (XXXX m MD) and cap with 8m cement or; in lieu of setting two    "]
[null,null,null,"plugs, Co. may choose to run a continuous cement plug from below the Formation perforations to 15m  above ",null,null,null,null,null,null,null,null,null,null,1,"AB",null,null,null,null,null,null,null,null,null,null,null,null,null,null,null,null,null,null,null,null,99,null,null,null,null,null,null,null,null,null,null,null,null,null,null,null,null,null,null,null,null,null,"plugs, Co. may choose to run a continuous cement plug from below the Formation perforations to 15m  above "]
[null,null,null,"the base of the Amaranth Evaporite at a depth not lower than XXXXm TVD (XXXXm MD). This plug would have  to  ",null,null,null,null,null,null,null,null,null,null,1,"AB",null,null,null,null,null,null,null,null,null,null,null,null,null,null,null,null,null,null,null,null,100,null,null,null,null,null,null,null,null,null,null,null,null,null,null,null,null,null,null,null,null,null,"the base of the Amaranth Evaporite at a depth not lower than XXXXm TVD (XXXXm MD). This plug would have  to  "]
[null,null,null,"be probed with a force of  18 kN, and after the plug is set the casing above the plug would have to be pressure tested to 3 500 kPa.",null,null,null,null,null,null,null,null,null,null,1,"AB",null,null,null,null,null,null,null,null,null,null,null,null,null,null,null,null,null,null,null,null,101,null,null,null,null,null,null,null,null,null,null,null,null,null,null,null,null,null,null,null,null,null,"be probed with a force of  18 kN, and after the plug is set the casing above the plug would have to be pressure tested to 3 500 kPa."]
[null,null,null,null,null,null,null,null,null,null,null,null,null,null,0,null,null,null,null,null,null,null,null,null,null,null,null,null,null,null,null,null,null,null,null,null,102]
[null,null,null,null,null,null,null,null,null,null,null,null,null,null,0,null,null,null,null,null,null,null,null,null,null,null,null,null,null,null,null,null,null,null,null,null,103]
[null,null,"1.)","The Field District office is to be notified prior to commencing operations. All pressure tests must be witnessed by ",null,null,null,null,null,null,null,null,null,"CONVERSION",1,"CONV",null,null,{"$f":"T135&\".)\"","v":"1.)"},1,null,null,null,null,null,null,null,null,null,null,null,null,null,null,null,null,104]
[null,null,null," an Inspector.",null,null,null,null,null,null,null,null,null,null,1,"CONV",null,null,null,null,null,null,null,null,null,null,null,null,null,null,null,null,null,null,null,null,105]
[null,null,null,null,null,null,null,null,null,null,null,null,null,null,0,"CONV",null,null,null,null,null,null,null,null,null,null,null,null,null,null,null,null,null,null,null,null,106]
[null,null,{"$f":"IF(D138=\"\",\"\", S138)","v":"2.)"},"The conversion of this well(s) to a water injection well, as part of the Place  Unit No. ##, qualifies under the ",null,null,null,null,null,null,null,null,null,null,1,"CONV",null,null,{"$f":"T138&\".)\"","v":"2.)"},{"$f":"IF(D138<>\"\",T135+1, T135)","v":2},null,null,null,null,null,null,null,null,null,null,null,null,null,null,null,null,107]
[null,null,null,"Pressure Maintenance Project Incentive Program.",null,null,null,null,null,null,null,null,null,null,1,"CONV",null,null,null,null,null,null,null,null,null,null,null,null,null,null,null,null,null,null,null,null,108]
[null,null," ",null,null,null,null,null,null,null,null,null,null,null,0,"CONV",null,null,null,null,null,null,null,null,null,null,null,null,null,null,null,null,null,null,null,null,109]
[null,null,{"$f":"IF(D141=\"\",\"\", S141)","v":"3.)"},"Isolation packer for horizontal wells must be set at a depth within 15 m TVD above the TVD of the lateral ",null,null,null,null,null,null,null,null,null,null,1,"CONV",null,null,{"$f":"T141&\".)\"","v":"3.)"},{"$f":"IF(D141<>\"\",T138+1, T138)","v":3},null,null,null,null,null,null,null,null,null,null,null,null,null,null,null,null,110]
[null,null,null,"section of the horizontal wellbore  as per Subsection 49(a) of the regulation.",null,null,null,null,null,null,null,null,null,null,1,"CONV",null,null,null,null,null,null,null,null,null,null,null,null,null,null,null,null,null,null,null,null,111]
[null,null,null,null,null,null,null,null,null,null,null,null,null,null,0,"CONV",null,null,null,null,null,null,null,null,null,null,null,null,null,null,null,null,null,null,null,null,112]
[null,null,{"$f":"IF(D144=\"\",\"\", S144)","v":"4.)"},"The annulus of the well shall be pressure tested in accordance with Section 50 of the regulation. Please refer ",null,null,null,null,null,null,null,null,null,null,1,"CONV",null,null,{"$f":"T144&\".)\"","v":"4.)"},{"$f":"IF(D144<>\"\",T141+1, T141)","v":4},null,null,null,null,null,null,null,null,null,null,null,null,null,null,null,null,113]
[null,null,null,"to Appendix 1 of Informational Notice 04-02 for testing guidelines.",null,null,null,null,null,null,null,null,null,null,1,"CONV",null,null,null,null,null,null,null,null,null,null,null,null,null,null,null,null,null,null,null,null,114]
[null,null,null,null,null,null,null,null,null,null,null,null,null,null,0,"CONV",null,null,null,null,null,null,null,null,null,null,null,null,null,null,null,null,null,null,null,null,115]
[null,null,{"$f":"IF(D147=\"\",\"\", S147)","v":"5.)"},"As per Subsections 47(2)(a.1) and 51(1) of the regulation, Co.  shall notify the Field District office within 24",null,null,null,null,null,null,null,null,null,null,1,"CONV",null,null,{"$f":"T147&\".)\"","v":"5.)"},{"$f":"IF(D147<>\"\",T144+1, T144)","v":5},null,null,null,null,null,null,null,null,null,null,null,null,null,null,null,null,116]
[null,null,null,"hours of discovery of casing leak. Co. shall apply with the Petroleum Branch within 30 days of leak",null,null,null,null,null,null,null,null,null,null,1,"CONV",null,null,null,null,null,null,null,null,null,null,null,null,null,null,null,null,null,null,null,null,117]
[null,null,null,"confirmation for plan of action and to determine isolation packer setting depth.",null,null,null,null,null,null,null,null,null,null,1,"CONV",null,null,null,null,null,null,null,null,null,null,null,null,null,null,null,null,null,null,null,null,118]
[null,null,{"$f":"IF(D150=\"\",\"\", S150)","v":"6.)"},"Unless otherwise authorized by an inspector, the packer must be set within 15 m (TVD) of the completed interval",null,null,null,null,null,null,null,null,null,null,1,"CONV",null,null,{"$f":"T150&\".)\"","v":"6.)"},{"$f":"IF(D150<>\"\",T147+1, T147)","v":6},null,null,null,null,null,null,null,null,null,null,null,null,null,null,null,null,119]
[null,null,null,"as per Subsection 49(a) of the regulation.",null,null,null,null,null,null,null,null,null,null,1,"CONV",null,null,null,null,null,null,null,null,null,null,null,null,null,null,null,null,null,null,null,null,120]
[null,null,null,null,null,null,null,null,null,null,null,null,null,null,0,"CONV",null,null,null,null,null,null,null,null,null,null,null,null,null,null,null,null,null,null,null,null,121]
[null,null,{"$f":"IF(D153=\"\",\"\", S153)","v":"7.)"},"In the event Co. is to conduct a zone abandonment, please contact the Field District office to discuss the",null,null,null,null,null,null,null,null,null,null,1,"CONV",null,null,{"$f":"T153&\".)\"","v":"7.)"},{"$f":"IF(D153<>\"\",T150+1, T150)","v":7},null,null,null,null,null,null,null,null,null,null,null,null,null,null,null,null,122]
[null,null,null,"witnessing and pressure testing of the abandonment plug.",null,null,null,null,null,null,null,null,null,null,1,"CONV",null,null,null,null,null,null,null,null,null,null,null,null,null,null,null,null,null,null,null,null,123]
[null,null,null,null,null,null,null,null,null,null,null,null,null,null,0,"CONV",null,null,null,null,null,null,null,null,null,null,null,null,null,null,null,null,null,null,null,null,124]
[null,null,{"$f":"IF(D156=\"\",\"\", S156)","v":"8.)"},"Once the well commences injection, Co. is to submit a 5 day initial injection report.",null,null,null,null,null,null,null,null,null,null,1,"CONV",null,null,{"$f":"T156&\".)\"","v":"8.)"},{"$f":"IF(D156<>\"\",T153+1, T153)","v":8},null,null,null,null,null,null,null,null,null,null,null,null,null,null,null,null,125]
[null,null,null,null,null,null,null,null,null,null,null,null,null,null,0,"CONV",null,null,null,null,null,null,null,null,null,null,null,null,null,null,null,null,null,null,null,null,126]
[null,null,null,null,null,null,null,null,null,null,null,null,null,null,0,"CONV",null,null,null,null,null,null,null,null,null,null,null,null,null,null,null,null,null,null,null,null,127]
[null,null,{"$f":"IF(D159=\"\",\"\", S159)","v":"9.)"},"Please contact Landon Fraser at the Waskada District Office to address changes to the flowline license database ",null,null,null,null,null,null,null,null,null,null,1,"CONV",null,null,{"$f":"T159&\".)\"","v":"9.)"},{"$f":"IF(D159<>\"\",T156+1, T156)","v":9},null,null,null,null,null,null,null,null,null,null,null,null,null,null,null,null,128]
[null,null,null,"to  accommodate possible changes in the flowline as a result of the conversion.",null,null,null,null,null,null,null,null,null,null,1,"CONV",null,null,null,null,null,null,null,null,null,null,null,null,null,null,null,null,null,null,null,null,129]
[null,null,null,null,null,null,null,null,null,null,null,null,null,null,0,"CONV",null,null,null,null,null,null,null,null,null,null,null,null,null,null,null,null,null,null,null,null,{"$f":"AK160+1","v":130}]
[null,null,{"$f":"IF(D162=\"\",\"\", S162)","v":"10.)"},"The well(s) is to be operated in accordance with the following Waterflood or Pressure Maintenance No(s).:",null,null,null,null,null,null,null,null,null,null,1,"CONV",null,null,{"$f":"T162&\".)\"","v":"10.)"},{"$f":"IF(D162<>\"\",T159+1, T159)","v":10},null,null,null,null,null,null,null,null,null,null,null,null,null,null,null,null,131]
[null,null,null,"Licence No.","UWI",null,"Unit Name",null,null,null,"WF or PM","No.",null,null,1,"CONV",null,null,null,null,null,null,null,null,null,null,null,null,null,null,null,null,null,null,null,null,132]
[null,null,null,{"$f":" IF(C16=\"\",\"\",C16)","v":""},{"$f":" IF(E16=\"\",\"\",E16)","v":""},{"$f":" IF(E16=\"\",\"\",E16)","v":""},null,null,null,null,{"$f":"IF(D164=\"\",\"\",IF(AD164=1,\"\",IF(AD164=2,\"PM\",\"WF\")))","v":""},null,null,null,0,"CONV",null,null,null,null,null,null,null,null,null,null,null,null,null,3,"PM",null,null,null,null,null,133]
[null,null,null,{"$f":" IF(C17=\"\",\"\",C17)","v":""},{"$f":" IF(E17=\"\",\"\",E17)","v":""},{"$f":" IF(E17=\"\",\"\",E17)","v":""},null,null,null,null,{"$f":"IF(D165=\"\",\"\",IF(AD165=1,\"\",IF(AD165=2,\"PM\",\"WF\")))","v":""},null,null,null,0,"CONV",null,null,null,null,null,null,null,null,null,null,null,null,null,3,"WF",null,null,null,null,null,134]
[null,null,null,"","",{"$f":" IF(E18=\"\",\"\",E18)","v":""},null,null,null,null,"",null,null,null,0,"CONV",null,null,null,null,null,null,null,null,null,null,null,null,null,2,null,null,null,null,null,null,135]
[null,null,null,"","",{"$f":" IF(E19=\"\",\"\",E19)","v":""},null,null,null,null,"",null,null,null,0,"CONV",null,null,null,null,null,null,null,null,null,null,null,null,null,2,null,null,null,null,null,null,136]
[null,null,null,"","",{"$f":" IF(E20=\"\",\"\",E20)","v":""},null,null,null,null,"",null,null,null,0,"CONV",null,null,null,null,null,null,null,null,null,null,null,null,null,3,null,null,null,null,null,null,137]
[null,null,null,"","",{"$f":" IF(E21=\"\",\"\",E21)","v":""},null,null,null,null,"",null,null,null,0,"CONV",null,null,null,null,null,null,null,null,null,null,null,null,null,3,null,null,null,null,null,null,138]
[null,null,null,"","",{"$f":" IF(E22=\"\",\"\",E22)","v":""},null,null,null,null,"",null,null,null,0,"CONV",null,null,null,null,null,null,null,null,null,null,null,null,null,2,null,null,null,null,null,null,139]
[null,null,null,"","",{"$f":" IF(E23=\"\",\"\",E23)","v":""},null,null,null,null,"",null,null,null,0,"CONV",null,null,null,null,null,null,null,null,null,null,null,null,null,3,null,null,null,null,null,null,140]
[null,null,null,null,null,null,null,null,null,null,null,null,null,null,0,"CONV",null,null,null,null,null,null,null,null,null,null,null,null,null,null,null,null,null,null,null,null,141]
[null,null,null,null,null,null,null,null,null,null,null,null,null,null,0,"CONV",null,null,null,null,null,null,null,null,null,null,null,null,null,null,null,null,null,null,null,null,142]
[null,null,{"$f":"IF(D174=\"\",\"\", S174)","v":"11.)"},"Blow-out prevention equipment is be used during the deepening of the well.",null,null,null,null,null,null,null,null,null,null,1,"CONV",null,null,{"$f":"T174&\".)\"","v":"11.)"},{"$f":"IF(D174<>\"\",T162+1, T162)","v":11},null,null,null,null,null,null,null,null,null,null,null,null,null,null,null,null,143]
[null,null,null,null,null,null,null,null,null,null,null,null,null,null,0,"CONV",null,null,null,null,null,null,null,null,null,null,null,null,null,null,null,null,null,null,null,null,144]
[null,null,null,null,null,null,null,null,null,null,null,null,null,null,0,"CONV",null,null,null,null,null,null,null,null,null,null,null,null,null,null,null,null,null,null,null,null,145]
[null,null,{"$f":"IF(D177=\"\",\"\", S177)","v":"12.)"},"Co. is to do a casing integrity assessment and Cement Bond Log on this well(s) and is required to submit the results",null,null,null,null,null,null,null,null,null,null,1,"CONV",null,null,{"$f":"T177&\".)\"","v":"12.)"},{"$f":"IF(D177<>\"\",T174+1, T174)","v":12},null,null,null,null,null,null,null,null,null,null,null,null,null,null,null,null,146]
[null,null,null,"before deepening or drilling out the casing shoe.",null,null,null,null,null,null,null,null,null,null,1,"CONV",null,null,null,null,null,null,null,null,null,null,null,null,null,null,null,null,null,null,null,null,147]
[null,null,null,null,null,null,null,null,null,null,null,null,null,null,0,"CONV",null,null,null,null,null,null,null,null,null,null,null,null,null,null,null,null,null,null,null,null,148]
[null,null,{"$f":"IF(D180=\"\",\"\", S180)","v":"13.)"},"Co. must run full suite of logs from XXXX m to the new TD @ XXXX m (for Lic. XXXX) and from XXXX m to the new TD @",null,null,null,null,null,null,null,null,null,null,1,"CONV",null,null,{"$f":"T180&\".)\"","v":"13.)"},{"$f":"IF(D180<>\"\",T177+1, T177)","v":13},null,null,null,null,null,null,null,null,null,null,null,null,null,null,null,null,149]
[null,null,null,"XXXX m (for Lic. XXXX) in accordance with Section 113(1) of the Drilling and Production Regulation.",null,null,null,null,null,null,null,null,null,null,{"$f":"IF(D181=\"\",0,1)","v":1},"CONV",null,null,null,null,null,null,null,null,null,null,null,null,null,null,null,null,null,null,null,null,150]
[null,null,null,null,null,null,null,null,null,null,null,null,null,null,0,"CONV",null,null,null,null,null,null,null,null,null,null,null,null,null,null,null,null,null,null,null,null,151]
[null,null,{"$f":"IF(D183=\"\",\"\", S183)","v":""},null,null,null,null,null,null,null,null,null,null,null,0,"CONV",null,null,{"$f":"T183&\".)\"","v":"13.)"},{"$f":"IF(D183<>\"\",T180+1, T180)","v":13},null,null,null,null,null,null,null,null,null,null,null,null,null,null,null,null,152]
[null,null,null,null,null,null,null,null,null,null,null,null,null,null,0,"CONV",null,null,null,null,null,null,null,null,null,null,null,null,null,null,null,null,null,null,null,null,153]
[null,null,null,null,null,null,null,null,null,null,null,null,null,null,0,"CONV",null,null,null,null,null,null,null,null,null,null,null,null,null,null,null,null,null,null,null,null,154]
[null,null,{"$f":"IF(D186=\"\",\"\", S186)","v":""},null,null,null,null,null,null,null,null,null,null,null,0,"CONV",null,null,{"$f":"T186&\".)\"","v":"13.)"},{"$f":"IF(D186<>\"\",T183+1, T183)","v":13},null,null,null,null,null,null,null,null,null,null,null,null,null,null,null,null,155]
[null,null,null,null,null,null,null,null,null,null,null,null,null,null,0,"CONV",null,null,null,null,null,null,null,null,null,null,null,null,null,null,null,null,null,null,null,null,156]
[null,null,null,null,null,null,null,null,null,null,null,null,null,null,0,"CONV",null,null,null,null,null,null,null,null,null,null,null,null,null,null,null,null,null,null,null,null,157]
[null,null,{"$f":"IF(D189=\"\",\"\", S189)","v":""},null,null,null,null,null,null,null,null,null,null,null,0,"CONV",null,null,{"$f":"T189&\".)\"","v":"13.)"},{"$f":"IF(D189<>\"\",T186+1, T186)","v":13},null,null,null,null,null,null,null,null,null,null,null,null,null,null,null,null,158]
[null,null,null,null,null,null,null,null,null,null,null,null,null,null,0,"CONV",null,null,null,null,null,null,null,null,null,null,null,null,null,null,null,null,null,null,null,null,159]
[null,null,null,null,null,null,null,null,null,null,null,null,null,null,0,"CONV",null,null,null,null,null,null,null,null,null,null,null,null,null,null,null,null,null,null,null,null,160]
[null,null,null,null,null,null,null,null,null,null,null,null,null,null,0,"CONV",null,null,null,null,null,null,null,null,null,null,null,null,null,null,null,null,null,null,null,null,161]
[null,null,null,null,null,null,null,null,null,null,null,null,null,null,0,"CONV",null,null,null,null,null,null,null,null,null,null,null,null,null,null,null,null,null,null,null,null,162]
[null,null,{"$f":"IF(D194=\"\",\"\", S194)","v":"1.)"},"The Field District office is to be notified prior to commencing operations. All pressure tests must be witnessed by ",null,null,null,null,null,null,null,null,null,"SUSPENSION",1,"SUSP",null,null,{"$f":"T194&\".)\"","v":"1.)"},1,null,null,null,null,null,null,null,null,null,null,null,null,null,null,null,null,163]
[null,null,null,"an Inspector.",null,null,null,null,null,null,null,null,null,null,1,"SUSP",null,null,null,null,null,"3 yrs from today","3 yr days","today","2.5 yr days","2.5 yrs from today",null,null,null,null,null,null,null,null,null,null,164]
[null,null,null,null,null,null,null,null,null,null,null,null,null,null,0,"SUSP",null,null,null,null,null,{"$f":"W196+X196","v":44760.113222453707},1095.75,{"$f":"C527","v":43664.363222453707},913.125,{"$f":"X196+Y196","v":44577.488222453707},null,null,null,null,null,null,null,null,null,null,165]
[null,null,{"$f":"IF(D197=\"\",\"\", S197)","v":"2.)"},"To obtain an official suspended status, Co. must inform the Field  district office of the completion of the  ",null,null,null,null,null,null,null,null,null,null,1,"SUSP",null,null,{"$f":"T197&\".)\"","v":"2.)"},{"$f":"IF(D197<>\"\",T194+1, T194)","v":2},null,{"$f":"V196","v":"2026-07-19T02:43:02.420"},null,{"$f":"X196","v":"2023-07-19T08:43:02.420"},null,{"$f":"Z196","v":"2026-01-17T11:43:02.420"},null,null,null,null,null,null,null,null,null,null,166]
[null,null,null,{"$f":"\"approved suspension operations. Co. will then be granted a suspension status until July 1, \"&X202&\". Co. is to\"","v":"approved suspension operations. Co. will then be granted a suspension status until July 1, 2026. Co. is to"},null,null,null,null,null,null,null,null,null,null,1,"SUSP",null,null,null,null,null,{"$f":"EOMONTH(V197,0)","v":44772},null,null,null,{"$f":"EOMONTH(Z197,0)","v":44591},null,null,null,null,null,null,null,null,null,null,167]
[null,null," ",{"$f":"\"submit an application to reactivate, suspend or abandon  the well to the Petroleum Branch by June 1, \"&X202&\".\"","v":"submit an application to reactivate, suspend or abandon  the well to the Petroleum Branch by June 1, 2026."},null,null,null,null,null,null,null,null,null,null,1,"SUSP",null,null,null,null,null,{"$f":"V198","v":"2026-07-31"},null,null,null,{"$f":"Z198","v":"2026-01-31"},null,null,null,null,null,null,null,null,null,null,168]
[null,null,null,null,null,null,null,null,null,null,null,null,null,null,0,"SUSP",null,null,null,null,null,{"$f":"YEAR(V197)","v":2026},null,null,null,{"$f":"YEAR(Z197)","v":2026}]
[null,null,{"$f":"IF(D201=\"\",\"\", S201)","v":"3.)"},"The Petroleum Branch recommendation is to use a permanent bridge plug set at  proper abandonment depth in lieu ",null,null,null,null,null,null,null,null,null,null,1,"SUSP",null,null,{"$f":"T201&\".)\"","v":"3.)"},{"$f":"IF(D201<>\"\",T197+1, T197)","v":3},"month-->>",{"$f":"MONTH(V197)","v":7},null,{"$f":"MONTH(X197)","v":7},null,{"$f":"MONTH(Z197)","v":1},"<<--month",null,null,null,null,null,null,null,null,null,{"$f":"AK199+1","v":169}]
[null,null,null,"of a retrievable bridge plug  should Co. opt to officially abandon the well at later date, as per  Sections 47 and   ",null,null,null,null,null,null,null,null,null,null,1,"SUSP",null,null,null,null,null,null,null,{"$f":"IF(6<X201<=12,Z200,V200)","v":2026},null,null,null,null,null,null,null,null,null,null,null,null,170]
[null,null,null,"56 of the Drilling and Production Regulation.",null,null,null,null,null,null,null,null,null,null,1,"SUSP",null,null,null,null,null,null,null,null,null,null,null,null,null,null,null,null,null,null,null,null,171]
[null,null,null,null,null,null,null,null,null,null,null,null,null,null,0,"SUSP"]
[null,null,{"$f":"IF(D205=\"\",\"\", S205)","v":"4.)"},"As per Section 98 of the regulation, Co. is required to suspend any inactive flowlines  associated with this well, ",null,null,null,null,null,null,null,null,null,null,1,"SUSP",null,null,{"$f":"T205&\".)\"","v":"4.)"},{"$f":"IF(D205<>\"\",T201+1, T201)","v":4},null,null,null,null,null,null,null,null,null,null,null,null,null,null,null,null,{"$f":"AK203+1","v":172}]
[null,null,null,"at the  time the well is suspended. Co. must submit a report of the flowline suspension to the Waskada district ",null,null,null,null,null,null,null,null,null,null,1,"SUSP",null,null,null,null,null,null,null,null,null,null,null,null,null,null,null,null,null,null,null,null,173]
[null,null,null,"office.",null,null,null,null,null,null,null,null,null,null,1,"SUSP",null,null,null,null,null,null,null,null,null,null,null,null,null,null,null,null,null,null,null,null,174]
[null,null,null,null,null,null,null,null,null,null,null,null,null,null,0,"SUSP"]
[null,null,{"$f":"IF(D209=\"\",\"\", S209)","v":"5.)"},"To obtain an official suspended status, Co. must inform the Field  district office of the completion of the ",null,null,null,null,null,null,null,null,null,null,1,"SUSP",null,null,{"$f":"T209&\".)\"","v":"5.)"},{"$f":"IF(D209<>\"\",T205+1, T205)","v":5},null,null,null,null,null,null,null,null,null,null,null,null,null,null,null,null,{"$f":"AK207+1","v":175}]
[null,null,null,{"$f":"\"approved suspension operations. Co. will then be granted a suspension status until July 1, \"&X202&\". Co. is to\"","v":"approved suspension operations. Co. will then be granted a suspension status until July 1, 2026. Co. is to"},null,null,null,null,null,null,null,null,null,null,1,"SUSP",null,null,null,null,null,null,null,null,null,null,null,null,null,null,null,null,null,null,null,null,176]
[null,null,null,{"$f":"\"submit an application to reactivate, suspend or abandon  the well to the Petroleum Branch by June 1, \"&X202&\". If the\"","v":"submit an application to reactivate, suspend or abandon  the well to the Petroleum Branch by June 1, 2026. If the"},null,null,null,null,null,null,null,null,null,null,1,"SUSP",null,null,null,null,null,null,null,null,null,null,null,null,null,null,null,null,null,null,null,null,177]
[null,null,null,"pressure test indicates a hole in the casing, the director may require that the casing be repaired or the well abandon.",null,null,null,null,null,null,null,null,null,null,1,"SUSP",null,null,null,null,null,null,null,null,null,null,null,null,null,null,null,null,null,null,null,null,178]
[null,null,null,null,null,null,null,null,null,null,null,null,null,null,0,"SUSP",null,null,null,null,null,null,null,null,null,null,null,null,null,null,null,null,null,null,null,null,179]
[null,null,{"$f":"IF(D214=\"\",\"\", S214)","v":"6.)"},"The flowline(s) is to be suspended as per attached flowline suspension form(s) for Lic.: XXXX, XXXX, XXXX & XXXX only.",null,null,null,null,null,null,null,null,null,null,1,"SUSP",null,null,{"$f":"T214&\".)\"","v":"6.)"},{"$f":"IF(D214<>\"\",T209+1, T209)","v":6},null,null,null,null,null,null,null,null,null,null,null,null,null,null,null,null,180]
[null,null,null,null,null,null,null,null,null,null,null,null,null,null,0,"SUSP",null,null,null,null,null,null,null,null,null,null,null,null,null,null,null,null,null,null,null,null,181]
[null,null,null,null,null,null,null,null,null,null,null,null,null,null,0,"SUSP",null,null,null,null,null,null,null,null,null,null,null,null,null,null,null,null,null,null,null,null,182]
[null,null,null,null,null,null,null,null,null,null,null,null,null,null,0,"SUSP",null,null,null,null,null,null,null,null,null,null,null,null,null,null,null,null,null,null,null,null,183]
[null,null,{"$f":"IF(D218=\"\",\"\", S218)","v":"7.)"},"Our records indicate  that these well(s) have been shut-in for more than three years. As per Informational Notice",null,null,null,null,null,null,null,null,null,null,1,"SUSP",null,null,{"$f":"T218&\".)\"","v":"7.)"},{"$f":"IF(D218<>\"\",T214+1, T214)","v":7},null,null,null,null,null,null,null,null,null,null,null,null,null,null,null,null,184]
[null,null,null,"No. 94-5, the respective bridge plugs  are to be set 5m TVD above the top of Lower Amaranth not lower than the",null,null,null,null,null,null,null,null,null,null,1,"SUSP",null,null,null,null,null,null,null,null,null,null,null,null,null,null,null,null,null,null,null,null,185]
[null,null,null,"following setting depths:",null,null,null,null,null,null,null,null,null,null,1,"SUSP",null,null,null,null,null,null,null,null,null,null,null,null,null,null,null,null,null,null,null,null,186]
[null,null,null,"Licence  No.","Unique Well Identifier",null,"Official Suspension Date",null,"L.Am. Top (mTVD)",null,"Bridge Plug Setting Depth",null,null,null,1,"SUSP",null,null,null,null,null,null,null,null,null,null,null,null,null,null,null,null,null,null,null,null,187]
[null,null,null,null,null,null,null,null,null,null,"mTVD",null,"mKB",null,1,"SUSP",null,null,null,null,null,null,null,null,null,null,null,null,null,null,null,null,null,null,null,null,188]
[null,null,null,{"$f":"IF(C16=\"\",\"\", C16)","v":""},{"$f":"IF(E16=\"\",\"\", E16)","v":""},{"$f":"IF(E16=\"\",\"\", E16)","v":""},null,null,null,null,null,null,null,null,0,"SUSP",null,null,null,null,null,null,null,null,null,null,null,null,null,null,null,null,null,null,null,null,189]
[null,null,null,"",{"$f":"IF(E17=\"\",\"\", E17)","v":""},{"$f":"IF(E17=\"\",\"\", E17)","v":""},null,null,null,null,null,null,null,null,0,"SUSP",null,null,null,null,null,null,null,null,null,null,null,null,null,null,null,null,null,null,null,null,190]
[null,null,null,"","","",null,null,null,null,null,null,null,null,0,"SUSP",null,null,null,null,null,null,null,null,null,null,null,null,null,null,null,null,null,null,null,null,191]
[null,null,null,"","","",null,null,null,null,null,null,null,null,0,"SUSP",null,null,null,null,null,null,null,null,null,null,null,null,null,null,null,null,null,null,null,null,192]
[null,null,null,"","","",null,null,null,null,null,null,null,null,0,"SUSP",null,null,null,null,null,null,null,null,null,null,null,null,null,null,null,null,null,null,null,null,193]
[null,null,null,"","","",null,null,null,null,null,null,null,null,0,"SUSP",null,null,null,null,null,null,null,null,null,null,null,null,null,null,null,null,null,null,null,null,{"$f":"AK227+1","v":194}]
[null,null,null,"","","",null,null,null,null,null,null,null,null,0,"SUSP",null,null,null,null,null,null,null,null,null,null,null,null,null,null,null,null,null,null,null,null,{"$f":"AK228+1","v":195}]
[null,null,null,"","","",null,null,null,null,null,null,null,null,0,"SUSP",null,null,null,null,null,null,null,null,null,null,null,null,null,null,null,null,null,null,null,null,{"$f":"AK229+1","v":196}]
[null,null,{"$f":"IF(D231=\"\",\"\", S231)","v":""},null,null,null,null,null,null,null,null,null,null,null,0,"SUSP",null,null,{"$f":"T231&\".)\"","v":"7.)"},{"$f":"IF(D231<>\"\",T218+1, T218)","v":7}]
[null,null,null,null,null,null,null,null,null,null,null,null,null,null,0,"SUSP"]
[null,null,null,null,null,null,null,null,null,null,null,null,null,null,0,"SUSP"]
[null,null,null,null,null,null,null,null,null,null,null,null,null,null,0,"SUSP"]
[null,null,{"$f":"IF(D235=\"\",\"\", S235)","v":"8.)"},"Due to the absence of Lower Amaranth in this area, the Petroleum Branch recommendation is to use a retrievable ",null,null,null,null,null,null,null,null,null,null,1,"SUSP",null,null,{"$f":"T235&\".)\"","v":"8.)"},{"$f":"IF(D235<>\"\",T231+1, T231)","v":8}]
[null,null,null,"or drillable bridge plug. Tundra should drill out or retrieve then replace the plug with cement post (to be determined)",null,null,null,null,null,null,null,null,null,null,1,"SUSP"]
[null,null,null,"if the well will be abandoned in the future.",null,null,null,null,null,null,null,null,null,null,1,"SUSP"]
[null,null,null,null,null,null,null,null,null,null,null,null,null,null,0,"SUSP"]
[null,null,{"$f":"IF(D239=\"\",\"\", S239)","v":"9.)"},"Because this well is located in an area where the Lower Amaranth is not present, Co. is to set a bridge plug within 5 m",null,null,null,null,null,null,null,null,null,null,1,"SUSP",null,null,{"$f":"T239&\".)\"","v":"9.)"},{"$f":"IF(D239<>\"\",T235+1, T235)","v":9}]
[null,null,null,"from the topmost perforations. ",null,null,null,null,null,null,null,null,null,null,1,"SUSP"]
[null,null,{"$f":"IF(D241=\"\",\"\", S241)","v":"10.)"},"Because this well is located in an area where the Lower Amaranth is not present, Co. is to set a bridge plug as low",null,null,null,null,null,null,null,null,null,null,1,"SUSP",null,null,{"$f":"T241&\".)\"","v":"10.)"},{"$f":"IF(D241<>\"\",T239+1, T239)","v":10},null,null,null,null,null,null,null,null,null,null,null,null,null,null,null,null,{"$f":"AK230+1","v":197}]
[null,null,null,"as possible or within 5 m from the topmost of the perforations or open hole.",null,null,null,null,null,null,null,null,null,null,1,"SUSP",null,null,null,null,null,null,null,null,null,null,null,null,null,null,null,null,null,null,null,null,{"$f":"AK241+1","v":198}]
[null,null,null,null,null,null,null,null,null,null,null,null,null,null,0,"SUSP",null,null,null,null,null,null,null,null,null,null,null,null,null,null,null,null,null,null,null,null,199]
[null,null,{"$f":"IF(D244=\"\",\"\", S244)","v":"1.)"},"The Field District office must be notified 24 hours prior to commencing operations.",null,null,null,null,null,null,null,null,null,"RECOMPLETION",1,"RECOMP",null,null,{"$f":"T244&\".)\"","v":"1.)"},1,null,null,null,null,null,null,null,null,null,null,null,null,null,null,null,null,200]
[null,null,null,null,null,null,null,null,null,null,null,null,null,null,{"$f":"IF(D245=\"\",0,1)","v":0},"RECOMP",null,null,null,null,null,null,null,null,null,null,null,null,null,null,null,null,null,null,null,null,201]
[null,null,null,null,null,null,null,null,null,null,null,null,null,null,0,"RECOMP",null,null,null,null,null,null,null,null,null,null,null,null,null,null,null,null,null,null,null,null,202]
[null,null,null,null,null,null,null,null,null,null,null,null,null,null,0,"RECOMP",null,null,null,null,null,null,null,null,null,null,null,null,null,null,null,null,null,null,null,null,203]
[null,null,{"$f":"IF(D248=\"\",\"\", S248)","v":"2.)"},"All pressure tests must be witnessed by an Inspector from the Field District Office.",null,null,null,null,null,null,null,null,null,null,1,"RECOMP",null,null,{"$f":"T248&\".)\"","v":"2.)"},{"$f":"IF(D248<>\"\",T244+1, T244)","v":2},null,null,null,null,null,null,null,null,null,null,null,null,null,null,null,null,204]
[null,null,null,null,null,null,null,null,null,null,null,null,null,null,0,"RECOMP",null,null,null,null,null,null,null,null,null,null,null,null,null,null,null,null,null,null,null,null,205]
[null,null,null,null,null,null,null,null,null,null,null,null,null,null,0,"RECOMP",null,null,null,null,null,null,null,null,null,null,null,null,null,null,null,null,null,null,null,null,206]
[null,null,null,null,null,null,null,null,null,null,null,null,null,null,0,"RECOMP",null,null,null,null,null,null,null,null,null,null,null,null,null,null,null,null,null,null,null,null,207]
[null,null,{"$f":"IF(D252=\"\",\"\", S252)","v":"3.)"},"Blow-out prevention equipment is to be used during the deepening of the well.",null,null,null,null,null,null,null,null,null,null,1,"RECOMP",null,null,{"$f":"T252&\".)\"","v":"3.)"},{"$f":"IF(D252<>\"\",T248+1, T248)","v":3},null,null,null,null,null,null,null,null,null,null,null,null,null,null,null,null,208]
[null,null,null,null,null,null,null,null,null,null,null,null,null,null,0,"RECOMP",null,null,null,null,null,null,null,null,null,null,null,null,null,null,null,null,null,null,null,null,209]
[null,null,null,null,null,null,null,null,null,null,null,null,null,null,0,"RECOMP",null,null,null,null,null,null,null,null,null,null,null,null,null,null,null,null,null,null,null,null,210]
[null,null,null,null,null,null,null,null,null,null,null,null,null,null,0,"RECOMP",null,null,null,null,null,null,null,null,null,null,null,null,null,null,null,null,null,null,null,null,211]
[null,null,{"$f":"IF(D256=\"\",\"\", S256)","v":"4.)"},"All pressure tests and the abandonment of the Formation perforations must be witnessed by an inspector from the ",null,null,null,null,null,null,null,null,null,null,1,"RECOMP",null,null,{"$f":"T256&\".)\"","v":"4.)"},{"$f":"IF(D256<>\"\",T252+1, T252)","v":4},null,null,null,null,null,null,null,null,null,null,null,null,null,null,null,null,212]
[null,null,null,"Field District office.",null,null,null,null,null,null,null,null,null,null,1,"RECOMP",null,null,null,null,null,null,null,null,null,null,null,null,null,null,null,null,null,null,null,null,213]
[null,null,null,null,null,null,null,null,null,null,null,null,null,null,0,"RECOMP",null,null,null,null,null,null,null,null,null,null,null,null,null,null,null,null,null,null,null,null,214]
[null,null,null,null,null,null,null,null,null,null,null,null,null,null,0,"RECOMP",null,null,null,null,null,null,null,null,null,null,null,null,null,null,null,null,null,null,null,null,215]
[null,null,{"$f":"IF(D260=\"\",\"\", S260)","v":"5.)"},"Once the well commences water production, Co. is to submit a 5 day initial production report. The form can be ",null,null,null,null,null,null,null,null,null,null,1,"RECOMP",null,null,{"$f":"T260&\".)\"","v":"5.)"},{"$f":"IF(D260<>\"\",T256+1, T256)","v":5},null,null,null,null,null,null,null,null,null,null,null,null,null,null,null,null,216]
[null,null,null,"found on our website at: ",null,null,null,null,null,null,null,null,null,null,1,"RECOMP",null,null,null,null,null,null,null,null,null,null,null,null,null,null,null,null,null,null,null,null,217]
[null,null,null,"www.manitoba.ca/iem/petroleum/forms/intprod.pdf",null,null,null,null,null,null,null,null,null,null,1,"RECOMP",null,null,null,null,null,null,null,null,null,null,null,null,null,null,null,null,null,null,null,null,218]
[null,null,null,"Co. is also required to provide an analysis of the produced water. The analysis should, include the cations: NA, K, ",null,null,null,null,null,null,null,null,null,null,1,"RECOMP",null,null,null,null,null,null,null,null,null,null,null,null,null,null,null,null,null,null,null,null,219]
[null,null,null,"Ca, Mg, and Fe, the anions: Cl, HCO3, SO4, CO3, OH and also TDS, pH H2S, relative density, resistivity, salinity and ",null,null,null,null,null,null,null,null,null,null,1,"RECOMP",null,null,null,null,null,null,null,null,null,null,null,null,null,null,null,null,null,null,null,null,220]
[null,null,null,"Total Alkalinity as CaCO3.",null,null,null,null,null,null,null,null,null,null,1,"RECOMP",null,null,null,null,null,null,null,null,null,null,null,null,null,null,null,null,null,null,null,null,221]
[null,null,null,null,null,null,null,null,null,null,null,null,null,null,0,"RECOMP",null,null,null,null,null,null,null,null,null,null,null,null,null,null,null,null,null,null,null,null,222]
[null,null,{"$f":"IF(D267=\"\",\"\", S267)","v":"6.)"},"Co. is required to submit a monthly water production report. Please contact Heather Tisdale at 204-945-3905.",null,null,null,null,null,null,null,null,null,null,1,"RECOMP",null,null,{"$f":"T267&\".)\"","v":"6.)"},{"$f":"IF(D267<>\"\",T260+1, T260)","v":6},null,null,null,null,null,null,null,null,null,null,null,null,null,null,null,null,223]
[null,null,null,null,null,null,null,null,null,null,null,null,null,null,0,"RECOMP",null,null,null,null,null,null,null,null,null,null,null,null,null,null,null,null,null,null,null,null,224]
[null,null,{"$f":"IF(D269=\"\",\"\", S269)","v":"7.)"},"The logging waiver for Licence(s) XXXX, XXXX, XXXXX has been denied. There are insufficient surrounding wells in",null,null,null,null,null,null,null,null,null,null,1,"RECOMP",null,null,{"$f":"T269&\".)\"","v":"7.)"},{"$f":"IF(D269<>\"\",T267+1, T267)","v":7},null,null,null,null,null,null,null,null,null,null,null,null,null,null,null,null,225]
[null,null,null," this area, logged to XXXXm depth, to allow accurate coding and assessment of the producing formation in this well.",null,null,null,null,null,null,null,null,null,null,1,"RECOMP",null,null,null,null,null,null,null,null,null,null,null,null,null,null,null,null,null,null,null,null,226]
[null,null,null,null,null,null,null,null,null,null,null,null,null,null,0,"RECOMP",null,null,null,null,null,null,null,null,null,null,null,null,null,null,null,null,null,null,null,null,227]
[null,null,{"$f":"IF(D272=\"\",\"\", S272)","v":"8.)"},"The recompletion of this well does not qualify under the Marginal Well Major Workover Incentive program.",null,null,null,null,null,null,null,null,null,null,1,"RECOMP",null,null,{"$f":"T272&\".)\"","v":"8.)"},{"$f":"IF(D272<>\"\",T269+1, T269)","v":8},null,null,null,null,null,null,null,null,null,null,null,null,null,null,null,null,228]
[null,null,null,null,null,null,null,null,null,null,null,null,null,null,0,"RECOMP",null,null,null,null,null,null,null,null,null,null,null,null,null,null,null,null,null,null,null,null,229]
[null,null,null,null,null,null,null,null,null,null,null,null,null,null,0,"RECOMP",null,null,null,null,null,null,null,null,null,null,null,null,null,null,null,null,null,null,null,null,{"$f":"AK273+1","v":230}]
[null,null,null,null,null,null,null,null,null,null,null,null,null,null,0,"RECOMP",null,null,null,null,null,null,null,null,null,null,null,null,null,null,null,null,null,null,null,null,231]
[null,null,{"$f":"IF(D276=\"\",\"\", S276)","v":"9.)"},"If the well is productive in the Formation, then Co. must submit an Initial Production Report along with the ",null,null,null,null,null,null,null,null,null,null,1,"RECOMP",null,null,{"$f":"T276&\".)\"","v":"9.)"},{"$f":"IF(D276<>\"\",T272+1, T272)","v":9},null,null,null,null,null,null,null,null,null,null,null,null,null,null,null,null,232]
[null,null,null,"completion reports to the Branch as per Informational Notice 13-05. ",null,null,null,null,null,null,null,null,null,null,1,"RECOMP",null,null,null,null,null,null,null,null,null,null,null,null,null,null,null,null,null,null,null,null,233]
[null,null,null,null,null,null,null,null,null,null,null,null,null,null,0,"RECOMP",null,null,null,null,null,null,null,null,null,null,null,null,null,null,null,null,null,null,null,null,234]
[null,null,null,null,null,null,null,null,null,null,null,null,null,null,0,"RECOMP",null,null,null,null,null,null,null,null,null,null,null,null,null,null,null,null,null,null,null,null,235]
[null,null,{"$f":"IF(D280=\"\",\"\", S280)","v":"10.)"},"Co. is to submit all recompletion information as per Informational Notice 13-05.  Please ensure that the ",null,null,null,null,null,null,null,null,null,null,1,"RECOMP",null,null,{"$f":"T280&\".)\"","v":"10.)"},{"$f":"IF(D280<>\"\",T276+1, T276)","v":10},null,null,null,null,null,null,null,null,null,null,null,null,null,null,null,null,236]
[null,null,null,"following is included in the subject line of your email: Company name, well licence #, location (bottomhole) and the",null,null,null,null,null,null,null,null,null,null,1,"RECOMP",null,null,null,null,null,null,null,null,null,null,null,null,null,null,null,null,null,null,null,null,237]
[null,null,null," type of report (see Appendix 1) for logs see Appendix 3.",null,null,null,null,null,null,null,null,null,null,1,"RECOMP",null,null,null,null,null,null,null,null,null,null,null,null,null,null,null,null,null,null,null,null,238]
[null,null,null,null,null,null,null,null,null,null,null,null,null,null,0,"RECOMP",null,null,null,null,null,null,null,null,null,null,null,null,null,null,null,null,null,null,null,null,239]
[null,null,{"$f":"IF(D284=\"\",\"\", S284)","v":"11.)"},"If the well production is commingled, then for consistency with other commingled wells, oil production is to be ",null,null,null,null,null,null,null,null,null,null,1,"RECOMP",null,null,{"$f":"T284&\".)\"","v":"11.)"},{"$f":"IF(D284<>\"\",T280+1, T280)","v":11},null,null,null,null,null,null,null,null,null,null,null,null,null,null,null,null,240]
[null,null,null,"allocated to each zone by use of density and sulfur analysis. This analysis is to be performed when the well goes on ",null,null,null,null,null,null,null,null,null,null,1,"RECOMP",null,null,null,null,null,null,null,null,null,null,null,null,null,null,null,null,null,null,null,null,241]
[null,null,null,"production and on a quarterly basis thereafter.",null,null,null,null,null,null,null,null,null,null,1,"RECOMP",null,null,null,null,null,null,null,null,null,null,null,null,null,null,null,null,null,null,null,null,242]
[null,null,null,null,null,null,null,null,null,null,null,null,null,null,0,"RECOMP",null,null,null,null,null,null,null,null,null,null,null,null,null,null,null,null,null,null,null,null,243]
[null,null,{"$f":"IF(D288=\"\",\"\", S288)","v":"12.)"},"All water production will be allocated to the Mississippian.",null,null,null,null,null,null,null,null,null,null,1,"RECOMP",null,null,{"$f":"T288&\".)\"","v":"12.)"},{"$f":"IF(D288<>\"\",T284+1, T284)","v":12},null,null,null,null,null,null,null,null,null,null,null,null,null,null,null,null,244]
[null,null,null,null,null,null,null,null,null,null,null,null,null,null,0,"RECOMP",null,null,null,null,null,null,null,null,null,null,null,null,null,null,null,null,null,null,null,null,245]
[null,null,null,null,null,null,null,null,null,null,null,null,null,null,0,"RECOMP",null,null,null,null,null,null,null,null,null,null,null,null,null,null,null,null,null,null,null,null,246]
[null,null,null,null,null,null,null,null,null,null,null,null,null,null,0,"RECOMP",null,null,null,null,null,null,null,null,null,null,null,null,null,null,null,null,null,null,null,null,247]
[null,null,{"$f":"IF(D292=\"\",\"\", S292)","v":"13.)"},"Oil and Gas Production Tax is to be calculated separately for each zone based on production allocated to that zone ",null,null,null,null,null,null,null,null,null,null,1,"RECOMP",null,null,{"$f":"T292&\".)\"","v":"13.)"},{"$f":"IF(D292<>\"\",T288+1, T288)","v":13},null,null,-365,null,null,null,null,null,null,null,null,null,null,null,null,null,248]
[null,null,null,{"$f":"\"using methodology shown in condition no. \"&C284","v":"using methodology shown in condition no. 11.)"},null,null,null,null,null,null,null,null,null,null,1,"RECOMP",null,null,null,null,null,null,-364,null,null,null,null,null,null,null,null,null,null,null,null,null,249]
[null,null,null,null,null,null,null,null,null,null,null,null,null,null,0,"RECOMP",null,null,null,null,null,null,-363,null,null,null,null,null,null,null,null,null,null,null,null,null,250]
[null,null,null,null,null,null,null,null,null,null,null,null,null,null,0,"RECOMP",null,null,null,null,null,null,-362,null,null,null,null,null,null,null,null,null,null,null,null,null,251]
[null,null,{"$f":"IF(D296=\"\",\"\", S296)","v":"14.)"}," Producing fluid levels are to be monitored monthly. Every effort is to be made to keep these levels as low as possible.",null,null,null,null,null,null,null,null,null,null,1,"RECOMP",null,null,{"$f":"T296&\".)\"","v":"14.)"},{"$f":"IF(D296<>\"\",T292+1, T292)","v":14},null,null,-361,null,null,null,null,null,null,null,null,null,null,null,null,null,252]
[null,null,null,null,null,null,null,null,null,null,null,null,null,null,0,"RECOMP"]
[null,null,null,null,null,null,null,null,null,null,null,null,null,null,0,"RECOMP"]
[null,null,null,null,null,null,null,null,null,null,null,null,null,null,0,"RECOMP"]
[null,null,{"$f":"IF(D300=\"\",\"\", S300)","v":"15.)"},"An annual status report as per Subsection 52(6) of the Drilling and Production Regulation, including all production ",null,null,null,null,null,null,null,null,null,null,1,"RECOMP",null,null,{"$f":"T300&\".)\"","v":"15.)"},{"$f":"IF(D300<>\"\",T296+1, T296)","v":15}]
[null,null,null,"tests, oil analysis, pressure surveys, fluid levels and other related data is to be submitted to the Branch no later than ",null,null,null,null,null,null,null,null,null,null,1,"RECOMP"]
[null,null,null,"April 30 of each year. ",null,null,null,null,null,null,null,null,null,null,1,"RECOMP"]
[null,null,null,null,null,null,null,null,null,null,null,null,null,null,0,"RECOMP"]
[null,null,{"$f":"IF(D304=\"\",\"\", S304)","v":"16.)"},"In accordance with 196(2) of the Oil and Gas Act, Co. is required to submit all data obtained from the well including ",null,null,null,null,null,null,null,null,null,null,1,"RECOMP",null,null,{"$f":"T304&\".)\"","v":"16.)"},{"$f":"IF(D304<>\"\",T300+1, T300)","v":16}]
[null,null,null,"pressure surveys, report of the initial flow test and a copy of any gas analysis.",null,null,null,null,null,null,null,null,null,null,1,"RECOMP"]
[null,null,null,null,null,null,null,null,null,null,null,null,null,null,0,"RECOMP"]
[null,null,null,null,null,null,null,null,null,null,null,null,null,null,0,"RECOMP"]
[null,null,{"$f":"IF(D308=\"\",\"\", S308)","v":"17.)"},"Co. must submit all completion tours to the Petroleum Branch as soon as the work has been completed as per ",null,null,null,null,null,null,null,null,null,null,1,"RECOMP",null,null,{"$f":"T308&\".)\"","v":"17.)"},{"$f":"IF(D308<>\"\",T304+1, T304)","v":17}]
[null,null,null,"Informational Notice 13-05. This can be found on our website at: ",null,null,null,null,null,null,null,null,null,null,{"$f":"IF(D309=\"\",0,1)","v":1},"RECOMP"]
[null,null,null,"www.gov.mb.ca/iem/petroleum/infonotes/13-05v4.pdf",null,null,null,null,null,null,null,null,null,null,1,"RECOMP"]
[null,null,null,null,null,null,null,null,null,null,null,null,null,null,0,"RECOMP"]
[null,null,{"$f":"IF(D312=\"\",\"\", S312)","v":"18.)"},"Our records indicate the top of the Lower Amaranth to be at XXXX m., therefore the bottom plug is to be set ",null,null,null,null,null,null,null,null,null,null,1,"RECOMP",null,null,{"$f":"T312&\".)\"","v":"18.)"},{"$f":"IF(D312<>\"\",T308+1, T308)","v":18}]
[null,null,null,"approximately 5 m above the top of the Lower Amaranth, at a depth not lower than XXXX m.",null,null,null,null,null,null,null,null,null,null,1,"RECOMP"]
[null,null,null,null,null,null,null,null,null,null,null,null,null,null,0,"RECOMP"]
[null,null,null,null,null,null,null,null,null,null,null,null,null,null,0,"RECOMP"]
[null,null,{"$f":"IF(D316=\"\",\"\", S316)","v":"19.)"},"The bridge plug above the new perforations is to be set at a depth of XXXX m. After the plug is set, the plug is to be ",null,null,null,null,null,null,null,null,null,null,1,"RECOMP",null,null,{"$f":"T316&\".)\"","v":"19.)"},{"$f":"IF(D316<>\"\",T312+1, T312)","v":19}]
[null,null,null,"successfully pressure tested to 3 500 kPa prior to being capped with 8 m cement.",null,null,null,null,null,null,null,null,null,null,1,"RECOMP"]
[null,null,null,null,null,null,null,null,null,null,null,null,null,null,0,"RECOMP"]
[null,null,{"$f":"IF(D319=\"\",\"\", S319)","v":"20.)"},"If Co. is unable to achieve circulation after perforating, then Co. is required to contact the Field District office prior ",null,null,null,null,null,null,null,null,null,null,1,"RECOMP",null,null,{"$f":"T319&\".)\"","v":"20.)"},{"$f":"IF(D319<>\"\",T316+1, T316)","v":20}]
[null,null,null,"to continuing with the uphole abandonment.",null,null,null,null,null,null,null,null,null,null,1,"RECOMP"]
[null,null,null,null,null,null,null,null,null,null,null,null,null,null,0,"RECOMP"]
[null,null,null,null,null,null,null,null,null,null,null,null,null,null,0,"RECOMP"]
[null,null,{"$f":"IF(D323=\"\",\"\", S323)","v":"21.)"},"The top of the uphole abandonment plug should be tagged at a depth at or above XXXXm. ",null,null,null,null,null,null,null,null,null,null,1,"RECOMP",null,null,{"$f":"T323&\".)\"","v":"21.)"},{"$f":"IF(D323<>\"\",T319+1, T319)","v":21}]
[null,null,null,null,null,null,null,null,null,null,null,null,null,null,0,"RECOMP"]
[null,null,null,null,null,null,null,null,null,null,null,null,null,null,0,"RECOMP"]
[null,null,null,null,null,null,null,null,null,null,null,null,null,null,0,"RECOMP"]
[null,null,{"$f":"IF(D327=\"\",\"\", S327)","v":""},null,null,null,null,null,null,null,null,null,null,null,0,"RECOMP",null,null,{"$f":"T327&\".)\"","v":"21.)"},{"$f":"IF(D327<>\"\",T323+1, T323)","v":21}]
[null,null,null,null,null,null,null,null,null,null,null,null,null,null,0,"RECOMP"]
[null,null,null,null,null,null,null,null,null,null,null,null,null,null,0,"RECOMP"]
[null,null,null,null,null,null,null,null,null,null,null,null,null,null,0,"RECOMP"]
[null,null,{"$f":"IF(D331=\"\",\"\", S331)","v":""},null,null,null,null,null,null,null,null,null,null,null,0,"RECOMP",null,null,{"$f":"T331&\".)\"","v":"21.)"},{"$f":"IF(D331<>\"\",T327+1, T327)","v":21}]
[null,null,null,null,null,null,null,null,null,null,null,null,null,null,0,"RECOMP"]
[null,null,null,null,null,null,null,null,null,null,null,null,null,null,0,"RECOMP"]
[null,null,null,null,null,null,null,null,null,null,null,null,null,null,0,"RECOMP"]
[null,null,{"$f":"IF(D335=\"\",\"\", S335)","v":""},null,null,null,null,null,null,null,null,null,null,null,0,"RECOMP",null,null,{"$f":"T335&\".)\"","v":"21.)"},{"$f":"IF(D335<>\"\",T331+1, T331)","v":21}]
[null,null,null,null,null,null,null,null,null,null,null,null,null,null,0,"RECOMP"]
[null,null,null,null,null,null,null,null,null,null,null,null,null,null,0,"RECOMP"]
[null,null,null,null,null,null,null,null,null,null,null,null,null,null,0,"RECOMP"]
[null,null,null,null,null,null,null,null,null,null,null,null,null,null,0,"RECOMP"]
[null,null,null,{"$f":"\"Lic. No. \"&C24","v":"Lic. No. "},null,null,null,null,null,"UWI:","###.##-##-##-##W1.## - Leg #",null,null,"ADD LEG(S)",1,"ADD LEG",null,null,{"$f":"T340&\".)\"","v":"1.)"},1]
[null,null,null,".",null,null,null,null,null,null,"###.##-##-##-##W1.## - Leg #",null,null,null,{"$f":"IF(K341=\"\",0,1)","v":1},"ADD LEG"]
[null,null,null,".",null,null,null,null,null,null,"###.##-##-##-##W1.## - Leg #",null,null,null,{"$f":"IF(K342=\"\",0,1)","v":1},"ADD LEG"]
[null,null,null,".",null,null,null,null,null,null,"###.##-##-##-##W1.## - Leg #",null,null,null,{"$f":"IF(K343=\"\",0,1)","v":1},"ADD LEG"]
[null,null,{"$f":"IF(D344=\"\",\"\", S344)","v":"1.)"},"The Field District office is to be notified 24 hours prior to commencing operations.",null,null,null,null,null,null,null,null,null,null,1,"ADD LEG",null,null,{"$f":"T344&\".)\"","v":"1.)"},1]
[null,null,null,null,null,null,null,null,null,null,null,null,null,null,0,"ADD LEG"]
[null,null,null,null,null,null,null,null,null,null,null,null,null,null,0,"ADD LEG"]
[null,null,null,null,null,null,null,null,null,null,null,null,null,null,0,"ADD LEG"]
[null,null,{"$f":"IF(D348=\"\",\"\", S348)","v":"2.)"},"The final directional survey and drilling tour reports are to be e-mailed, as per Info Notice 13-05, as soon as  ",null,null,null,null,null,null,null,null,null,null,1,"ADD LEG",null,null,{"$f":"T348&\".)\"","v":"2.)"},{"$f":"IF(D348<>\"\",T344+1, T344)","v":2}]
[null,null,null,"drilling is finished. For the well to be considered on target the wellbore must be at least 100 metres within the ",null,null,null,null,null,null,null,null,null,null,1,"ADD LEG"]
[null,null,null,"XXX Unit No. X boundary.",null,null,null,null,null,null,null,null,null,null,1,"ADD LEG"]
[null,null,null,null,null,null,null,null,null,null,null,null,null,null,0,"ADD LEG"]
[null,null,{"$f":"IF(D352=\"\",\"\", S352)","v":"3.)"},"Open hole logging requirements as per section 113 of the Drilling and Production Regulation have been waived, ",null,null,null,null,null,null,null,null,null,null,1,"ADD LEG",null,null,{"$f":"T352&\".)\"","v":"3.)"},{"$f":"IF(D352<>\"\",T348+1, T348)","v":3}]
[null,null,null,"however, Gamma Ray MD and TVD image files in PDF or TIF format and LAS data file format are still required from",null,null,null,null,null,null,null,null,null,null,1,"ADD LEG"]
[null,null,null,"surface casing shoe to TD at a minimum sample rate of 1 reading per 0.2 m (20 cm) (Files with 0.0 step or ",null,null,null,null,null,null,null,null,null,null,1,"ADD LEG"]
[null,null,null,"inconsistent reading steps will not be accepted). Any gas or Rate of Penetration (ROP) data collected is also to be   ",null,null,null,null,null,null,null,null,null,null,1,"ADD LEG"]
[null,null,null,"submitted as an LAS file. As well, the licencee will supply copies of the Geological Report and detailed strip logs, in ",null,null,null,null,null,null,null,null,null,null,1,"ADD LEG"]
[null,null,null,".pdf or .TIF format, which show the well trajectory, rates of  penetration and any other information recorded as per ",null,null,null,null,null,null,null,null,null,null,1,"ADD LEG"]
[null,null,null,"Informational Notice 13-05.",null,null,null,null,null,null,null,null,null,null,1,"ADD LEG"]
[null,null,null,null,null,null,null,null,null,null,null,null,null,null,0,"ADD LEG"]
[null,null,{"$f":"IF(D360=\"\",\"\", S360)","v":"4.)"},"Prior to commencing drilling, Co. is to shut-in the offsetting injectors at XX-XX, XX-XX and XX-XX-XX-XX WPM. ",null,null,null,null,null,null,null,null,null,null,1,"ADD LEG",null,null,{"$f":"T360&\".)\"","v":"4.)"},{"$f":"IF(D360<>\"\",T352+1, T352)","v":4}]
[null,null,null,null,null,null,null,null,null,null,null,null,null,null,0,"ADD LEG"]
[null,null,null,null,null,null,null,null,null,null,null,null,null,null,0,"ADD LEG"]
[null,null,null,null,null,null,null,null,null,null,null,null,null,null,0,"ADD LEG"]
[null,null,{"$f":"IF(D364=\"\",\"\", S364)","v":"5.)"},"Co. is to submit mandatory digital submission of multi-spacing unit production allocation as per Informational",null,null,null,null,null,null,null,null,null,null,1,"ADD LEG",null,null,{"$f":"T364&\".)\"","v":"5.)"},{"$f":"IF(D364<>\"\",T360+1, T360)","v":5}]
[null,null,null," Notice 11-03.",null,null,null,null,null,null,null,null,null,null,1,"ADD LEG"]
[null,null,null,null,null,null,null,null,null,null,null,null,null,null,0,"ADD LEG"]
[null,null,null,null,null,null,null,null,null,null,null,null,null,null,0,"ADD LEG"]
[null,null,{"$f":"IF(D368=\"\",\"\", S368)","v":"6.)"},"Co. is required to submit a new well summary for the deepening of this well as per Informational Notice 13-05.",null,null,null,null,null,null,null,null,null,null,1,"ADD LEG",null,null,{"$f":"T368&\".)\"","v":"6.)"},{"$f":"IF(D368<>\"\",T364+1, T364)","v":6}]
[null,null,null,null,null,null,null,null,null,null,null,null,null,null,0,"ADD LEG"]
[null,null,null,null,null,null,null,null,null,null,null,null,null,null,0,"ADD LEG"]
[null,null,null,null,null,null,null,null,null,null,null,null,null,null,0,"ADD LEG"]
[null,null,{"$f":"IF(D372=\"\",\"\", S372)","v":"7.)"},"The drilling of the additional horizontal leg does not qualify under the Marginal Well Incentive program.",null,null,null,null,null,null,null,null,null,null,1,"ADD LEG",null,null,{"$f":"T372&\".)\"","v":"7.)"},{"$f":"IF(D372<>\"\",T368+1, T368)","v":7}]
[null,null,null,null,null,null,null,null,null,null,null,null,null,null,{"$f":"IF(D373=\"\",0,1)","v":0},"ADD LEG"]
[null,null,null,null,null,null,null,null,null,null,null,null,null,null,0,"ADD LEG"]
[null,null,null,null,null,null,null,null,null,null,null,null,null,null,0,"ADD LEG"]
[null,null,{"$f":"IF(D376=\"\",\"\", S376)","v":"8.)"},"Co. is to submit a copy of the Initial Production Report as soon as the well is returned to production as per",null,null,null,null,null,null,null,null,null,null,1,"ADD LEG",null,null,{"$f":"T376&\".)\"","v":"8.)"},{"$f":"IF(D376<>\"\",T372+1, T372)","v":8}]
[null,null,null,"Info Notice 13-05.",null,null,null,null,null,null,null,null,null,null,1,"ADD LEG"]
[null,null,null,null,null,null,null,null,null,null,null,null,null,null,0,"ADD LEG"]
[null,null,null,null,null,null,null,null,null,null,null,null,null,null,0,"ADD LEG"]
[null,null,{"$f":"IF(D380=\"\",\"\", S380)","v":"9.)"},"Effective June 1, 2013. All submissions are now required to be submitted in digital format, emailed to:",null,null,null,null,null,null,null,null,null,null,1,"ADD LEG",null,null,{"$f":"T380&\".)\"","v":"9.)"},{"$f":"IF(D380<>\"\",T376+1, T376)","v":9}]
[null,null,null,null,null,null,null,null,null,null,null,null,null,null,0,"ADD LEG"]
[null,null,null,"petroleum@gov.mb.ca",null,null,null,null,null,null,null,null,null,null,1,"ADD LEG"]
[null,null,null,null,null,null,null,null,null,null,null,null,null,null,0,"ADD LEG"]
[null,null,null,"as per Informational Notice 13-05. Please ensure that the following is included in the subject location (bottomhole) ",null,null,null,null,null,null,null,null,null,null,1,"ADD LEG"]
[null,null,null,"and the type of report (see Appendix 1) for logs see Appendix 3.",null,null,null,null,null,null,null,null,null,null,1,"ADD LEG"]
[null,null,null,null,null,null,null,null,null,null,null,null,null,null,0,"ADD LEG"]
[null,null,null,null,null,null,null,null,null,null,null,null,null,null,0,"ADD LEG"]
[null,null,{"$f":"IF(D388=\"\",\"\", S388)","v":"10.)"},"If produced gas is vented from the well contains H2S, the licencee shall ensure that the concentration of hydrogen ",null,null,null,null,null,null,null,null,null,null,1,"ADD LEG",null,null,{"$f":"T388&\".)\"","v":"10.)"},{"$f":"IF(D388<>\"\",T380+1, T380)","v":10}]
[null,null,null,"sulphide beyond the well site does not exceed the levels set out in Schedule G of Drilling and Production Regulations.",null,null,null,null,null,null,null,null,null,null,1,"ADD LEG"]
[null,null,null,"However, due to the proximity of the residence, if H2S odours are detected off-lease, the licencee may be required to",null,null,null,null,null,null,null,null,null,null,1,"ADD LEG"]
[null,null,null,"install equipment to eliminate the odours.",null,null,null,null,null,null,null,null,null,null,1,"ADD LEG"]
[null,null,{"$f":"IF(D392=\"\",\"\", S392)","v":"11.)"},"H2S may be encountered during the drilling of the well. Crews are to be made aware of the possible hazards.",null,null,null,null,null,null,null,null,null,null,1,"ADD LEG",null,null,{"$f":"T392&\".)\"","v":"11.)"},{"$f":"IF(D392<>\"\",T388+1, T388)","v":11}]
[null,null,null,null,null,null,null,null,null,null,null,null,null,null,0,"ADD LEG"]
[null,null,null,null,null,null,null,null,null,null,null,null,null,null,0,"ADD LEG"]
[null,null,null,null,null,null,null,null,null,null,null,null,null,null,0,"ADD LEG"]
[null,null,{"$f":"IF(D396=\"\",\"\", S396)","v":"12.)"},"The deepening  of this horizontal leg does not qualify under the Marginal  Well Incentive Program.",null,null,null,null,null,null,null,null,null,null,1,"ADD LEG",null,null,{"$f":"T396&\".)\"","v":"12.)"},{"$f":"IF(D396<>\"\",T392+1, T392)","v":12}]
[null,null,null,null,null,null,null,null,null,null,null,null,null,null,0,"ADD LEG"]
[null,null,null,null,null,null,null,null,null,null,null,null,null,null,0,"ADD LEG"]
[null,null,null,null,null,null,null,null,null,null,null,null,null,null,0,"ADD LEG"]
[null,null,{"$f":"IF(D400=\"\",\"\", S400)","v":"13.)"},"The proposed drainage unit for the well includes Lsd’s XX, XX, XX  and XX of Section XX-XX-XX WPM.",null,null,null,null,null,null,null,null,null,null,1,"ADD LEG",null,null,{"$f":"T400&\".)\"","v":"13.)"},{"$f":"IF(D400<>\"\",T396+1, T396)","v":13}]
[null,null,null,null,null,null,null,null,null,null,null,null,null,null,0,"ADD LEG"]
[null,null,null,null,null,null,null,null,null,null,null,null,null,null,0,"ADD LEG"]
[null,null,null,null,null,null,null,null,null,null,null,null,null,null,0,"ADD LEG"]
[null,null,{"$f":"IF(D404=\"\",\"\", S404)","v":""},null,null,null,null,null,null,null,null,null,null,null,0,"ADD LEG",null,null,{"$f":"T404&\".)\"","v":"13.)"},{"$f":"IF(D404<>\"\",T400+1, T400)","v":13}]
[null,null,null,null,null,null,null,null,null,null,null,null,null,null,0,"ADD LEG"]
[null,null,null,null,null,null,null,null,null,null,null,null,null,null,0,"ADD LEG"]
[null,null,null,null,null,null,null,null,null,null,null,null,null,null,0,"ADD LEG"]
[null,null,null,null,null,null,null,null,null,null,null,null,null,null,0,"ADD LEG"]
[null,null,null,null,null,null,null,null,null,null,null,null,null,null,0,"ADD LEG"]
[null,null,{"$f":"IF(D410=\"\",\"\", S410)","v":"1.)"},"Blow-out prevention equipment is to be used during the deepening of the well.",null,null,null,null,null,null,null,null,null,"DEEPENING",1,"DEEP",null,null,{"$f":"T410&\".)\"","v":"1.)"},1]
[null,null,null,null,null,null,null,null,null,null,null,null,null,null,0,"DEEP"]
[null,null,null,null,null,null,null,null,null,null,null,null,null,null,0,"DEEP"]
[null,null,null,null,null,null,null,null,null,null,null,null,null,null,0,"DEEP"]
[null,null,{"$f":"IF(D414=\"\",\"\", S414)","v":"2.)"},"The Field District office must be notified prior to commencing operations.",null,null,null,null,null,null,null,null,null,null,1,"DEEP",null,null,{"$f":"T414&\".)\"","v":"2.)"},{"$f":"IF(D414<>\"\",T410+1, T410)","v":2}]
[null,null,null,null,null,null,null,null,null,null,null,null,null,null,0,"DEEP"]
[null,null,null,null,null,null,null,null,null,null,null,null,null,null,0,"DEEP"]
[null,null,null,null,null,null,null,null,null,null,null,null,null,null,0,"DEEP"]
[null,null,{"$f":"IF(D418=\"\",\"\", S418)","v":"3.)"},"All pressure tests must be witnessed by an inspector from the Field District office.",null,null,null,null,null,null,null,null,null,null,1,"DEEP",null,null,{"$f":"T418&\".)\"","v":"3.)"},{"$f":"IF(D418<>\"\",T414+1, T414)","v":3}]
[null,null,null,null,null,null,null,null,null,null,null,null,null,null,0,"DEEP"]
[null,null,null,null,null,null,null,null,null,null,null,null,null,null,0,"DEEP"]
[null,null,null,null,null,null,null,null,null,null,null,null,null,null,0,"DEEP"]
[null,null,{"$f":"IF(D422=\"\",\"\", S422)","v":"4.)"},"Co.  must run full suite of logs from XXXX  m to the new TD at XXXX m in accordance with Subsection 113(1) of the ",null,null,null,null,null,null,null,null,null,null,1,"DEEP",null,null,{"$f":"T422&\".)\"","v":"4.)"},{"$f":"IF(D422<>\"\",T418+1, T418)","v":4}]
[null,null,null,"Drilling and Production Regulation.",null,null,null,null,null,null,null,null,null,null,1,"DEEP"]
[null,null,null,null,null,null,null,null,null,null,null,null,null,null,0,"DEEP"]
[null,null,null,null,null,null,null,null,null,null,null,null,null,null,0,"DEEP"]
[null,null,{"$f":"IF(D426=\"\",\"\", S426)","v":""},null,null,null,null,null,null,null,null,null,null,null,0,"DEEP",null,null,{"$f":"T426&\".)\"","v":"4.)"},{"$f":"IF(D426<>\"\",T422+1, T422)","v":4}]
[null,null,null,null,null,null,null,null,null,null,null,null,null,null,0,"DEEP"]
[null,null,null,null,null,null,null,null,null,null,null,null,null,null,0,"DEEP"]
[null,null,null,null,null,null,null,null,null,null,null,null,null,null,0,"DEEP"]
[null,null,{"$f":"IF(D430=\"\",\"\", S430)","v":""},null,null,null,null,null,null,null,null,null,null,null,0,"DEEP",null,null,{"$f":"T430&\".)\"","v":"4.)"},{"$f":"IF(D430<>\"\",T426+1, T426)","v":4}]
[null,null,null,null,null,null,null,null,null,null,null,null,null,null,0,"DEEP"]
[null,null,null,null,null,null,null,null,null,null,null,null,null,null,0,"DEEP"]
[null,null,null,null,null,null,null,null,null,null,null,null,null,null,0,"DEEP"]
[null,null,{"$f":"IF(D434=\"\",\"\", S434)","v":""},null,null,null,null,null,null,null,null,null,null,null,0,"DEEP",null,null,{"$f":"T434&\".)\"","v":"4.)"},{"$f":"IF(D434<>\"\",T430+1, T430)","v":4}]
[null,null,null,null,null,null,null,null,null,null,null,null,null,null,0,"DEEP"]
[null,null,null,null,null,null,null,null,null,null,null,null,null,null,0,"DEEP"]
[null,null,null,null,null,null,null,null,null,null,null,null,null,null,{"$f":"IF(D437=\"\",0,1)","v":0},"DEEP"]
[null,null,{"$f":"IF(D438=\"\",\"\", S438)","v":""},null,null,null,null,null,null,null,null,null,null,null,0,"DEEP",null,null,{"$f":"T438&\".)\"","v":"4.)"},{"$f":"IF(D438<>\"\",T434+1, T434)","v":4}]
[null,null,null,null,null,null,null,null,null,null,null,null,null,null,0,"DEEP"]
[null,null,null,null,null,null,null,null,null,null,null,null,null,null,0,"DEEP"]
[null,null,null,null,null,null,null,null,null,null,null,null,null,null,0,"DEEP"]
[null,null,{"$f":"IF(D442=\"\",\"\", S442)","v":""},null,null,null,null,null,null,null,null,null,null,null,0,"DEEP",null,null,{"$f":"T442&\".)\"","v":"4.)"},{"$f":"IF(D442<>\"\",T438+1, T438)","v":4}]
[null,null,null,null,null,null,null,null,null,null,null,null,null,null,0,"DEEP"]
[null,null,null,null,null,null,null,null,null,null,null,null,null,null,0,"DEEP"]
[null,null,null,null,null,null,null,null,null,null,null,null,null,null,0,"DEEP"]
[null,null,null,null,null,null,null,null,null,null,null,null,null,null,0,"DEEP"]
[null,null,null,null,null,null,null,null,null,null,null,null,null,null,0,"DEEP"]
[null,null,{"$f":"IF(D448=\"\",\"\", S448)","v":"1.)"},"Co. is not to alter the casing repair program without prior approval from the Petroleum Branch.",null,null,null,null,null,null,null,null,null,"CASING REPAIR",1,"CAS REP",null,null,{"$f":"T448&\".)\"","v":"1.)"},1]
[null,null,null,null,null,null,null,null,null,null,null,null,null,null,0,"CAS REP"]
[null,null,null,null,null,null,null,null,null,null,null,null,null,null,0,"CAS REP"]
[null,null,null,null,null,null,null,null,null,null,null,null,null,null,0,"CAS REP"]
[null,null,{"$f":"IF(D452=\"\",\"\", S452)","v":"2.)"},"The repair of the casing does not qualify under the Marginal Well Major Workover Incentive program.",null,null,null,null,null,null,null,null,null,null,1,"CAS REP",null,null,{"$f":"T452&\".)\"","v":"2.)"},{"$f":"IF(D452<>\"\",T448+1, T448)","v":2}]
[null,null,null,null,null,null,null,null,null,null,null,null,null,null,0,"CAS REP"]
[null,null,null,null,null,null,null,null,null,null,null,null,null,null,0,"CAS REP"]
[null,null,null,null,null,null,null,null,null,null,null,null,null,null,0,"CAS REP"]
[null,null,{"$f":"IF(D456=\"\",\"\", S456)","v":"3.)"},"Co. is to contact the surface owner at least 24 hours prior to entering the least.",null,null,null,null,null,null,null,null,null,null,1,"CAS REP",null,null,{"$f":"T456&\".)\"","v":"3.)"},{"$f":"IF(D456<>\"\",T452+1, T452)","v":3}]
[null,null,null,null,null,null,null,null,null,null,null,null,null,null,0,"CAS REP"]
[null,null,null,null,null,null,null,null,null,null,null,null,null,null,0,"CAS REP"]
[null,null,null,null,null,null,null,null,null,null,null,null,null,null,0,"CAS REP"]
[null,null,{"$f":"IF(D460=\"\",\"\", S460)","v":"4.)"},"All pressure tests must be witnessed by an inspector from Field District office.",null,null,null,null,null,null,null,null,null,null,1,"CAS REP",null,null,{"$f":"T460&\".)\"","v":"4.)"},{"$f":"IF(D460<>\"\",T456+1, T456)","v":4}]
[null,null,null,null,null,null,null,null,null,null,null,null,null,null,0,"CAS REP"]
[null,null,null,null,null,null,null,null,null,null,null,null,null,null,0,"CAS REP"]
[null,null,null,null,null,null,null,null,null,null,null,null,null,null,0,"CAS REP"]
[null,null,{"$f":"IF(D464=\"\",\"\", S464)","v":""},null,null,null,null,null,null,null,null,null,null,null,0,"CAS REP",null,null,{"$f":"T464&\".)\"","v":"4.)"},{"$f":"IF(D464<>\"\",T460+1, T460)","v":4}]
[null,null,null,null,null,null,null,null,null,null,null,null,null,null,0,"CAS REP"]
[null,null,null,null,null,null,null,null,null,null,null,null,null,null,0,"CAS REP"]
[null,null,null,null,null,null,null,null,null,null,null,null,null,null,0,"CAS REP"]
[null,null,{"$f":"IF(D468=\"\",\"\", S468)","v":""},null,null,null,null,null,null,null,null,null,null,null,0,"CAS REP",null,null,{"$f":"T468&\".)\"","v":"4.)"},{"$f":"IF(D468<>\"\",T464+1, T464)","v":4}]
[null,null,null,null,null,null,null,null,null,null,null,null,null,null,0,"CAS REP"]
[null,null,null,null,null,null,null,null,null,null,null,null,null,null,0,"CAS REP"]
[null,null,null,null,null,null,null,null,null,null,null,null,null,null,0,"CAS REP"]
[null,null,{"$f":"IF(D472=\"\",\"\", S472)","v":""},null,null,null,null,null,null,null,null,null,null,null,0,"CAS REP",null,null,{"$f":"T472&\".)\"","v":"4.)"},{"$f":"IF(D472<>\"\",T468+1, T468)","v":4}]
[null,null,null,null,null,null,null,null,null,null,null,null,null,null,0,"CAS REP"]
[null,null,null,null,null,null,null,null,null,null,null,null,null,null,0,"CAS REP"]
[null,null,null,null,null,null,null,null,null,null,null,null,null,null,0,"CAS REP"]
[null,null,{"$f":"IF(D476=\"\",\"\", S476)","v":""},null,null,null,null,null,null,null,null,null,null,null,0,"CAS REP",null,null,{"$f":"T476&\".)\"","v":"4.)"},{"$f":"IF(D476<>\"\",T472+1, T472)","v":4}]
[null,null,null,null,null,null,null,null,null,null,null,null,null,null,0,"CAS REP"]
[null,null,null,null,null,null,null,null,null,null,null,null,null,null,0,"CAS REP"]
[null,null,null,null,null,null,null,null,null,null,null,null,null,null,0,"CAS REP"]
[null,null,{"$f":"IF(D480=\"\",\"\", S480)","v":"1.)"},"The Field District office is to be notified prior to commencing operations. All pressure tests must be witnessed by an ",null,null,null,null,null,null,null,null,null,"ISOLATE LEAK/REM. CASING",1,"ISO LEAK/REM CAS",null,null,{"$f":"T480&\".)\"","v":"1.)"},1]
[null,null,null,"Inspector.",null,null,null,null,null,null,null,null,null,null,1,"ISO LEAK/REM CAS"]
[null,null,null,null,null,null,null,null,null,null,null,null,null,null,0,"ISO LEAK/REM CAS"]
[null,null,null,null,null,null,null,null,null,null,null,null,null,null,0,"ISO LEAK/REM CAS"]
[null,null,{"$f":"IF(D484=\"\",\"\", S484)","v":"2.)"},"Co. is to contact the surface owner at least 24 hours prior to entering the lease.",null,null,null,null,null,null,null,null,null,null,1,"ISO LEAK/REM CAS",null,null,{"$f":"T484&\".)\"","v":"2.)"},{"$f":"IF(D484<>\"\",T480+1, T480)","v":2}]
[null,null,null,null,null,null,null,null,null,null,null,null,null,null,0,"ISO LEAK/REM CAS"]
[null,null,null,null,null,null,null,null,null,null,null,null,null,null,0,"ISO LEAK/REM CAS"]
[null,null,null,null,null,null,null,null,null,null,null,null,null,null,0,"ISO LEAK/REM CAS"]
[null,null,{"$f":"IF(D488=\"\",\"\", S488)","v":""},null,null,null,null,null,null,null,null,null,null,null,0,"ISO LEAK/REM CAS",null,null,{"$f":"T488&\".)\"","v":"2.)"},{"$f":"IF(D488<>\"\",T484+1, T484)","v":2}]
[null,null,null,null,null,null,null,null,null,null,null,null,null,null,0,"ISO LEAK/REM CAS"]
[null,null,null,null,null,null,null,null,null,null,null,null,null,null,0,"ISO LEAK/REM CAS"]
[null,null,null,null,null,null,null,null,null,null,null,null,null,null,0,"ISO LEAK/REM CAS"]
[null,null,{"$f":"IF(D492=\"\",\"\", S492)","v":""},null,null,null,null,null,null,null,null,null,null,null,0,"ISO LEAK/REM CAS",null,null,{"$f":"T492&\".)\"","v":"2.)"},{"$f":"IF(D492<>\"\",T488+1, T488)","v":2}]
[null,null,null,null,null,null,null,null,null,null,null,null,null,null,0,"ISO LEAK/REM CAS"]
[null,null,null,null,null,null,null,null,null,null,null,null,null,null,0,"ISO LEAK/REM CAS"]
[null,null,null,null,null,null,null,null,null,null,null,null,null,null,0,"ISO LEAK/REM CAS"]
[null,null,{"$f":"IF(D496=\"\",\"\", S496)","v":""},null,null,null,null,null,null,null,null,null,null,null,0,"ISO LEAK/REM CAS",null,null,{"$f":"T496&\".)\"","v":"2.)"},{"$f":"IF(D496<>\"\",T492+1, T492)","v":2}]
[null,null,null,null,null,null,null,null,null,null,null,null,null,null,0,"ISO LEAK/REM CAS"]
[null,null,null,null,null,null,null,null,null,null,null,null,null,null,0,"ISO LEAK/REM CAS"]
[null,null,null,null,null,null,null,null,null,null,null,null,null,null,0,"ISO LEAK/REM CAS"]
[null,null,{"$f":"IF(D500=\"\",\"\", S500)","v":""},null,null,null,null,null,null,null,null,null,null,null,0,"ISO LEAK/REM CAS",null,null,{"$f":"T500&\".)\"","v":"2.)"},{"$f":"IF(D500<>\"\",T496+1, T496)","v":2}]
[null,null,null,null,null,null,null,null,null,null,null,null,null,null,{"$f":"IF(D501=\"\",0,1)","v":0},"ISO LEAK/REM CAS"]
[null,null,null,null,null,null,null,null,null,null,null,null,null,null,0,"ISO LEAK/REM CAS"]
[null,null,null,null,null,null,null,null,null,null,null,null,null,null,0,"ISO LEAK/REM CAS"]
[null,null,{"$f":"IF(D504=\"\",\"\", S504)","v":""},null,null,null,null,null,null,null,null,null,null,null,0,"ISO LEAK/REM CAS",null,null,{"$f":"T504&\".)\"","v":"2.)"},{"$f":"IF(D504<>\"\",T500+1, T500)","v":2}]
[null,null,null,null,null,null,null,null,null,null,null,null,null,null,0,"ISO LEAK/REM CAS"]
[null,null,null,null,null,null,null,null,null,null,null,null,null,null,0,"ISO LEAK/REM CAS"]
[null,null,null,null,null,null,null,null,null,null,null,null,null,null,0,"ISO LEAK/REM CAS"]
[null,null,{"$f":"IF(D508=\"\",\"\", S508)","v":""},null,null,null,null,null,null,null,null,null,null,null,0,"ISO LEAK/REM CAS",null,null,{"$f":"T508&\".)\"","v":"2.)"},{"$f":"IF(D508<>\"\",T504+1, T504)","v":2}]
[null,null,null,null,null,null,null,null,null,null,null,null,null,null,0,"ISO LEAK/REM CAS"]
[null,null,null,null,null,null,null,null,null,null,null,null,null,null,0,"ISO LEAK/REM CAS"]
[null,null,null,null,null,null,null,null,null,null,null,null,null,null,0,"ISO LEAK/REM CAS"]
[null,null,{"$f":"IF(D512=\"\",\"\", S512)","v":""},null,null,null,null,null,null,null,null,null,null,null,0,"ISO LEAK/REM CAS",null,null,{"$f":"T512&\".)\"","v":"2.)"},{"$f":"IF(D512<>\"\",T508+1, T508)","v":2}]
[null,null,null,null,null,null,null,null,null,null,null,null,null,null,0,"ISO LEAK/REM CAS"]
[null,null,null,null,null,null,null,null,null,null,null,null,null,null,0,"ISO LEAK/REM CAS"]
[null,null,null,null,null,null,null,null,null,null,null,null,null,null,0,"ISO LEAK/REM CAS"]
[null,null,null,null,null,null,null,null,null,null,null,null,null,null,0,"ISO LEAK/REM CAS"]
[null,null,null,null,null,null,null,null,null,null,null,null,null,null,{"$f":"IF(D517=\"\",0,1)","v":0}]
[null,null,null,null,null,null,null,null,null,null,null,null,null,null,0,null,null,null,null,null,null,null,-365]
[null,null,null,null,null,null,null,null,null,null,null,null,null,null,0,null,null,null,null,null,null,null,-364]
[null,null,null,null,null,null,null,null,null,null,null,null,null,null,0,null,null,null,null,null,null,null,-363]
[null,null,null,null,null,null,null,null,null,null,null,null,null,null,0,null,null,null,null,null,null,null,-362]
[null,null,null,null,null,null,null,null,null,null,null,null,null,null,0,null,null,null,null,null,null,null,-361]
[null,null,null,null,null,null,null,null,null,null,null,null,null,null,0,null,null,null,null,null,null,null,-360,null,null,null,null,null,null,null,null,null,null,null,null,null,{"$f":"AK296+1","v":253}]
[null,null,null,null,null,null,null,null,null,null,null,null,null,null,0,null,null,null,null,null,null,null,-359,null,null,null,null,null,null,null,null,null,null,null,null,null,{"$f":"AK523+1","v":254}]
[null,null,null,null,null,null,null,null,null,null,null,null,null,null,1,null,null,null,null,null,null,null,-358,null,null,null,null,null,null,null,null,null,null,null,null,null,{"$f":"AK524+1","v":255}]
[null,null,null,null,null,null,null,null,null,null,null,null,null,null,1,null,null,null,null,null,null,null,-357,null,null,null,null,null,null,null,null,null,null,null,null,null,{"$f":"AK525+1","v":256}]
[null,null,{"$f":"NOW()+V883-366","v":"2023-07-19T08:43:02.420"},null,null,null,null,null,null,null,null,null,null,null,1,null,null,null,null,null,null,null,-356,null,null,null,null,null,null,null,null,null,null,null,null,null,{"$f":"AK526+1","v":257}]
[null,null,"Date of Issue",null,null,null,"Reviewed By",null,null,null,null,{"$f":"IF(AC528=1,\"\",IF(AC528=2,\"A/Director of Petroleum\",\"Director of Petroleum\"))","v":"Director of Petroleum"},null,null,1,null,null,null,null,null,null,null,-355,null,null,null,null,null,3,null,null,null,null,null,null,null,{"$f":"AK527+1","v":258}]
[null,null,null,null,null,null,null,null,null,null,null,null,null,null,1,null,null,null,null,null,null,null,-354,null,null,null,null,null,null,null,null,null,null,null,null,null,259]
[null,null,null,null,null,null,null,null,null,null,null,null,null,null,1,null,null,null,null,null,null,null,-353,null,null,null,null,null,null,null,null,null,null,null,null,null,260]
[null,null,null,null,null,null,null,null,null,null,null,null,null,null,1,null,null,null,null,null,null,null,-352,null,null,null,null,null,null,null,null,null,null,null,null,null,261]
[null,null,null,null,null,null,null,null,null,null,null,null,null,null,null,null,null,null,null,null,null,null,-351,null,null,null,null,null,1,null,null,null,null,null,null,null,262]
[null,null,null,null,null,null,null,null,null,null,null,null,null,null,null,null,null,null,null,null,null,null,-350,null,null,null,null,null,null,"A/Director of Petroleum",null,null,null,null,null,null,263]
[null,null,null,null,null,null,null,null,null,null,null,null,null,null,null,null,null,null,null,null,null,null,-349,null,null,null,null,null,null,"Director of Petroleum",null,null,null,null,null,null,264]
[null,null,null,null,null,null,null,null,null,null,null,null,null,null,null,null,null,null,null,null,null,null,-348,null,null,null,null,null,null,null,null,null,null,null,null,null,265]
[null,null,null,null,null,null,null,null,null,null,null,null,null,null,null,null,null,null,null,null,null,null,-347,null,null,null,null,null,null,null,null,null,null,null,null,null,266]
[null,null,null,null,null,null,null,null,null,null,null,null,null,null,null,null,null,null,null,null,null,null,-346,null,null,null,null,null,null,null,null,null,null,null,null,null,267]
[null,null,null,null,null,null,null,null,null,null,null,null,null,null,null,null,null,null,null,null,null,null,-345,null,null,null,null,null,null,null,null,null,null,null,null,null,268]
[null,null,null,null,null,null,null,null,null,null,null,null,null,null,null,null,null,null,null,null,null,null,-344,null,null,null,null,null,null,null,null,null,null,null,null,null,269]
[null,null,null,null,null,null,null,null,null,null,null,null,null,null,null,null,null,null,null,null,null,null,-343,null,null,null,null,null,null,null,null,null,null,null,null,null,270]
[null,null,null,null,null,null,null,null,null,null,null,null,null,null,null,null,null,null,null,null,null,null,-342,null,null,null,null,null,null,null,null,null,null,null,null,null,271]
[null,null,null,null,null,null,null,null,null,null,null,null,null,null,null,null,null,null,null,null,null,null,-341,null,null,null,null,null,null,null,null,null,null,null,null,null,272]
[null,null,null,null,null,null,null,null,null,null,null,null,null,null,null,null,null,null,null,null,null,null,-340,null,null,null,null,null,null,null,null,null,null,null,null,null,273]
[null,null,null,null,null,null,null,null,null,null,null,null,null,null,null,null,null,null,null,null,null,null,-339,null,null,null,null,null,null,null,null,null,null,null,null,null,274]
[null,null,null,null,null,null,null,null,null,null,null,null,null,null,null,null,null,null,null,null,null,null,-338,null,null,null,null,null,null,null,null,null,null,null,null,null,275]
[null,null,null,null,null,null,null,null,null,null,null,null,null,null,null,null,null,null,null,null,null,null,-337,null,null,null,null,null,null,null,null,null,null,null,null,null,276]
[null,null,null,null,null,null,null,null,null,null,null,null,null,null,null,null,null,null,null,null,null,null,-336,null,null,null,null,null,null,null,null,null,null,null,null,null,277]
[null,null,null,null,null,null,null,null,null,null,null,null,null,null,null,null,null,null,null,null,null,null,-335,null,null,null,null,null,null,null,null,null,null,null,null,null,278]
[null,null,null,null,null,null,null,null,null,null,null,null,null,null,null,null,null,null,null,null,null,null,-334,null,null,null,null,null,null,null,null,null,null,null,null,null,279]
[null,null,null,null,null,null,null,null,null,null,null,null,null,null,null,null,null,null,null,null,null,null,-333,null,null,null,null,null,null,null,null,null,null,null,null,null,280]
[null,null,null,null,null,null,null,null,null,null,null,null,null,null,null,null,null,null,null,null,null,null,-332,null,null,null,null,null,null,null,null,null,null,null,null,null,281]
[null,null,null,null,null,null,null,null,null,null,null,null,null,null,null,null,null,null,null,null,null,null,-331,null,null,null,null,null,null,null,null,null,null,null,null,null,282]
[null,null,null,null,null,null,null,null,null,null,null,null,null,null,null,null,null,null,null,null,null,null,-330,null,null,null,null,null,null,null,null,null,null,null,null,null,283]
[null,null,null,null,null,null,null,null,null,null,null,null,null,null,null,null,null,null,null,null,null,null,-329,null,null,null,null,null,null,null,null,null,null,null,null,null,284]
[null,null,null,null,null,null,null,null,null,null,null,null,null,null,null,null,null,null,null,null,null,null,-328,null,null,null,null,null,null,null,null,null,null,null,null,null,285]
[null,null,null,null,null,null,null,null,null,null,null,null,null,null,null,null,null,null,null,null,null,null,-327,null,null,null,null,null,null,null,null,null,null,null,null,null,286]
[null,null,null,null,null,null,null,null,null,null,null,null,null,null,null,null,null,null,null,null,null,null,-326,null,null,null,null,null,null,null,null,null,null,null,null,null,287]
[null,null,null,null,null,null,null,null,null,null,null,null,null,null,null,null,null,null,null,null,null,null,-325,null,null,null,null,null,null,null,null,null,null,null,null,null,288]
[null,null,null,null,null,null,null,null,null,null,null,null,null,null,null,null,null,null,null,null,null,null,-324,null,null,null,null,null,null,null,null,null,null,null,null,null,289]
[null,null,null,null,null,null,null,null,null,null,null,null,null,null,null,null,null,null,null,null,null,null,-323,null,null,null,null,null,null,null,null,null,null,null,null,null,290]
[null,null,null,null,null,null,null,null,null,null,null,null,null,null,null,null,null,null,null,null,null,null,-322,null,null,null,null,null,null,null,null,null,null,null,null,null,291]
[null,null,null,null,null,null,null,null,null,null,null,null,null,null,null,null,null,null,null,null,null,null,-321,null,null,null,null,null,null,null,null,null,null,null,null,null,292]
[null,null,null,null,null,null,null,null,null,null,null,null,null,null,null,null,null,null,null,null,null,null,-320,null,null,null,null,null,null,null,null,null,null,null,null,null,293]
[null,null,null,null,null,null,null,null,null,null,null,null,null,null,null,null,null,null,null,null,null,null,-319,null,null,null,null,null,null,null,null,null,null,null,null,null,294]
[null,null,null,null,null,null,null,null,null,null,null,null,null,null,null,null,null,null,null,null,null,null,-318,null,null,null,null,null,null,null,null,null,null,null,null,null,295]
[null,null,null,null,null,null,null,null,null,null,null,null,null,null,null,null,null,null,null,null,null,null,-317,null,null,null,null,null,null,null,null,null,null,null,null,null,296]
[null,null,null,null,null,null,null,null,null,null,null,null,null,null,null,null,null,null,null,null,null,null,-316,null,null,null,null,null,null,null,null,null,null,null,null,null,297]
[null,null,null,null,null,null,null,null,null,null,null,null,null,null,null,null,null,null,null,null,null,null,-315,null,null,null,null,null,null,null,null,null,null,null,null,null,298]
[null,null,null,null,null,null,null,null,null,null,null,null,null,null,null,null,null,null,null,null,null,null,-314,null,null,null,null,null,null,null,null,null,null,null,null,null,299]
[null,null,null,null,null,null,null,null,null,null,null,null,null,null,null,null,null,null,null,null,null,null,-313,null,null,null,null,null,null,null,null,null,null,null,null,null,300]
[null,null,null,null,null,null,null,null,null,null,null,null,null,null,null,null,null,null,null,null,null,null,-312,null,null,null,null,null,null,null,null,null,null,null,null,null,301]
[null,null,null,null,null,null,null,null,null,null,null,null,null,null,null,null,null,null,null,null,null,null,-311,null,null,null,null,null,null,null,null,null,null,null,null,null,302]
[null,null,null,null,null,null,null,null,null,null,null,null,null,null,null,null,null,null,null,null,null,null,-310,null,null,null,null,null,null,null,null,null,null,null,null,null,303]
[null,null,null,null,null,null,null,null,null,null,null,null,null,null,null,null,null,null,null,null,null,null,-309,null,null,null,null,null,null,null,null,null,null,null,null,null,304]
[null,null,null,null,null,null,null,null,null,null,null,null,null,null,null,null,null,null,null,null,null,null,-308,null,null,null,null,null,null,null,null,null,null,null,null,null,305]
[null,null,null,null,null,null,null,null,null,null,null,null,null,null,null,null,null,null,null,null,null,null,-307,null,null,null,null,null,null,null,null,null,null,null,null,null,306]
[null,null,null,null,null,null,null,null,null,null,null,null,null,null,null,null,null,null,null,null,null,null,-306,null,null,null,null,null,null,null,null,null,null,null,null,null,307]
[null,null,null,null,null,null,null,null,null,null,null,null,null,null,null,null,null,null,null,null,null,null,-305,null,null,null,null,null,null,null,null,null,null,null,null,null,308]
[null,null,null,null,null,null,null,null,null,null,null,null,null,null,null,null,null,null,null,null,null,null,-304,null,null,null,null,null,null,null,null,null,null,null,null,null,309]
[null,null,null,null,null,null,null,null,null,null,null,null,null,null,null,null,null,null,null,null,null,null,-303,null,null,null,null,null,null,null,null,null,null,null,null,null,310]
[null,null,null,null,null,null,null,null,null,null,null,null,null,null,null,null,null,null,null,null,null,null,-302,null,null,null,null,null,null,null,null,null,null,null,null,null,311]
[null,null,null,null,null,null,null,null,null,null,null,null,null,null,null,null,null,null,null,null,null,null,-301,null,null,null,null,null,null,null,null,null,null,null,null,null,312]
[null,null,null,null,null,null,null,null,null,null,null,null,null,null,null,null,null,null,null,null,null,null,-300,null,null,null,null,null,null,null,null,null,null,null,null,null,313]
[null,null,null,null,null,null,null,null,null,null,null,null,null,null,null,null,null,null,null,null,null,null,-299,null,null,null,null,null,null,null,null,null,null,null,null,null,314]
[null,null,null,null,null,null,null,null,null,null,null,null,null,null,null,null,null,null,null,null,null,null,-298,null,null,null,null,null,null,null,null,null,null,null,null,null,315]
[null,null,null,null,null,null,null,null,null,null,null,null,null,null,null,null,null,null,null,null,null,null,-297,null,null,null,null,null,null,null,null,null,null,null,null,null,316]
[null,null,null,null,null,null,null,null,null,null,null,null,null,null,null,null,null,null,null,null,null,null,-296,null,null,null,null,null,null,null,null,null,null,null,null,null,317]
[null,null,null,null,null,null,null,null,null,null,null,null,null,null,null,null,null,null,null,null,null,null,-295,null,null,null,null,null,null,null,null,null,null,null,null,null,318]
[null,null,null,null,null,null,null,null,null,null,null,null,null,null,null,null,null,null,null,null,null,null,-294,null,null,null,null,null,null,null,null,null,null,null,null,null,319]
[null,null,null,null,null,null,null,null,null,null,null,null,null,null,null,null,null,null,null,null,null,null,-293,null,null,null,null,null,null,null,null,null,null,null,null,null,320]
[null,null,null,null,null,null,null,null,null,null,null,null,null,null,null,null,null,null,null,null,null,null,-292,null,null,null,null,null,null,null,null,null,null,null,null,null,321]
[null,null,null,null,null,null,null,null,null,null,null,null,null,null,null,null,null,null,null,null,null,null,-291,null,null,null,null,null,null,null,null,null,null,null,null,null,{"$f":"AK591+1","v":322}]
[null,null,null,null,null,null,null,null,null,null,null,null,null,null,null,null,null,null,null,null,null,null,-290,null,null,null,null,null,null,null,null,null,null,null,null,null,323]
[null,null,null,null,null,null,null,null,null,null,null,null,null,null,null,null,null,null,null,null,null,null,-289,null,null,null,null,null,null,null,null,null,null,null,null,null,324]
[null,null,null,null,null,null,null,null,null,null,null,null,null,null,null,null,null,null,null,null,null,null,-288,null,null,null,null,null,null,null,null,null,null,null,null,null,325]
[null,null,null,null,null,null,null,null,null,null,null,null,null,null,null,null,null,null,null,null,null,null,-287,null,null,null,null,null,null,null,null,null,null,null,null,null,326]
[null,null,null,null,null,null,null,null,null,null,null,null,null,null,null,null,null,null,null,null,null,null,-286,null,null,null,null,null,null,null,null,null,null,null,null,null,327]
[null,null,null,null,null,null,null,null,null,null,null,null,null,null,null,null,null,null,null,null,null,null,-285,null,null,null,null,null,null,null,null,null,null,null,null,null,328]
[null,null,null,null,null,null,null,null,null,null,null,null,null,null,null,null,null,null,null,null,null,null,-284,null,null,null,null,null,null,null,null,null,null,null,null,null,329]
[null,null,null,null,null,null,null,null,null,null,null,null,null,null,null,null,null,null,null,null,null,null,-283,null,null,null,null,null,null,null,null,null,null,null,null,null,330]
[null,null,null,null,null,null,null,null,null,null,null,null,null,null,null,null,null,null,null,null,null,null,-282,null,null,null,null,null,null,null,null,null,null,null,null,null,331]
[null,null,null,null,null,null,null,null,null,null,null,null,null,null,null,null,null,null,null,null,null,null,-281,null,null,null,null,null,null,null,null,null,null,null,null,null,332]
[null,null,null,null,null,null,null,null,null,null,null,null,null,null,null,null,null,null,null,null,null,null,-280,null,null,null,null,null,null,null,null,null,null,null,null,null,333]
[null,null,null,null,null,null,null,null,null,null,null,null,null,null,null,null,null,null,null,null,null,null,-279,null,null,null,null,null,null,null,null,null,null,null,null,null,334]
[null,null,null,null,null,null,null,null,null,null,null,null,null,null,null,null,null,null,null,null,null,null,-278,null,null,null,null,null,null,null,null,null,null,null,null,null,335]
[null,null,null,null,null,null,null,null,null,null,null,null,null,null,null,null,null,null,null,null,null,null,-277,null,null,null,null,null,null,null,null,null,null,null,null,null,336]
[null,null,null,null,null,null,null,null,null,null,null,null,null,null,null,null,null,null,null,null,null,null,-276,null,null,null,null,null,null,null,null,null,null,null,null,null,337]
[null,null,null,null,null,null,null,null,null,null,null,null,null,null,null,null,null,null,null,null,null,null,-275,null,null,null,null,null,null,null,null,null,null,null,null,null,338]
[null,null,null,null,null,null,null,null,null,null,null,null,null,null,null,null,null,null,null,null,null,null,-274,null,null,null,null,null,null,null,null,null,null,null,null,null,339]
[null,null,null,null,null,null,null,null,null,null,null,null,null,null,null,null,null,null,null,null,null,null,-273,null,null,null,null,null,null,null,null,null,null,null,null,null,340]
[null,null,null,null,null,null,null,null,null,null,null,null,null,null,null,null,null,null,null,null,null,null,-272,null,null,null,null,null,null,null,null,null,null,null,null,null,341]
[null,null,null,null,null,null,null,null,null,null,null,null,null,null,null,null,null,null,null,null,null,null,-271,null,null,null,null,null,null,null,null,null,null,null,null,null,342]
[null,null,null,null,null,null,null,null,null,null,null,null,null,null,null,null,null,null,null,null,null,null,-270,null,null,null,null,null,null,null,null,null,null,null,null,null,343]
[null,null,null,null,null,null,null,null,null,null,null,null,null,null,null,null,null,null,null,null,null,null,-269,null,null,null,null,null,null,null,null,null,null,null,null,null,344]
[null,null,null,null,null,null,null,null,null,null,null,null,null,null,null,null,null,null,null,null,null,null,-268,null,null,null,null,null,null,null,null,null,null,null,null,null,345]
[null,null,null,null,null,null,null,null,null,null,null,null,null,null,null,null,null,null,null,null,null,null,-267,null,null,null,null,null,null,null,null,null,null,null,null,null,346]
[null,null,null,null,null,null,null,null,null,null,null,null,null,null,null,null,null,null,null,null,null,null,-266,null,null,null,null,null,null,null,null,null,null,null,null,null,347]
[null,null,null,null,null,null,null,null,null,null,null,null,null,null,null,null,null,null,null,null,null,null,-265,null,null,null,null,null,null,null,null,null,null,null,null,null,348]
[null,null,null,null,null,null,null,null,null,null,null,null,null,null,null,null,null,null,null,null,null,null,-264,null,null,null,null,null,null,null,null,null,null,null,null,null,349]
[null,null,null,null,null,null,null,null,null,null,null,null,null,null,null,null,null,null,null,null,null,null,-263,null,null,null,null,null,null,null,null,null,null,null,null,null,350]
[null,null,null,null,null,null,null,null,null,null,null,null,null,null,null,null,null,null,null,null,null,null,-262,null,null,null,null,null,null,null,null,null,null,null,null,null,351]
[null,null,null,null,null,null,null,null,null,null,null,null,null,null,null,null,null,null,null,null,null,null,-261,null,null,null,null,null,null,null,null,null,null,null,null,null,352]
[null,null,null,null,null,null,null,null,null,null,null,null,null,null,null,null,null,null,null,null,null,null,-260,null,null,null,null,null,null,null,null,null,null,null,null,null,353]
[null,null,null,null,null,null,null,null,null,null,null,null,null,null,null,null,null,null,null,null,null,null,-259,null,null,null,null,null,null,null,null,null,null,null,null,null,354]
[null,null,null,null,null,null,null,null,null,null,null,null,null,null,null,null,null,null,null,null,null,null,-258,null,null,null,null,null,null,null,null,null,null,null,null,null,355]
[null,null,null,null,null,null,null,null,null,null,null,null,null,null,null,null,null,null,null,null,null,null,-257,null,null,null,null,null,null,null,null,null,null,null,null,null,356]
[null,null,null,null,null,null,null,null,null,null,null,null,null,null,null,null,null,null,null,null,null,null,-256,null,null,null,null,null,null,null,null,null,null,null,null,null,357]
[null,null,null,null,null,null,null,null,null,null,null,null,null,null,null,null,null,null,null,null,null,null,-255,null,null,null,null,null,null,null,null,null,null,null,null,null,358]
[null,null,null,null,null,null,null,null,null,null,null,null,null,null,null,null,null,null,null,null,null,null,-254,null,null,null,null,null,null,null,null,null,null,null,null,null,359]
[null,null,null,null,null,null,null,null,null,null,null,null,null,null,null,null,null,null,null,null,null,null,-253,null,null,null,null,null,null,null,null,null,null,null,null,null,360]
[null,null,null,null,null,null,null,null,null,null,null,null,null,null,null,null,null,null,null,null,null,null,-252,null,null,null,null,null,null,null,null,null,null,null,null,null,361]
[null,null,null,null,null,null,null,null,null,null,null,null,null,null,null,null,null,null,null,null,null,null,-251,null,null,null,null,null,null,null,null,null,null,null,null,null,362]
[null,null,null,null,null,null,null,null,null,null,null,null,null,null,null,null,null,null,null,null,null,null,-250,null,null,null,null,null,null,null,null,null,null,null,null,null,363]
[null,null,null,null,null,null,null,null,null,null,null,null,null,null,null,null,null,null,null,null,null,null,-249,null,null,null,null,null,null,null,null,null,null,null,null,null,364]
[null,null,null,null,null,null,null,null,null,null,null,null,null,null,null,null,null,null,null,null,null,null,-248,null,null,null,null,null,null,null,null,null,null,null,null,null,365]
[null,null,null,null,null,null,null,null,null,null,null,null,null,null,null,null,null,null,null,null,null,null,-247]
[null,null,null,null,null,null,null,null,null,null,null,null,null,null,null,null,null,null,null,null,null,null,-246]
[null,null,null,null,null,null,null,null,null,null,null,null,null,null,null,null,null,null,null,null,null,null,-245]
[null,null,null,null,null,null,null,null,null,null,null,null,null,null,null,null,null,null,null,null,null,null,-244]
[null,null,null,null,null,null,null,null,null,null,null,null,null,null,null,null,null,null,null,null,null,null,-243]
[null,null,null,null,null,null,null,null,null,null,null,null,null,null,null,null,null,null,null,null,null,null,-242]
[null,null,null,null,null,null,null,null,null,null,null,null,null,null,null,null,null,null,null,null,null,null,-241]
[null,null,null,null,null,null,null,null,null,null,null,null,null,null,null,null,null,null,null,null,null,null,-240]
[null,null,null,null,null,null,null,null,null,null,null,null,null,null,null,null,null,null,null,null,null,null,-239]
[null,null,null,null,null,null,null,null,null,null,null,null,null,null,null,null,null,null,null,null,null,null,-238]
[null,null,null,null,null,null,null,null,null,null,null,null,null,null,null,null,null,null,null,null,null,null,-237]
[null,null,null,null,null,null,null,null,null,null,null,null,null,null,null,null,null,null,null,null,null,null,-236]
[null,null,null,null,null,null,null,null,null,null,null,null,null,null,null,null,null,null,null,null,null,null,-235]
[null,null,null,null,null,null,null,null,null,null,null,null,null,null,null,null,null,null,null,null,null,null,-234]
[null,null,null,null,null,null,null,null,null,null,null,null,null,null,null,null,null,null,null,null,null,null,-233]
[null,null,null,null,null,null,null,null,null,null,null,null,null,null,null,null,null,null,null,null,null,null,-232]
[null,null,null,null,null,null,null,null,null,null,null,null,null,null,null,null,null,null,null,null,null,null,-231]
[null,null,null,null,null,null,null,null,null,null,null,null,null,null,null,null,null,null,null,null,null,null,-230]
[null,null,null,null,null,null,null,null,null,null,null,null,null,null,null,null,null,null,null,null,null,null,-229]
[null,null,null,null,null,null,null,null,null,null,null,null,null,null,null,null,null,null,null,null,null,null,-228]
[null,null,null,null,null,null,null,null,null,null,null,null,null,null,null,null,null,null,null,null,null,null,-227]
[null,null,null,null,null,null,null,null,null,null,null,null,null,null,null,null,null,null,null,null,null,null,-226]
[null,null,null,null,null,null,null,null,null,null,null,null,null,null,null,null,null,null,null,null,null,null,-225]
[null,null,null,null,null,null,null,null,null,null,null,null,null,null,null,null,null,null,null,null,null,null,-224]
[null,null,null,null,null,null,null,null,null,null,null,null,null,null,null,null,null,null,null,null,null,null,-223]
[null,null,null,null,null,null,null,null,null,null,null,null,null,null,null,null,null,null,null,null,null,null,-222]
[null,null,null,null,null,null,null,null,null,null,null,null,null,null,null,null,null,null,null,null,null,null,-221]
[null,null,null,null,null,null,null,null,null,null,null,null,null,null,null,null,null,null,null,null,null,null,-220]
[null,null,null,null,null,null,null,null,null,null,null,null,null,null,null,null,null,null,null,null,null,null,-219]
[null,null,null,null,null,null,null,null,null,null,null,null,null,null,null,null,null,null,null,null,null,null,-218]
[null,null,null,null,null,null,null,null,null,null,null,null,null,null,null,null,null,null,null,null,null,null,-217]
[null,null,null,null,null,null,null,null,null,null,null,null,null,null,null,null,null,null,null,null,null,null,-216]
[null,null,null,null,null,null,null,null,null,null,null,null,null,null,null,null,null,null,null,null,null,null,-215]
[null,null,null,null,null,null,null,null,null,null,null,null,null,null,null,null,null,null,null,null,null,null,-214]
[null,null,null,null,null,null,null,null,null,null,null,null,null,null,null,null,null,null,null,null,null,null,-213]
[null,null,null,null,null,null,null,null,null,null,null,null,null,null,null,null,null,null,null,null,null,null,-212]
[null,null,null,null,null,null,null,null,null,null,null,null,null,null,null,null,null,null,null,null,null,null,-211]
[null,null,null,null,null,null,null,null,null,null,null,null,null,null,null,null,null,null,null,null,null,null,-210]
[null,null,null,null,null,null,null,null,null,null,null,null,null,null,null,null,null,null,null,null,null,null,-209]
[null,null,null,null,null,null,null,null,null,null,null,null,null,null,null,null,null,null,null,null,null,null,-208]
[null,null,null,null,null,null,null,null,null,null,null,null,null,null,null,null,null,null,null,null,null,null,-207]
[null,null,null,null,null,null,null,null,null,null,null,null,null,null,null,null,null,null,null,null,null,null,-206]
[null,null,null,null,null,null,null,null,null,null,null,null,null,null,null,null,null,null,null,null,null,null,-205]
[null,null,null,null,null,null,null,null,null,null,null,null,null,null,null,null,null,null,null,null,null,null,-204]
[null,null,null,null,null,null,null,null,null,null,null,null,null,null,null,null,null,null,null,null,null,null,-203]
[null,null,null,null,null,null,null,null,null,null,null,null,null,null,null,null,null,null,null,null,null,null,-202]
[null,null,null,null,null,null,null,null,null,null,null,null,null,null,null,null,null,null,null,null,null,null,-201]
[null,null,null,null,null,null,null,null,null,null,null,null,null,null,null,null,null,null,null,null,null,null,-200]
[null,null,null,null,null,null,null,null,null,null,null,null,null,null,null,null,null,null,null,null,null,null,-199]
[null,null,null,null,null,null,null,null,null,null,null,null,null,null,null,null,null,null,null,null,null,null,-198]
[null,null,null,null,null,null,null,null,null,null,null,null,null,null,null,null,null,null,null,null,null,null,-197]
[null,null,null,null,null,null,null,null,null,null,null,null,null,null,null,null,null,null,null,null,null,null,-196]
[null,null,null,null,null,null,null,null,null,null,null,null,null,null,null,null,null,null,null,null,null,null,-195]
[null,null,null,null,null,null,null,null,null,null,null,null,null,null,null,null,null,null,null,null,null,null,-194]
[null,null,null,null,null,null,null,null,null,null,null,null,null,null,null,null,null,null,null,null,null,null,-193]
[null,null,null,null,null,null,null,null,null,null,null,null,null,null,null,null,null,null,null,null,null,null,-192]
[null,null,null,null,null,null,null,null,null,null,null,null,null,null,null,null,null,null,null,null,null,null,-191]
[null,null,null,null,null,null,null,null,null,null,null,null,null,null,null,null,null,null,null,null,null,null,-190]
[null,null,null,null,null,null,null,null,null,null,null,null,null,null,null,null,null,null,null,null,null,null,-189]
[null,null,null,null,null,null,null,null,null,null,null,null,null,null,null,null,null,null,null,null,null,null,-188]
[null,null,null,null,null,null,null,null,null,null,null,null,null,null,null,null,null,null,null,null,null,null,-187]
[null,null,null,null,null,null,null,null,null,null,null,null,null,null,null,null,null,null,null,null,null,null,-186]
[null,null,null,null,null,null,null,null,null,null,null,null,null,null,null,null,null,null,null,null,null,null,-185]
[null,null,null,null,null,null,null,null,null,null,null,null,null,null,null,null,null,null,null,null,null,null,-184]
[null,null,null,null,null,null,null,null,null,null,null,null,null,null,null,null,null,null,null,null,null,null,-183]
[null,null,null,null,null,null,null,null,null,null,null,null,null,null,null,null,null,null,null,null,null,null,-182]
[null,null,null,null,null,null,null,null,null,null,null,null,null,null,null,null,null,null,null,null,null,null,-181]
[null,null,null,null,null,null,null,null,null,null,null,null,null,null,null,null,null,null,null,null,null,null,-180]
[null,null,null,null,null,null,null,null,null,null,null,null,null,null,null,null,null,null,null,null,null,null,-179]
[null,null,null,null,null,null,null,null,null,null,null,null,null,null,null,null,null,null,null,null,null,null,-178]
[null,null,null,null,null,null,null,null,null,null,null,null,null,null,null,null,null,null,null,null,null,null,-177]
[null,null,null,null,null,null,null,null,null,null,null,null,null,null,null,null,null,null,null,null,null,null,-176]
[null,null,null,null,null,null,null,null,null,null,null,null,null,null,null,null,null,null,null,null,null,null,-175]
[null,null,null,null,null,null,null,null,null,null,null,null,null,null,null,null,null,null,null,null,null,null,-174]
[null,null,null,null,null,null,null,null,null,null,null,null,null,null,null,null,null,null,null,null,null,null,-173]
[null,null,null,null,null,null,null,null,null,null,null,null,null,null,null,null,null,null,null,null,null,null,-172]
[null,null,null,null,null,null,null,null,null,null,null,null,null,null,null,null,null,null,null,null,null,null,-171]
[null,null,null,null,null,null,null,null,null,null,null,null,null,null,null,null,null,null,null,null,null,null,-170]
[null,null,null,null,null,null,null,null,null,null,null,null,null,null,null,null,null,null,null,null,null,null,-169]
[null,null,null,null,null,null,null,null,null,null,null,null,null,null,null,null,null,null,null,null,null,null,-168]
[null,null,null,null,null,null,null,null,null,null,null,null,null,null,null,null,null,null,null,null,null,null,-167]
[null,null,null,null,null,null,null,null,null,null,null,null,null,null,null,null,null,null,null,null,null,null,-166]
[null,null,null,null,null,null,null,null,null,null,null,null,null,null,null,null,null,null,null,null,null,null,-165]
[null,null,null,null,null,null,null,null,null,null,null,null,null,null,null,null,null,null,null,null,null,null,-164]
[null,null,null,null,null,null,null,null,null,null,null,null,null,null,null,null,null,null,null,null,null,null,-163]
[null,null,null,null,null,null,null,null,null,null,null,null,null,null,null,null,null,null,null,null,null,null,-162]
[null,null,null,null,null,null,null,null,null,null,null,null,null,null,null,null,null,null,null,null,null,null,-161]
[null,null,null,null,null,null,null,null,null,null,null,null,null,null,null,null,null,null,null,null,null,null,-160]
[null,null,null,null,null,null,null,null,null,null,null,null,null,null,null,null,null,null,null,null,null,null,-159]
[null,null,null,null,null,null,null,null,null,null,null,null,null,null,null,null,null,null,null,null,null,null,-158]
[null,null,null,null,null,null,null,null,null,null,null,null,null,null,null,null,null,null,null,null,null,null,-157]
[null,null,null,null,null,null,null,null,null,null,null,null,null,null,null,null,null,null,null,null,null,null,-156]
[null,null,null,null,null,null,null,null,null,null,null,null,null,null,null,null,null,null,null,null,null,null,-155]
[null,null,null,null,null,null,null,null,null,null,null,null,null,null,null,null,null,null,null,null,null,null,-154]
[null,null,null,null,null,null,null,null,null,null,null,null,null,null,null,null,null,null,null,null,null,null,-153]
[null,null,null,null,null,null,null,null,null,null,null,null,null,null,null,null,null,null,null,null,null,null,-152]
[null,null,null,null,null,null,null,null,null,null,null,null,null,null,null,null,null,null,null,null,null,null,-151]
[null,null,null,null,null,null,null,null,null,null,null,null,null,null,null,null,null,null,null,null,null,null,-150]
[null,null,null,null,null,null,null,null,null,null,null,null,null,null,null,null,null,null,null,null,null,null,-149]
[null,null,null,null,null,null,null,null,null,null,null,null,null,null,null,null,null,null,null,null,null,null,-148]
[null,null,null,null,null,null,null,null,null,null,null,null,null,null,null,null,null,null,null,null,null,null,-147]
[null,null,null,null,null,null,null,null,null,null,null,null,null,null,null,null,null,null,null,null,null,null,-146]
[null,null,null,null,null,null,null,null,null,null,null,null,null,null,null,null,null,null,null,null,null,null,-145]
[null,null,null,null,null,null,null,null,null,null,null,null,null,null,null,null,null,null,null,null,null,null,-144]
[null,null,null,null,null,null,null,null,null,null,null,null,null,null,null,null,null,null,null,null,null,null,-143]
[null,null,null,null,null,null,null,null,null,null,null,null,null,null,null,null,null,null,null,null,null,null,-142]
[null,null,null,null,null,null,null,null,null,null,null,null,null,null,null,null,null,null,null,null,null,null,-141]
[null,null,null,null,null,null,null,null,null,null,null,null,null,null,null,null,null,null,null,null,null,null,-140]
[null,null,null,null,null,null,null,null,null,null,null,null,null,null,null,null,null,null,null,null,null,null,-139]
[null,null,null,null,null,null,null,null,null,null,null,null,null,null,null,null,null,null,null,null,null,null,-138]
[null,null,null,null,null,null,null,null,null,null,null,null,null,null,null,null,null,null,null,null,null,null,-137]
[null,null,null,null,null,null,null,null,null,null,null,null,null,null,null,null,null,null,null,null,null,null,-136]
[null,null,null,null,null,null,null,null,null,null,null,null,null,null,null,null,null,null,null,null,null,null,-135]
[null,null,null,null,null,null,null,null,null,null,null,null,null,null,null,null,null,null,null,null,null,null,-134]
[null,null,null,null,null,null,null,null,null,null,null,null,null,null,null,null,null,null,null,null,null,null,-133]
[null,null,null,null,null,null,null,null,null,null,null,null,null,null,null,null,null,null,null,null,null,null,-132]
[null,null,null,null,null,null,null,null,null,null,null,null,null,null,null,null,null,null,null,null,null,null,-131]
[null,null,null,null,null,null,null,null,null,null,null,null,null,null,null,null,null,null,null,null,null,null,-130]
[null,null,null,null,null,null,null,null,null,null,null,null,null,null,null,null,null,null,null,null,null,null,-129]
[null,null,null,null,null,null,null,null,null,null,null,null,null,null,null,null,null,null,null,null,null,null,-128]
[null,null,null,null,null,null,null,null,null,null,null,null,null,null,null,null,null,null,null,null,null,null,-127]
[null,null,null,null,null,null,null,null,null,null,null,null,null,null,null,null,null,null,null,null,null,null,-126]
[null,null,null,null,null,null,null,null,null,null,null,null,null,null,null,null,null,null,null,null,null,null,-125]
[null,null,null,null,null,null,null,null,null,null,null,null,null,null,null,null,null,null,null,null,null,null,-124]
[null,null,null,null,null,null,null,null,null,null,null,null,null,null,null,null,null,null,null,null,null,null,-123]
[null,null,null,null,null,null,null,null,null,null,null,null,null,null,null,null,null,null,null,null,null,null,-122]
[null,null,null,null,null,null,null,null,null,null,null,null,null,null,null,null,null,null,null,null,null,null,-121]
[null,null,null,null,null,null,null,null,null,null,null,null,null,null,null,null,null,null,null,null,null,null,-120]
[null,null,null,null,null,null,null,null,null,null,null,null,null,null,null,null,null,null,null,null,null,null,-119]
[null,null,null,null,null,null,null,null,null,null,null,null,null,null,null,null,null,null,null,null,null,null,-118]
[null,null,null,null,null,null,null,null,null,null,null,null,null,null,null,null,null,null,null,null,null,null,-117]
[null,null,null,null,null,null,null,null,null,null,null,null,null,null,null,null,null,null,null,null,null,null,-116]
[null,null,null,null,null,null,null,null,null,null,null,null,null,null,null,null,null,null,null,null,null,null,-115]
[null,null,null,null,null,null,null,null,null,null,null,null,null,null,null,null,null,null,null,null,null,null,-114]
[null,null,null,null,null,null,null,null,null,null,null,null,null,null,null,null,null,null,null,null,null,null,-113]
[null,null,null,null,null,null,null,null,null,null,null,null,null,null,null,null,null,null,null,null,null,null,-112]
[null,null,null,null,null,null,null,null,null,null,null,null,null,null,null,null,null,null,null,null,null,null,-111]
[null,null,null,null,null,null,null,null,null,null,null,null,null,null,null,null,null,null,null,null,null,null,-110]
[null,null,null,null,null,null,null,null,null,null,null,null,null,null,null,null,null,null,null,null,null,null,-109]
[null,null,null,null,null,null,null,null,null,null,null,null,null,null,null,null,null,null,null,null,null,null,-108]
[null,null,null,null,null,null,null,null,null,null,null,null,null,null,null,null,null,null,null,null,null,null,-107]
[null,null,null,null,null,null,null,null,null,null,null,null,null,null,null,null,null,null,null,null,null,null,-106]
[null,null,null,null,null,null,null,null,null,null,null,null,null,null,null,null,null,null,null,null,null,null,-105]
[null,null,null,null,null,null,null,null,null,null,null,null,null,null,null,null,null,null,null,null,null,null,-104]
[null,null,null,null,null,null,null,null,null,null,null,null,null,null,null,null,null,null,null,null,null,null,-103]
[null,null,null,null,null,null,null,null,null,null,null,null,null,null,null,null,null,null,null,null,null,null,-102]
[null,null,null,null,null,null,null,null,null,null,null,null,null,null,null,null,null,null,null,null,null,null,-101]
[null,null,null,null,null,null,null,null,null,null,null,null,null,null,null,null,null,null,null,null,null,null,-100]
[null,null,null,null,null,null,null,null,null,null,null,null,null,null,null,null,null,null,null,null,null,null,-99]
[null,null,null,null,null,null,null,null,null,null,null,null,null,null,null,null,null,null,null,null,null,null,-98]
[null,null,null,null,null,null,null,null,null,null,null,null,null,null,null,null,null,null,null,null,null,null,-97]
[null,null,null,null,null,null,null,null,null,null,null,null,null,null,null,null,null,null,null,null,null,null,-96]
[null,null,null,null,null,null,null,null,null,null,null,null,null,null,null,null,null,null,null,null,null,null,-95]
[null,null,null,null,null,null,null,null,null,null,null,null,null,null,null,null,null,null,null,null,null,null,-94]
[null,null,null,null,null,null,null,null,null,null,null,null,null,null,null,null,null,null,null,null,null,null,-93]
[null,null,null,null,null,null,null,null,null,null,null,null,null,null,null,null,null,null,null,null,null,null,-92]
[null,null,null,null,null,null,null,null,null,null,null,null,null,null,null,null,null,null,null,null,null,null,-91]
[null,null,null,null,null,null,null,null,null,null,null,null,null,null,null,null,null,null,null,null,null,null,-90]
[null,null,null,null,null,null,null,null,null,null,null,null,null,null,null,null,null,null,null,null,null,null,-89]
[null,null,null,null,null,null,null,null,null,null,null,null,null,null,null,null,null,null,null,null,null,null,-88]
[null,null,null,null,null,null,null,null,null,null,null,null,null,null,null,null,null,null,null,null,null,null,-87]
[null,null,null,null,null,null,null,null,null,null,null,null,null,null,null,null,null,null,null,null,null,null,-86]
[null,null,null,null,null,null,null,null,null,null,null,null,null,null,null,null,null,null,null,null,null,null,-85]
[null,null,null,null,null,null,null,null,null,null,null,null,null,null,null,null,null,null,null,null,null,null,-84]
[null,null,null,null,null,null,null,null,null,null,null,null,null,null,null,null,null,null,null,null,null,null,-83]
[null,null,null,null,null,null,null,null,null,null,null,null,null,null,null,null,null,null,null,null,null,null,-82]
[null,null,null,null,null,null,null,null,null,null,null,null,null,null,null,null,null,null,null,null,null,null,-81]
[null,null,null,null,null,null,null,null,null,null,null,null,null,null,null,null,null,null,null,null,null,null,-80]
[null,null,null,null,null,null,null,null,null,null,null,null,null,null,null,null,null,null,null,null,null,null,-79]
[null,null,null,null,null,null,null,null,null,null,null,null,null,null,null,null,null,null,null,null,null,null,-78]
[null,null,null,null,null,null,null,null,null,null,null,null,null,null,null,null,null,null,null,null,null,null,-77]
[null,null,null,null,null,null,null,null,null,null,null,null,null,null,null,null,null,null,null,null,null,null,-76]
[null,null,null,null,null,null,null,null,null,null,null,null,null,null,null,null,null,null,null,null,null,null,-75]
[null,null,null,null,null,null,null,null,null,null,null,null,null,null,null,null,null,null,null,null,null,null,-74]
[null,null,null,null,null,null,null,null,null,null,null,null,null,null,null,null,null,null,null,null,null,null,-73]
[null,null,null,null,null,null,null,null,null,null,null,null,null,null,null,null,null,null,null,null,null,null,-72]
[null,null,null,null,null,null,null,null,null,null,null,null,null,null,null,null,null,null,null,null,null,null,-71]
[null,null,null,null,null,null,null,null,null,null,null,null,null,null,null,null,null,null,null,null,null,null,-70]
[null,null,null,null,null,null,null,null,null,null,null,null,null,null,null,null,null,null,null,null,null,null,-69]
[null,null,null,null,null,null,null,null,null,null,null,null,null,null,null,null,null,null,null,null,null,null,-68]
[null,null,null,null,null,null,null,null,null,null,null,null,null,null,null,null,null,null,null,null,null,null,-67]
[null,null,null,null,null,null,null,null,null,null,null,null,null,null,null,null,null,null,null,null,null,null,-66]
[null,null,null,null,null,null,null,null,null,null,null,null,null,null,null,null,null,null,null,null,null,null,-65]
[null,null,null,null,null,null,null,null,null,null,null,null,null,null,null,null,null,null,null,null,null,null,-64]
[null,null,null,null,null,null,null,null,null,null,null,null,null,null,null,null,null,null,null,null,null,null,-63]
[null,null,null,null,null,null,null,null,null,null,null,null,null,null,null,null,null,null,null,null,null,null,-62]
[null,null,null,null,null,null,null,null,null,null,null,null,null,null,null,null,null,null,null,null,null,null,-61]
[null,null,null,null,null,null,null,null,null,null,null,null,null,null,null,null,null,null,null,null,null,null,-60]
[null,null,null,null,null,null,null,null,null,null,null,null,null,null,null,null,null,null,null,null,null,null,-59]
[null,null,null,null,null,null,null,null,null,null,null,null,null,null,null,null,null,null,null,null,null,null,-58]
[null,null,null,null,null,null,null,null,null,null,null,null,null,null,null,null,null,null,null,null,null,null,-57]
[null,null,null,null,null,null,null,null,null,null,null,null,null,null,null,null,null,null,null,null,null,null,-56]
[null,null,null,null,null,null,null,null,null,null,null,null,null,null,null,null,null,null,null,null,null,null,-55]
[null,null,null,null,null,null,null,null,null,null,null,null,null,null,null,null,null,null,null,null,null,null,-54]
[null,null,null,null,null,null,null,null,null,null,null,null,null,null,null,null,null,null,null,null,null,null,-53]
[null,null,null,null,null,null,null,null,null,null,null,null,null,null,null,null,null,null,null,null,null,null,-52]
[null,null,null,null,null,null,null,null,null,null,null,null,null,null,null,null,null,null,null,null,null,null,-51]
[null,null,null,null,null,null,null,null,null,null,null,null,null,null,null,null,null,null,null,null,null,null,-50]
[null,null,null,null,null,null,null,null,null,null,null,null,null,null,null,null,null,null,null,null,null,null,-49]
[null,null,null,null,null,null,null,null,null,null,null,null,null,null,null,null,null,null,null,null,null,null,-48]
[null,null,null,null,null,null,null,null,null,null,null,null,null,null,null,null,null,null,null,null,null,null,-47]
[null,null,null,null,null,null,null,null,null,null,null,null,null,null,null,null,null,null,null,null,null,null,-46]
[null,null,null,null,null,null,null,null,null,null,null,null,null,null,null,null,null,null,null,null,null,null,-45]
[null,null,null,null,null,null,null,null,null,null,null,null,null,null,null,null,null,null,null,null,null,null,-44]
[null,null,null,null,null,null,null,null,null,null,null,null,null,null,null,null,null,null,null,null,null,null,-43]
[null,null,null,null,null,null,null,null,null,null,null,null,null,null,null,null,null,null,null,null,null,null,-42]
[null,null,null,null,null,null,null,null,null,null,null,null,null,null,null,null,null,null,null,null,null,null,-41]
[null,null,null,null,null,null,null,null,null,null,null,null,null,null,null,null,null,null,null,null,null,null,-40]
[null,null,null,null,null,null,null,null,null,null,null,null,null,null,null,null,null,null,null,null,null,null,-39]
[null,null,null,null,null,null,null,null,null,null,null,null,null,null,null,null,null,null,null,null,null,null,-38]
[null,null,null,null,null,null,null,null,null,null,null,null,null,null,null,null,null,null,null,null,null,null,-37]
[null,null,null,null,null,null,null,null,null,null,null,null,null,null,null,null,null,null,null,null,null,null,-36]
[null,null,null,null,null,null,null,null,null,null,null,null,null,null,null,null,null,null,null,null,null,null,-35]
[null,null,null,null,null,null,null,null,null,null,null,null,null,null,null,null,null,null,null,null,null,null,-34]
[null,null,null,null,null,null,null,null,null,null,null,null,null,null,null,null,null,null,null,null,null,null,-33]
[null,null,null,null,null,null,null,null,null,null,null,null,null,null,null,null,null,null,null,null,null,null,-32]
[null,null,null,null,null,null,null,null,null,null,null,null,null,null,null,null,null,null,null,null,null,null,-31]
[null,null,null,null,null,null,null,null,null,null,null,null,null,null,null,null,null,null,null,null,null,null,-30]
[null,null,null,null,null,null,null,null,null,null,null,null,null,null,null,null,null,null,null,null,null,null,-29]
[null,null,null,null,null,null,null,null,null,null,null,null,null,null,null,null,null,null,null,null,null,null,-28]
[null,null,null,null,null,null,null,null,null,null,null,null,null,null,null,null,null,null,null,null,null,null,-27]
[null,null,null,null,null,null,null,null,null,null,null,null,null,null,null,null,null,null,null,null,null,null,-26]
[null,null,null,null,null,null,null,null,null,null,null,null,null,null,null,null,null,null,null,null,null,null,-25]
[null,null,null,null,null,null,null,null,null,null,null,null,null,null,null,null,null,null,null,null,null,null,-24]
[null,null,null,null,null,null,null,null,null,null,null,null,null,null,null,null,null,null,null,null,null,null,-23]
[null,null,null,null,null,null,null,null,null,null,null,null,null,null,null,null,null,null,null,null,null,null,-22]
[null,null,null,null,null,null,null,null,null,null,null,null,null,null,null,null,null,null,null,null,null,null,-21]
[null,null,null,null,null,null,null,null,null,null,null,null,null,null,null,null,null,null,null,null,null,null,-20]
[null,null,null,null,null,null,null,null,null,null,null,null,null,null,null,null,null,null,null,null,null,null,-19]
[null,null,null,null,null,null,null,null,null,null,null,null,null,null,null,null,null,null,null,null,null,null,-18]
[null,null,null,null,null,null,null,null,null,null,null,null,null,null,null,null,null,null,null,null,null,null,-17]
[null,null,null,null,null,null,null,null,null,null,null,null,null,null,null,null,null,null,null,null,null,null,-16]
[null,null,null,null,null,null,null,null,null,null,null,null,null,null,null,null,null,null,null,null,null,null,-15]
[null,null,null,null,null,null,null,null,null,null,null,null,null,null,null,null,null,null,null,null,null,null,-14]
[null,null,null,null,null,null,null,null,null,null,null,null,null,null,null,null,null,null,null,null,null,null,-13]
[null,null,null,null,null,null,null,null,null,null,null,null,null,null,null,null,null,null,null,null,null,null,-12]
[null,null,null,null,null,null,null,null,null,null,null,null,null,null,null,null,null,null,null,null,null,null,-11]
[null,null,null,null,null,null,null,null,null,null,null,null,null,null,null,null,null,null,null,null,null,null,-10]
[null,null,null,null,null,null,null,null,null,null,null,null,null,null,null,null,null,null,null,null,null,null,-9]
[null,null,null,null,null,null,null,null,null,null,null,null,null,null,null,null,null,null,null,null,null,null,-8]
[null,null,null,null,null,null,null,null,null,null,null,null,null,null,null,null,null,null,null,null,null,null,-7]
[null,null,null,null,null,null,null,null,null,null,null,null,null,null,null,null,null,null,null,null,null,null,-6]
[null,null,null,null,null,null,null,null,null,null,null,null,null,null,null,null,null,null,null,null,null,null,-5]
[null,null,null,null,null,null,null,null,null,null,null,null,null,null,null,null,null,null,null,null,null,null,-4]
[null,null,null,null,null,null,null,null,null,null,null,null,null,null,null,null,null,null,null,null,null,null,-3]
[null,null,null,null,null,null,null,null,null,null,null,null,null,null,null,null,null,null,null,null,null,null,-2]
[null,null,null,null,null,null,null,null,null,null,null,null,null,null,null,null,null,null,null,null,null,null,-1]
[null,null,null,null,null,null,null,null,null,null,null,null,null,null,null,null,null,null,null,null,null,366,0]
[null,null,null,null,null,null,null,null,null,null,null,null,null,null,null,null,null,null,null,null,null,null,1]
[null,null,null,null,null,null,null,null,null,null,null,null,null,null,null,null,null,null,null,null,null,null,2]
[null,null,null,null,null,null,null,null,null,null,null,null,null,null,null,null,null,null,null,null,null,null,3]
[null,null,null,null,null,null,null,null,null,null,null,null,null,null,null,null,null,null,null,null,null,null,4]
[null,null,null,null,null,null,null,null,null,null,null,null,null,null,null,null,null,null,null,null,null,null,5]
[null,null,null,null,null,null,null,null,null,null,null,null,null,null,null,null,null,null,null,null,null,null,6]
[null,null,null,null,null,null,null,null,null,null,null,null,null,null,null,null,null,null,null,null,null,null,7]
[null,null,null,null,null,null,null,null,null,null,null,null,null,null,null,null,null,null,null,null,null,null,8]
[null,null,null,null,null,null,null,null,null,null,null,null,null,null,null,null,null,null,null,null,null,null,9]
[null,null,null,null,null,null,null,null,null,null,null,null,null,null,null,null,null,null,null,null,null,null,10]
[null,null,null,null,null,null,null,null,null,null,null,null,null,null,null,null,null,null,null,null,null,null,11]
[null,null,null,null,null,null,null,null,null,null,null,null,null,null,null,null,null,null,null,null,null,null,12]
[null,null,null,null,null,null,null,null,null,null,null,null,null,null,null,null,null,null,null,null,null,null,13]
[null,null,null,null,null,null,null,null,null,null,null,null,null,null,null,null,null,null,null,null,null,null,14]
[null,null,null,null,null,null,null,null,null,null,null,null,null,null,null,null,null,null,null,null,null,null,15]
[null,null,null,null,null,null,null,null,null,null,null,null,null,null,null,null,null,null,null,null,null,null,16]
[null,null,null,null,null,null,null,null,null,null,null,null,null,null,null,null,null,null,null,null,null,null,17]
[null,null,null,null,null,null,null,null,null,null,null,null,null,null,null,null,null,null,null,null,null,null,18]
[null,null,null,null,null,null,null,null,null,null,null,null,null,null,null,null,null,null,null,null,null,null,19]
[null,null,null,null,null,null,null,null,null,null,null,null,null,null,null,null,null,null,null,null,null,null,20]
[null,null,null,null,null,null,null,null,null,null,null,null,null,null,null,null,null,null,null,null,null,null,21]
[null,null,null,null,null,null,null,null,null,null,null,null,null,null,null,null,null,null,null,null,null,null,22]
[null,null,null,null,null,null,null,null,null,null,null,null,null,null,null,null,null,null,null,null,null,null,23]
[null,null,null,null,null,null,null,null,null,null,null,null,null,null,null,null,null,null,null,null,null,null,24]
[null,null,null,null,null,null,null,null,null,null,null,null,null,null,null,null,null,null,null,null,null,null,25]
[null,null,null,null,null,null,null,null,null,null,null,null,null,null,null,null,null,null,null,null,null,null,26]
[null,null,null,null,null,null,null,null,null,null,null,null,null,null,null,null,null,null,null,null,null,null,27]
[null,null,null,null,null,null,null,null,null,null,null,null,null,null,null,null,null,null,null,null,null,null,28]
[null,null,null,null,null,null,null,null,null,null,null,null,null,null,null,null,null,null,null,null,null,null,29]
[null,null,null,null,null,null,null,null,null,null,null,null,null,null,null,null,null,null,null,null,null,null,30]
[null,null,null,null,null,null,null,null,null,null,null,null,null,null,null,null,null,null,null,null,null,null,31]
[null,null,null,null,null,null,null,null,null,null,null,null,null,null,null,null,null,null,null,null,null,null,32]
[null,null,null,null,null,null,null,null,null,null,null,null,null,null,null,null,null,null,null,null,null,null,33]
[null,null,null,null,null,null,null,null,null,null,null,null,null,null,null,null,null,null,null,null,null,null,34]
[null,null,null,null,null,null,null,null,null,null,null,null,null,null,null,null,null,null,null,null,null,null,35]
[null,null,null,null,null,null,null,null,null,null,null,null,null,null,null,null,null,null,null,null,null,null,36]
[null,null,null,null,null,null,null,null,null,null,null,null,null,null,null,null,null,null,null,null,null,null,37]
[null,null,null,null,null,null,null,null,null,null,null,null,null,null,null,null,null,null,null,null,null,null,38]
[null,null,null,null,null,null,null,null,null,null,null,null,null,null,null,null,null,null,null,null,null,null,39]
[null,null,null,null,null,null,null,null,null,null,null,null,null,null,null,null,null,null,null,null,null,null,40]
[null,null,null,null,null,null,null,null,null,null,null,null,null,null,null,null,null,null,null,null,null,null,41]
[null,null,null,null,null,null,null,null,null,null,null,null,null,null,null,null,null,null,null,null,null,null,42]
[null,null,null,null,null,null,null,null,null,null,null,null,null,null,null,null,null,null,null,null,null,null,43]
[null,null,null,null,null,null,null,null,null,null,null,null,null,null,null,null,null,null,null,null,null,null,44]
[null,null,null,null,null,null,null,null,null,null,null,null,null,null,null,null,null,null,null,null,null,null,45]
[null,null,null,null,null,null,null,null,null,null,null,null,null,null,null,null,null,null,null,null,null,null,46]
[null,null,null,null,null,null,null,null,null,null,null,null,null,null,null,null,null,null,null,null,null,null,47]
[null,null,null,null,null,null,null,null,null,null,null,null,null,null,null,null,null,null,null,null,null,null,48]
[null,null,null,null,null,null,null,null,null,null,null,null,null,null,null,null,null,null,null,null,null,null,49]
[null,null,null,null,null,null,null,null,null,null,null,null,null,null,null,null,null,null,null,null,null,null,50]
[null,null,null,null,null,null,null,null,null,null,null,null,null,null,null,null,null,null,null,null,null,null,51]
[null,null,null,null,null,null,null,null,null,null,null,null,null,null,null,null,null,null,null,null,null,null,52]
[null,null,null,null,null,null,null,null,null,null,null,null,null,null,null,null,null,null,null,null,null,null,53]
[null,null,null,null,null,null,null,null,null,null,null,null,null,null,null,null,null,null,null,null,null,null,54]
[null,null,null,null,null,null,null,null,null,null,null,null,null,null,null,null,null,null,null,null,null,null,55]
[null,null,null,null,null,null,null,null,null,null,null,null,null,null,null,null,null,null,null,null,null,null,56]
[null,null,null,null,null,null,null,null,null,null,null,null,null,null,null,null,null,null,null,null,null,null,57]
[null,null,null,null,null,null,null,null,null,null,null,null,null,null,null,null,null,null,null,null,null,null,58]
[null,null,null,null,null,null,null,null,null,null,null,null,null,null,null,null,null,null,null,null,null,null,59]
[null,null,null,null,null,null,null,null,null,null,null,null,null,null,null,null,null,null,null,null,null,null,60]
[null,null,null,null,null,null,null,null,null,null,null,null,null,null,null,null,null,null,null,null,null,null,61]
[null,null,null,null,null,null,null,null,null,null,null,null,null,null,null,null,null,null,null,null,null,null,62]
[null,null,null,null,null,null,null,null,null,null,null,null,null,null,null,null,null,null,null,null,null,null,63]
[null,null,null,null,null,null,null,null,null,null,null,null,null,null,null,null,null,null,null,null,null,null,64]
[null,null,null,null,null,null,null,null,null,null,null,null,null,null,null,null,null,null,null,null,null,null,65]
[null,null,null,null,null,null,null,null,null,null,null,null,null,null,null,null,null,null,null,null,null,null,66]
[null,null,null,null,null,null,null,null,null,null,null,null,null,null,null,null,null,null,null,null,null,null,67]
[null,null,null,null,null,null,null,null,null,null,null,null,null,null,null,null,null,null,null,null,null,null,68]
[null,null,null,null,null,null,null,null,null,null,null,null,null,null,null,null,null,null,null,null,null,null,69]
[null,null,null,null,null,null,null,null,null,null,null,null,null,null,null,null,null,null,null,null,null,null,70]
[null,null,null,null,null,null,null,null,null,null,null,null,null,null,null,null,null,null,null,null,null,null,71]
[null,null,null,null,null,null,null,null,null,null,null,null,null,null,null,null,null,null,null,null,null,null,72]
[null,null,null,null,null,null,null,null,null,null,null,null,null,null,null,null,null,null,null,null,null,null,73]
[null,null,null,null,null,null,null,null,null,null,null,null,null,null,null,null,null,null,null,null,null,null,74]
[null,null,null,null,null,null,null,null,null,null,null,null,null,null,null,null,null,null,null,null,null,null,75]
[null,null,null,null,null,null,null,null,null,null,null,null,null,null,null,null,null,null,null,null,null,null,76]
[null,null,null,null,null,null,null,null,null,null,null,null,null,null,null,null,null,null,null,null,null,null,77]
[null,null,null,null,null,null,null,null,null,null,null,null,null,null,null,null,null,null,null,null,null,null,78]
[null,null,null,null,null,null,null,null,null,null,null,null,null,null,null,null,null,null,null,null,null,null,79]
[null,null,null,null,null,null,null,null,null,null,null,null,null,null,null,null,null,null,null,null,null,null,80]
[null,null,null,null,null,null,null,null,null,null,null,null,null,null,null,null,null,null,null,null,null,null,81]
[null,null,null,null,null,null,null,null,null,null,null,null,null,null,null,null,null,null,null,null,null,null,82]
[null,null,null,null,null,null,null,null,null,null,null,null,null,null,null,null,null,null,null,null,null,null,83]
[null,null,null,null,null,null,null,null,null,null,null,null,null,null,null,null,null,null,null,null,null,null,84]
[null,null,null,null,null,null,null,null,null,null,null,null,null,null,null,null,null,null,null,null,null,null,85]
[null,null,null,null,null,null,null,null,null,null,null,null,null,null,null,null,null,null,null,null,null,null,86]
[null,null,null,null,null,null,null,null,null,null,null,null,null,null,null,null,null,null,null,null,null,null,87]
[null,null,null,null,null,null,null,null,null,null,null,null,null,null,null,null,null,null,null,null,null,null,88]
[null,null,null,null,null,null,null,null,null,null,null,null,null,null,null,null,null,null,null,null,null,null,89]
[null,null,null,null,null,null,null,null,null,null,null,null,null,null,null,null,null,null,null,null,null,null,90]
[null,null,null,null,null,null,null,null,null,null,null,null,null,null,null,null,null,null,null,null,null,null,91]
[null,null,null,null,null,null,null,null,null,null,null,null,null,null,null,null,null,null,null,null,null,null,92]
[null,null,null,null,null,null,null,null,null,null,null,null,null,null,null,null,null,null,null,null,null,null,93]
[null,null,null,null,null,null,null,null,null,null,null,null,null,null,null,null,null,null,null,null,null,null,94]
[null,null,null,null,null,null,null,null,null,null,null,null,null,null,null,null,null,null,null,null,null,null,95]
[null,null,null,null,null,null,null,null,null,null,null,null,null,null,null,null,null,null,null,null,null,null,96]
[null,null,null,null,null,null,null,null,null,null,null,null,null,null,null,null,null,null,null,null,null,null,97]
[null,null,null,null,null,null,null,null,null,null,null,null,null,null,null,null,null,null,null,null,null,null,98]
[null,null,null,null,null,null,null,null,null,null,null,null,null,null,null,null,null,null,null,null,null,null,99]
[null,null,null,null,null,null,null,null,null,null,null,null,null,null,null,null,null,null,null,null,null,null,100]
[null,null,null,null,null,null,null,null,null,null,null,null,null,null,null,null,null,null,null,null,null,null,101]
[null,null,null,null,null,null,null,null,null,null,null,null,null,null,null,null,null,null,null,null,null,null,102]
[null,null,null,null,null,null,null,null,null,null,null,null,null,null,null,null,null,null,null,null,null,null,103]
[null,null,null,null,null,null,null,null,null,null,null,null,null,null,null,null,null,null,null,null,null,null,104]
[null,null,null,null,null,null,null,null,null,null,null,null,null,null,null,null,null,null,null,null,null,null,105]
[null,null,null,null,null,null,null,null,null,null,null,null,null,null,null,null,null,null,null,null,null,null,106]
[null,null,null,null,null,null,null,null,null,null,null,null,null,null,null,null,null,null,null,null,null,null,107]
[null,null,null,null,null,null,null,null,null,null,null,null,null,null,null,null,null,null,null,null,null,null,108]
[null,null,null,null,null,null,null,null,null,null,null,null,null,null,null,null,null,null,null,null,null,null,109]
[null,null,null,null,null,null,null,null,null,null,null,null,null,null,null,null,null,null,null,null,null,null,110]
[null,null,null,null,null,null,null,null,null,null,null,null,null,null,null,null,null,null,null,null,null,null,111]
[null,null,null,null,null,null,null,null,null,null,null,null,null,null,null,null,null,null,null,null,null,null,112]
[null,null,null,null,null,null,null,null,null,null,null,null,null,null,null,null,null,null,null,null,null,null,113]
[null,null,null,null,null,null,null,null,null,null,null,null,null,null,null,null,null,null,null,null,null,null,114]
[null,null,null,null,null,null,null,null,null,null,null,null,null,null,null,null,null,null,null,null,null,null,115]
[null,null,null,null,null,null,null,null,null,null,null,null,null,null,null,null,null,null,null,null,null,null,116]
[null,null,null,null,null,null,null,null,null,null,null,null,null,null,null,null,null,null,null,null,null,null,117]
[null,null,null,null,null,null,null,null,null,null,null,null,null,null,null,null,null,null,null,null,null,null,118]
[null,null,null,null,null,null,null,null,null,null,null,null,null,null,null,null,null,null,null,null,null,null,119]
[null,null,null,null,null,null,null,null,null,null,null,null,null,null,null,null,null,null,null,null,null,null,120]
[null,null,null,null,null,null,null,null,null,null,null,null,null,null,null,null,null,null,null,null,null,null,121]
[null,null,null,null,null,null,null,null,null,null,null,null,null,null,null,null,null,null,null,null,null,null,122]
[null,null,null,null,null,null,null,null,null,null,null,null,null,null,null,null,null,null,null,null,null,null,123]
[null,null,null,null,null,null,null,null,null,null,null,null,null,null,null,null,null,null,null,null,null,null,124]
[null,null,null,null,null,null,null,null,null,null,null,null,null,null,null,null,null,null,null,null,null,null,125]
[null,null,null,null,null,null,null,null,null,null,null,null,null,null,null,null,null,null,null,null,null,null,126]
[null,null,null,null,null,null,null,null,null,null,null,null,null,null,null,null,null,null,null,null,null,null,127]
[null,null,null,null,null,null,null,null,null,null,null,null,null,null,null,null,null,null,null,null,null,null,128]
[null,null,null,null,null,null,null,null,null,null,null,null,null,null,null,null,null,null,null,null,null,null,129]
[null,null,null,null,null,null,null,null,null,null,null,null,null,null,null,null,null,null,null,null,null,null,130]
[null,null,null,null,null,null,null,null,null,null,null,null,null,null,null,null,null,null,null,null,null,null,131]
[null,null,null,null,null,null,null,null,null,null,null,null,null,null,null,null,null,null,null,null,null,null,132]
[null,null,null,null,null,null,null,null,null,null,null,null,null,null,null,null,null,null,null,null,null,null,133]
[null,null,null,null,null,null,null,null,null,null,null,null,null,null,null,null,null,null,null,null,null,null,134]
[null,null,null,null,null,null,null,null,null,null,null,null,null,null,null,null,null,null,null,null,null,null,135]
[null,null,null,null,null,null,null,null,null,null,null,null,null,null,null,null,null,null,null,null,null,null,136]
[null,null,null,null,null,null,null,null,null,null,null,null,null,null,null,null,null,null,null,null,null,null,137]
[null,null,null,null,null,null,null,null,null,null,null,null,null,null,null,null,null,null,null,null,null,null,138]
[null,null,null,null,null,null,null,null,null,null,null,null,null,null,null,null,null,null,null,null,null,null,139]
[null,null,null,null,null,null,null,null,null,null,null,null,null,null,null,null,null,null,null,null,null,null,140]
[null,null,null,null,null,null,null,null,null,null,null,null,null,null,null,null,null,null,null,null,null,null,141]
[null,null,null,null,null,null,null,null,null,null,null,null,null,null,null,null,null,null,null,null,null,null,142]
[null,null,null,null,null,null,null,null,null,null,null,null,null,null,null,null,null,null,null,null,null,null,143]
[null,null,null,null,null,null,null,null,null,null,null,null,null,null,null,null,null,null,null,null,null,null,144]
[null,null,null,null,null,null,null,null,null,null,null,null,null,null,null,null,null,null,null,null,null,null,145]
[null,null,null,null,null,null,null,null,null,null,null,null,null,null,null,null,null,null,null,null,null,null,146]
[null,null,null,null,null,null,null,null,null,null,null,null,null,null,null,null,null,null,null,null,null,null,147]
[null,null,null,null,null,null,null,null,null,null,null,null,null,null,null,null,null,null,null,null,null,null,148]
[null,null,null,null,null,null,null,null,null,null,null,null,null,null,null,null,null,null,null,null,null,null,149]
[null,null,null,null,null,null,null,null,null,null,null,null,null,null,null,null,null,null,null,null,null,null,150]
[null,null,null,null,null,null,null,null,null,null,null,null,null,null,null,null,null,null,null,null,null,null,151]
[null,null,null,null,null,null,null,null,null,null,null,null,null,null,null,null,null,null,null,null,null,null,152]
[null,null,null,null,null,null,null,null,null,null,null,null,null,null,null,null,null,null,null,null,null,null,153]
[null,null,null,null,null,null,null,null,null,null,null,null,null,null,null,null,null,null,null,null,null,null,154]
[null,null,null,null,null,null,null,null,null,null,null,null,null,null,null,null,null,null,null,null,null,null,155]
[null,null,null,null,null,null,null,null,null,null,null,null,null,null,null,null,null,null,null,null,null,null,156]
[null,null,null,null,null,null,null,null,null,null,null,null,null,null,null,null,null,null,null,null,null,null,157]
[null,null,null,null,null,null,null,null,null,null,null,null,null,null,null,null,null,null,null,null,null,null,158]
[null,null,null,null,null,null,null,null,null,null,null,null,null,null,null,null,null,null,null,null,null,null,159]
[null,null,null,null,null,null,null,null,null,null,null,null,null,null,null,null,null,null,null,null,null,null,160]
[null,null,null,null,null,null,null,null,null,null,null,null,null,null,null,null,null,null,null,null,null,null,161]
[null,null,null,null,null,null,null,null,null,null,null,null,null,null,null,null,null,null,null,null,null,null,162]
[null,null,null,null,null,null,null,null,null,null,null,null,null,null,null,null,null,null,null,null,null,null,163]
[null,null,null,null,null,null,null,null,null,null,null,null,null,null,null,null,null,null,null,null,null,null,164]
[null,null,null,null,null,null,null,null,null,null,null,null,null,null,null,null,null,null,null,null,null,null,165]
[null,null,null,null,null,null,null,null,null,null,null,null,null,null,null,null,null,null,null,null,null,null,166]
[null,null,null,null,null,null,null,null,null,null,null,null,null,null,null,null,null,null,null,null,null,null,167]
[null,null,null,null,null,null,null,null,null,null,null,null,null,null,null,null,null,null,null,null,null,null,168]
[null,null,null,null,null,null,null,null,null,null,null,null,null,null,null,null,null,null,null,null,null,null,169]
[null,null,null,null,null,null,null,null,null,null,null,null,null,null,null,null,null,null,null,null,null,null,170]
[null,null,null,null,null,null,null,null,null,null,null,null,null,null,null,null,null,null,null,null,null,null,171]
[null,null,null,null,null,null,null,null,null,null,null,null,null,null,null,null,null,null,null,null,null,null,172]
[null,null,null,null,null,null,null,null,null,null,null,null,null,null,null,null,null,null,null,null,null,null,173]
[null,null,null,null,null,null,null,null,null,null,null,null,null,null,null,null,null,null,null,null,null,null,174]
[null,null,null,null,null,null,null,null,null,null,null,null,null,null,null,null,null,null,null,null,null,null,175]
[null,null,null,null,null,null,null,null,null,null,null,null,null,null,null,null,null,null,null,null,null,null,176]
[null,null,null,null,null,null,null,null,null,null,null,null,null,null,null,null,null,null,null,null,null,null,177]
[null,null,null,null,null,null,null,null,null,null,null,null,null,null,null,null,null,null,null,null,null,null,178]
[null,null,null,null,null,null,null,null,null,null,null,null,null,null,null,null,null,null,null,null,null,null,179]
[null,null,null,null,null,null,null,null,null,null,null,null,null,null,null,null,null,null,null,null,null,null,180]
[null,null,null,null,null,null,null,null,null,null,null,null,null,null,null,null,null,null,null,null,null,null,181]
[null,null,null,null,null,null,null,null,null,null,null,null,null,null,null,null,null,null,null,null,null,null,182]
[null,null,null,null,null,null,null,null,null,null,null,null,null,null,null,null,null,null,null,null,null,null,183]
[null,null,null,null,null,null,null,null,null,null,null,null,null,null,null,null,null,null,null,null,null,null,184]
[null,null,null,null,null,null,null,null,null,null,null,null,null,null,null,null,null,null,null,null,null,null,185]
[null,null,null,null,null,null,null,null,null,null,null,null,null,null,null,null,null,null,null,null,null,null,186]
[null,null,null,null,null,null,null,null,null,null,null,null,null,null,null,null,null,null,null,null,null,null,187]
[null,null,null,null,null,null,null,null,null,null,null,null,null,null,null,null,null,null,null,null,null,null,188]
[null,null,null,null,null,null,null,null,null,null,null,null,null,null,null,null,null,null,null,null,null,null,189]
[null,null,null,null,null,null,null,null,null,null,null,null,null,null,null,null,null,null,null,null,null,null,190]
[null,null,null,null,null,null,null,null,null,null,null,null,null,null,null,null,null,null,null,null,null,null,191]
[null,null,null,null,null,null,null,null,null,null,null,null,null,null,null,null,null,null,null,null,null,null,192]
[null,null,null,null,null,null,null,null,null,null,null,null,null,null,null,null,null,null,null,null,null,null,193]
[null,null,null,null,null,null,null,null,null,null,null,null,null,null,null,null,null,null,null,null,null,null,194]
[null,null,null,null,null,null,null,null,null,null,null,null,null,null,null,null,null,null,null,null,null,null,195]
[null,null,null,null,null,null,null,null,null,null,null,null,null,null,null,null,null,null,null,null,null,null,196]
[null,null,null,null,null,null,null,null,null,null,null,null,null,null,null,null,null,null,null,null,null,null,197]
[null,null,null,null,null,null,null,null,null,null,null,null,null,null,null,null,null,null,null,null,null,null,198]
[null,null,null,null,null,null,null,null,null,null,null,null,null,null,null,null,null,null,null,null,null,null,199]
[null,null,null,null,null,null,null,null,null,null,null,null,null,null,null,null,null,null,null,null,null,null,200]
[null,null,null,null,null,null,null,null,null,null,null,null,null,null,null,null,null,null,null,null,null,null,201]
[null,null,null,null,null,null,null,null,null,null,null,null,null,null,null,null,null,null,null,null,null,null,202]
[null,null,null,null,null,null,null,null,null,null,null,null,null,null,null,null,null,null,null,null,null,null,203]
[null,null,null,null,null,null,null,null,null,null,null,null,null,null,null,null,null,null,null,null,null,null,204]
[null,null,null,null,null,null,null,null,null,null,null,null,null,null,null,null,null,null,null,null,null,null,205]
[null,null,null,null,null,null,null,null,null,null,null,null,null,null,null,null,null,null,null,null,null,null,206]
[null,null,null,null,null,null,null,null,null,null,null,null,null,null,null,null,null,null,null,null,null,null,207]
[null,null,null,null,null,null,null,null,null,null,null,null,null,null,null,null,null,null,null,null,null,null,208]
[null,null,null,null,null,null,null,null,null,null,null,null,null,null,null,null,null,null,null,null,null,null,209]
[null,null,null,null,null,null,null,null,null,null,null,null,null,null,null,null,null,null,null,null,null,null,210]
[null,null,null,null,null,null,null,null,null,null,null,null,null,null,null,null,null,null,null,null,null,null,211]
[null,null,null,null,null,null,null,null,null,null,null,null,null,null,null,null,null,null,null,null,null,null,212]
[null,null,null,null,null,null,null,null,null,null,null,null,null,null,null,null,null,null,null,null,null,null,213]
[null,null,null,null,null,null,null,null,null,null,null,null,null,null,null,null,null,null,null,null,null,null,214]
[null,null,null,null,null,null,null,null,null,null,null,null,null,null,null,null,null,null,null,null,null,null,215]
[null,null,null,null,null,null,null,null,null,null,null,null,null,null,null,null,null,null,null,null,null,null,216]
[null,null,null,null,null,null,null,null,null,null,null,null,null,null,null,null,null,null,null,null,null,null,217]
[null,null,null,null,null,null,null,null,null,null,null,null,null,null,null,null,null,null,null,null,null,null,218]
[null,null,null,null,null,null,null,null,null,null,null,null,null,null,null,null,null,null,null,null,null,null,219]
[null,null,null,null,null,null,null,null,null,null,null,null,null,null,null,null,null,null,null,null,null,null,220]
[null,null,null,null,null,null,null,null,null,null,null,null,null,null,null,null,null,null,null,null,null,null,221]
[null,null,null,null,null,null,null,null,null,null,null,null,null,null,null,null,null,null,null,null,null,null,222]
[null,null,null,null,null,null,null,null,null,null,null,null,null,null,null,null,null,null,null,null,null,null,223]
[null,null,null,null,null,null,null,null,null,null,null,null,null,null,null,null,null,null,null,null,null,null,224]
[null,null,null,null,null,null,null,null,null,null,null,null,null,null,null,null,null,null,null,null,null,null,225]
[null,null,null,null,null,null,null,null,null,null,null,null,null,null,null,null,null,null,null,null,null,null,226]
[null,null,null,null,null,null,null,null,null,null,null,null,null,null,null,null,null,null,null,null,null,null,227]
[null,null,null,null,null,null,null,null,null,null,null,null,null,null,null,null,null,null,null,null,null,null,228]
[null,null,null,null,null,null,null,null,null,null,null,null,null,null,null,null,null,null,null,null,null,null,229]
[null,null,null,null,null,null,null,null,null,null,null,null,null,null,null,null,null,null,null,null,null,null,230]
[null,null,null,null,null,null,null,null,null,null,null,null,null,null,null,null,null,null,null,null,null,null,231]
[null,null,null,null,null,null,null,null,null,null,null,null,null,null,null,null,null,null,null,null,null,null,232]
[null,null,null,null,null,null,null,null,null,null,null,null,null,null,null,null,null,null,null,null,null,null,233]
[null,null,null,null,null,null,null,null,null,null,null,null,null,null,null,null,null,null,null,null,null,null,234]
[null,null,null,null,null,null,null,null,null,null,null,null,null,null,null,null,null,null,null,null,null,null,235]
[null,null,null,null,null,null,null,null,null,null,null,null,null,null,null,null,null,null,null,null,null,null,236]
[null,null,null,null,null,null,null,null,null,null,null,null,null,null,null,null,null,null,null,null,null,null,237]
[null,null,null,null,null,null,null,null,null,null,null,null,null,null,null,null,null,null,null,null,null,null,238]
[null,null,null,null,null,null,null,null,null,null,null,null,null,null,null,null,null,null,null,null,null,null,239]
[null,null,null,null,null,null,null,null,null,null,null,null,null,null,null,null,null,null,null,null,null,null,240]
[null,null,null,null,null,null,null,null,null,null,null,null,null,null,null,null,null,null,null,null,null,null,241]
[null,null,null,null,null,null,null,null,null,null,null,null,null,null,null,null,null,null,null,null,null,null,242]
[null,null,null,null,null,null,null,null,null,null,null,null,null,null,null,null,null,null,null,null,null,null,243]
[null,null,null,null,null,null,null,null,null,null,null,null,null,null,null,null,null,null,null,null,null,null,244]
[null,null,null,null,null,null,null,null,null,null,null,null,null,null,null,null,null,null,null,null,null,null,245]
[null,null,null,null,null,null,null,null,null,null,null,null,null,null,null,null,null,null,null,null,null,null,246]
[null,null,null,null,null,null,null,null,null,null,null,null,null,null,null,null,null,null,null,null,null,null,247]
[null,null,null,null,null,null,null,null,null,null,null,null,null,null,null,null,null,null,null,null,null,null,248]
[null,null,null,null,null,null,null,null,null,null,null,null,null,null,null,null,null,null,null,null,null,null,249]
[null,null,null,null,null,null,null,null,null,null,null,null,null,null,null,null,null,null,null,null,null,null,250]
[null,null,null,null,null,null,null,null,null,null,null,null,null,null,null,null,null,null,null,null,null,null,251]
[null,null,null,null,null,null,null,null,null,null,null,null,null,null,null,null,null,null,null,null,null,null,252]
[null,null,null,null,null,null,null,null,null,null,null,null,null,null,null,null,null,null,null,null,null,null,253]
[null,null,null,null,null,null,null,null,null,null,null,null,null,null,null,null,null,null,null,null,null,null,254]
[null,null,null,null,null,null,null,null,null,null,null,null,null,null,null,null,null,null,null,null,null,null,255]
[null,null,null,null,null,null,null,null,null,null,null,null,null,null,null,null,null,null,null,null,null,null,256]
[null,null,null,null,null,null,null,null,null,null,null,null,null,null,null,null,null,null,null,null,null,null,257]
[null,null,null,null,null,null,null,null,null,null,null,null,null,null,null,null,null,null,null,null,null,null,258]
[null,null,null,null,null,null,null,null,null,null,null,null,null,null,null,null,null,null,null,null,null,null,259]
[null,null,null,null,null,null,null,null,null,null,null,null,null,null,null,null,null,null,null,null,null,null,260]
[null,null,null,null,null,null,null,null,null,null,null,null,null,null,null,null,null,null,null,null,null,null,261]
[null,null,null,null,null,null,null,null,null,null,null,null,null,null,null,null,null,null,null,null,null,null,262]
[null,null,null,null,null,null,null,null,null,null,null,null,null,null,null,null,null,null,null,null,null,null,263]
[null,null,null,null,null,null,null,null,null,null,null,null,null,null,null,null,null,null,null,null,null,null,264]
[null,null,null,null,null,null,null,null,null,null,null,null,null,null,null,null,null,null,null,null,null,null,265]
[null,null,null,null,null,null,null,null,null,null,null,null,null,null,null,null,null,null,null,null,null,null,266]
[null,null,null,null,null,null,null,null,null,null,null,null,null,null,null,null,null,null,null,null,null,null,267]
[null,null,null,null,null,null,null,null,null,null,null,null,null,null,null,null,null,null,null,null,null,null,268]
[null,null,null,null,null,null,null,null,null,null,null,null,null,null,null,null,null,null,null,null,null,null,269]
[null,null,null,null,null,null,null,null,null,null,null,null,null,null,null,null,null,null,null,null,null,null,270]
[null,null,null,null,null,null,null,null,null,null,null,null,null,null,null,null,null,null,null,null,null,null,271]
[null,null,null,null,null,null,null,null,null,null,null,null,null,null,null,null,null,null,null,null,null,null,272]
[null,null,null,null,null,null,null,null,null,null,null,null,null,null,null,null,null,null,null,null,null,null,273]
[null,null,null,null,null,null,null,null,null,null,null,null,null,null,null,null,null,null,null,null,null,null,274]
[null,null,null,null,null,null,null,null,null,null,null,null,null,null,null,null,null,null,null,null,null,null,275]
[null,null,null,null,null,null,null,null,null,null,null,null,null,null,null,null,null,null,null,null,null,null,276]
[null,null,null,null,null,null,null,null,null,null,null,null,null,null,null,null,null,null,null,null,null,null,277]
[null,null,null,null,null,null,null,null,null,null,null,null,null,null,null,null,null,null,null,null,null,null,278]
[null,null,null,null,null,null,null,null,null,null,null,null,null,null,null,null,null,null,null,null,null,null,279]
[null,null,null,null,null,null,null,null,null,null,null,null,null,null,null,null,null,null,null,null,null,null,280]
[null,null,null,null,null,null,null,null,null,null,null,null,null,null,null,null,null,null,null,null,null,null,281]
[null,null,null,null,null,null,null,null,null,null,null,null,null,null,null,null,null,null,null,null,null,null,282]
[null,null,null,null,null,null,null,null,null,null,null,null,null,null,null,null,null,null,null,null,null,null,283]
[null,null,null,null,null,null,null,null,null,null,null,null,null,null,null,null,null,null,null,null,null,null,284]
[null,null,null,null,null,null,null,null,null,null,null,null,null,null,null,null,null,null,null,null,null,null,285]
[null,null,null,null,null,null,null,null,null,null,null,null,null,null,null,null,null,null,null,null,null,null,286]
[null,null,null,null,null,null,null,null,null,null,null,null,null,null,null,null,null,null,null,null,null,null,287]
[null,null,null,null,null,null,null,null,null,null,null,null,null,null,null,null,null,null,null,null,null,null,288]
[null,null,null,null,null,null,null,null,null,null,null,null,null,null,null,null,null,null,null,null,null,null,289]
[null,null,null,null,null,null,null,null,null,null,null,null,null,null,null,null,null,null,null,null,null,null,290]
[null,null,null,null,null,null,null,null,null,null,null,null,null,null,null,null,null,null,null,null,null,null,291]
[null,null,null,null,null,null,null,null,null,null,null,null,null,null,null,null,null,null,null,null,null,null,292]
[null,null,null,null,null,null,null,null,null,null,null,null,null,null,null,null,null,null,null,null,null,null,293]
[null,null,null,null,null,null,null,null,null,null,null,null,null,null,null,null,null,null,null,null,null,null,294]
[null,null,null,null,null,null,null,null,null,null,null,null,null,null,null,null,null,null,null,null,null,null,295]
[null,null,null,null,null,null,null,null,null,null,null,null,null,null,null,null,null,null,null,null,null,null,296]
[null,null,null,null,null,null,null,null,null,null,null,null,null,null,null,null,null,null,null,null,null,null,297]
[null,null,null,null,null,null,null,null,null,null,null,null,null,null,null,null,null,null,null,null,null,null,298]
[null,null,null,null,null,null,null,null,null,null,null,null,null,null,null,null,null,null,null,null,null,null,299]
[null,null,null,null,null,null,null,null,null,null,null,null,null,null,null,null,null,null,null,null,null,null,300]
[null,null,null,null,null,null,null,null,null,null,null,null,null,null,null,null,null,null,null,null,null,null,301]
[null,null,null,null,null,null,null,null,null,null,null,null,null,null,null,null,null,null,null,null,null,null,302]
[null,null,null,null,null,null,null,null,null,null,null,null,null,null,null,null,null,null,null,null,null,null,303]
[null,null,null,null,null,null,null,null,null,null,null,null,null,null,null,null,null,null,null,null,null,null,304]
[null,null,null,null,null,null,null,null,null,null,null,null,null,null,null,null,null,null,null,null,null,null,305]
[null,null,null,null,null,null,null,null,null,null,null,null,null,null,null,null,null,null,null,null,null,null,306]
[null,null,null,null,null,null,null,null,null,null,null,null,null,null,null,null,null,null,null,null,null,null,307]
[null,null,null,null,null,null,null,null,null,null,null,null,null,null,null,null,null,null,null,null,null,null,308]
[null,null,null,null,null,null,null,null,null,null,null,null,null,null,null,null,null,null,null,null,null,null,309]
[null,null,null,null,null,null,null,null,null,null,null,null,null,null,null,null,null,null,null,null,null,null,310]
[null,null,null,null,null,null,null,null,null,null,null,null,null,null,null,null,null,null,null,null,null,null,311]
[null,null,null,null,null,null,null,null,null,null,null,null,null,null,null,null,null,null,null,null,null,null,312]
[null,null,null,null,null,null,null,null,null,null,null,null,null,null,null,null,null,null,null,null,null,null,313]
[null,null,null,null,null,null,null,null,null,null,null,null,null,null,null,null,null,null,null,null,null,null,314]
[null,null,null,null,null,null,null,null,null,null,null,null,null,null,null,null,null,null,null,null,null,null,315]
[null,null,null,null,null,null,null,null,null,null,null,null,null,null,null,null,null,null,null,null,null,null,316]
[null,null,null,null,null,null,null,null,null,null,null,null,null,null,null,null,null,null,null,null,null,null,317]
[null,null,null,null,null,null,null,null,null,null,null,null,null,null,null,null,null,null,null,null,null,null,318]
[null,null,null,null,null,null,null,null,null,null,null,null,null,null,null,null,null,null,null,null,null,null,319]
[null,null,null,null,null,null,null,null,null,null,null,null,null,null,null,null,null,null,null,null,null,null,320]
[null,null,null,null,null,null,null,null,null,null,null,null,null,null,null,null,null,null,null,null,null,null,321]
[null,null,null,null,null,null,null,null,null,null,null,null,null,null,null,null,null,null,null,null,null,null,322]
[null,null,null,null,null,null,null,null,null,null,null,null,null,null,null,null,null,null,null,null,null,null,323]
[null,null,null,null,null,null,null,null,null,null,null,null,null,null,null,null,null,null,null,null,null,null,324]
[null,null,null,null,null,null,null,null,null,null,null,null,null,null,null,null,null,null,null,null,null,null,325]
[null,null,null,null,null,null,null,null,null,null,null,null,null,null,null,null,null,null,null,null,null,null,326]
[null,null,null,null,null,null,null,null,null,null,null,null,null,null,null,null,null,null,null,null,null,null,327]
[null,null,null,null,null,null,null,null,null,null,null,null,null,null,null,null,null,null,null,null,null,null,328]
[null,null,null,null,null,null,null,null,null,null,null,null,null,null,null,null,null,null,null,null,null,null,329]
[null,null,null,null,null,null,null,null,null,null,null,null,null,null,null,null,null,null,null,null,null,null,330]
[null,null,null,null,null,null,null,null,null,null,null,null,null,null,null,null,null,null,null,null,null,null,331]
[null,null,null,null,null,null,null,null,null,null,null,null,null,null,null,null,null,null,null,null,null,null,332]
[null,null,null,null,null,null,null,null,null,null,null,null,null,null,null,null,null,null,null,null,null,null,333]
[null,null,null,null,null,null,null,null,null,null,null,null,null,null,null,null,null,null,null,null,null,null,334]
[null,null,null,null,null,null,null,null,null,null,null,null,null,null,null,null,null,null,null,null,null,null,335]
[null,null,null,null,null,null,null,null,null,null,null,null,null,null,null,null,null,null,null,null,null,null,336]
[null,null,null,null,null,null,null,null,null,null,null,null,null,null,null,null,null,null,null,null,null,null,337]
[null,null,null,null,null,null,null,null,null,null,null,null,null,null,null,null,null,null,null,null,null,null,338]
[null,null,null,null,null,null,null,null,null,null,null,null,null,null,null,null,null,null,null,null,null,null,339]
[null,null,null,null,null,null,null,null,null,null,null,null,null,null,null,null,null,null,null,null,null,null,340]
[null,null,null,null,null,null,null,null,null,null,null,null,null,null,null,null,null,null,null,null,null,null,341]
[null,null,null,null,null,null,null,null,null,null,null,null,null,null,null,null,null,null,null,null,null,null,342]
[null,null,null,null,null,null,null,null,null,null,null,null,null,null,null,null,null,null,null,null,null,null,343]
[null,null,null,null,null,null,null,null,null,null,null,null,null,null,null,null,null,null,null,null,null,null,344]
[null,null,null,null,null,null,null,null,null,null,null,null,null,null,null,null,null,null,null,null,null,null,345]
[null,null,null,null,null,null,null,null,null,null,null,null,null,null,null,null,null,null,null,null,null,null,346]
[null,null,null,null,null,null,null,null,null,null,null,null,null,null,null,null,null,null,null,null,null,null,347]
[null,null,null,null,null,null,null,null,null,null,null,null,null,null,null,null,null,null,null,null,null,null,348]
[null,null,null,null,null,null,null,null,null,null,null,null,null,null,null,null,null,null,null,null,null,null,349]
[null,null,null,null,null,null,null,null,null,null,null,null,null,null,null,null,null,null,null,null,null,null,350]
[null,null,null,null,null,null,null,null,null,null,null,null,null,null,null,null,null,null,null,null,null,null,351]
[null,null,null,null,null,null,null,null,null,null,null,null,null,null,null,null,null,null,null,null,null,null,352]
[null,null,null,null,null,null,null,null,null,null,null,null,null,null,null,null,null,null,null,null,null,null,353]
[null,null,null,null,null,null,null,null,null,null,null,null,null,null,null,null,null,null,null,null,null,null,354]
[null,null,null,null,null,null,null,null,null,null,null,null,null,null,null,null,null,null,null,null,null,null,355]
[null,null,null,null,null,null,null,null,null,null,null,null,null,null,null,null,null,null,null,null,null,null,356]
[null,null,null,null,null,null,null,null,null,null,null,null,null,null,null,null,null,null,null,null,null,null,357]
[null,null,null,null,null,null,null,null,null,null,null,null,null,null,null,null,null,null,null,null,null,null,358]
[null,null,null,null,null,null,null,null,null,null,null,null,null,null,null,null,null,null,null,null,null,null,359]
[null,null,null,null,null,null,null,null,null,null,null,null,null,null,null,null,null,null,null,null,null,null,360]
[null,null,null,null,null,null,null,null,null,null,null,null,null,null,null,null,null,null,null,null,null,null,361]
[null,null,null,null,null,null,null,null,null,null,null,null,null,null,null,null,null,null,null,null,null,null,362]
[null,null,null,null,null,null,null,null,null,null,null,null,null,null,null,null,null,null,null,null,null,null,363]
[null,null,null,null,null,null,null,null,null,null,null,null,null,null,null,null,null,null,null,null,null,null,364]
[null,null,null,null,null,null,null,null,null,null,null,null,null,null,null,null,null,null,null,null,null,null,365]
[]
[]
[]
[]
[]
[]
[]
[]
[]
[]
[]
[]
[]
[]
[]
[]
[]
[]
[]
[]
[]
[]
[]
[]
[]
[]
[]
[]
[]
[]
[]
[]
[]
[]
[]
[]
[]
[]
[]
[]
[]
[]
[]
[]
[]
[]
[]
[]
[]
[]
[]
[]
[]
[]
[]
[]
[]
[]
[]
[]
[]
[]
[]
[]
[]
[]
[]
[]
[]
[]
[]
[]
[]
[]
[]
[]
[]
[]
[]
[]
[]
[]
[]
[]
[]
[]
[]
[]
[]
[]
[]
[]
[]
[]
[]
[]
[]
[]
[]
[]
[]
[]
[]
[]
[]
[]
[]
[]
[]
[]
[]
[]
[]
[]
[]
[]
[]
[]
[]
[]
[]
[]
[]
[]
[]
[]
[]
[]
[]
[]
[]
[]
[]
[]
[]
[]
[]
[]
[]
[]
[]
[]
[]
[]
[]
[]
[]
[]
[]
[]
[]
[]
[]
[]
[]
[]
[]
[]
[]
[]
[]
[]
[]
[]
[]
[]
[]
[]
[]
[]
[]
[]
[]
[]
[]
[]
[]
[]
[]
[]
[]
[]
[]
[]
[]
[]
[]
[]
[]
[]
[]
[]
[]
[]
[]
[]
[]
[]
[]
[]
[]
[]
[]
[]
[]
[]
[]
[0,1,2,3,4,5,6,7,8,9,10,11,12,13,14,15,16,17,18,19,20,21,22,23,24,25,26,27,28,29,30,31,32,33,34,35,36,37,38,39,40,41,42,43,44,45,46,47,48,49,50,51,52,53,54,55,56,57,58,59,60,61,62,63,64,65,66,67,68,69,70,71,72,73,74,75,76,77,78,79,80,81,82,83,84,85,86,87,88,89,90,91,92,93,94,95,96,97,98,99,100,101,102,103,104,105,106,107,108,109,110,111,112,113,114,115,116,117,118,119,120,121,122,123,124,125,126,127,128,129,130,131,132,133,134,135,136,137,138,139,140,141,142,143,144,145,146,147,148,149,150,151,152,153,154,155,156,157,158,159,160,161,162,163,164,165,166,167,168,169,170,171,172,173,174,175,176,177,178,179,180,181,182,183,184,185,186,187,188,189,190,191,192,193,194,195,196,197,198,199,200,201,202,203,204,205,206,207,208,209,210,211,212,213,214,215,216,217,218,219,220,221,222,223,224,225,226,227,228,229,230,231,232,233,234,235,236,237,238,239,240,241,242,243,244,245,246,247,248,249,250,251,252,253,254,255,256,257,258,259,260,261,262,263,264,265,266,267,268,269,270,271,272,273,274,275,276,277,278,279,280,281,282,283,284,285,286,287,288,289,290,291,292,293,294,295,296,297,298,299,300,301,302,303,304,305,306,307,308,309,310,311,312,313,314,315,316,317,318,319,320,321,322,323,324,325,326,327,328,329,330,331,332,333,334,335,336,337,338,339,340,341,342,343,344,345,346,347,348,349,350,351,352,353,354,355,356,357,358,359,360,361,362,363,364,365]
[]
[]
[]
[]
[]
[]
[]
[]
[]
[]
[]
[]
[]
[]
[]
[]
[]
[]
[]
[]
[]
[]
[]
[]
[]
[]
[]
[]
[]
[]
[]
[]
[]
[]
[]
[]
[]
[]
[]
[]
[]
[]
[]
[]
[]
[]
[]
[]
[]
[]
[]
[]
[]
[]
[]
[]
[]
[]
[]
[]
[]
[]
[]
[]
[]
[]
[]
[]
[]
[]
[]
[]
[]
[]
[]
[]
[]
[]
[]
[]
[]
[]
[]
[]
[]
[]
[]
[]
[]
[]
[]
[]
[]
[]
[]
[]
[]
[]
[]
[]
[]
[]
[]
[]
[]
[]
[]
[]
[]
[]
[]
[]
[]
[]
[]
[]
[]
[]
[]
[]
[]
[]
[]
[]
[]
[]
[]
[]
[]
[]
[]
[]
[]
[]
[]
[]
[]
[]
[]
[]
[]
[]
[]
[]
[]
[]
[]
[]
[]
[]
[]
[]
[]
[]
[]
[]
[]
[]
[]
[]
[]
[]
[]
[]
[]
[]
[]
[]
[]
[]
[]
[]
[]
[]
[]
[]
[]
[]
[]
[]
[]
[]
[]
[]
[]
[]
[]
[]
[]
[]
[]
[]
[]
[]
[]
[]
[]
[]
[]
[]
[]
[]
[]
[]
[]
[]
[]
[]
[]
[]
[]
[]
[]
[]
[]
[]
[]
[]
[]
[]
[]
[]
[]
[]
[]
[]
[]
[]
[]
[]
[]
[]
[]
[]
[]
[]
[]
[]
[]
[]
[]
[]
[]
[]
[]
[]
[]
[]
[]
[]
[]
[]
[]
[]
[]
[]
[]
[]
[]
[]
[]
[]
[]
[]
[]
[]
[]
[]
[]
[]
[]
[]
[]
[]
[]
[]
[]
[]
[]
[]
[]
[]
[]
[]
[]
[]
[]
[]
[]
[]
[]
[]
[]
[]
[]
[]
[]
[]
[]
[]
[]
[]
[]
[]
[]
[]
[]
[]
[]
[]
[]
[]
[]
[]
[]
[]
[]
[]
[]
[]
[]
[]
[]
[]
[]
[]
[]
[]
[]
[]
[]
[]
[]
[]
[]
[]
[]
[]
[]
[]
[]
[]
[]
[]
[]
[]
[]
[]
[]
[]
[]
[]
[]
[]
[]
[]
[]
[]
[]
[]
[]
[]
[]
[]
[]
[]
[]
[]
[]
[]
[]
[]
[]
[]
[]
[]
[]
[]
[]
[]
[]
[]
[]
[]
[]
[]
[]
[]
[]
[]
[]
[]
[]
[]
[]
[]
[]
[]
[]
[]
[]
[]
[]
[]
[]
[]
[]
[]
[]
[]
[]
[]
[]
[]
[]
[]
[]
[]
[]
[]
[]
[]
[]
[]
[]
[]
[]
[]
[]
[]
[]
[]
[]
[]
[]
[]
[]
[]
[]
[]
[]
[]
[]
[]
[]
[]
[]
[]
[]
[]
[]
[]
[]
[]
[]
[]
[]
[]
[]
[]
[]
[]
[]
[]
[]
[]
[]
[]
[]
[]
[]
[]
[]
[]
[]
[]
[]
[]
[]
[]
[]
[]
[]
[]
[]
[]
[]
[]
[]
[]
[]
[]
[]
[]
[]
[]
[]
[]
[]
[]
[]
[]
[]
[]
[]
[]
[]
[]
[]
[]
[]
[]
[]
[]
[]
[]
[]
[]
[]
[]
[]
[]
[]
[]
[]
[]
[]
[]
[]
[]
[]
[]
[]
[]
[]
[]
[]
[]
[]
[]
[]
[]
[]
[]
[]
[]
[]
[]
[]
[]
[]
[]
[]
[]
[]
[]
[]
[]
[]
[]
[]
[]
[]
[]
[]
[]
[]
[]
[]
[]
[]
[]
[]
[]
[]
[]
[]
[]
[]
[]
[]
[]
[]
[]
[]
[]
[]
[]
[]
[]
[]
[]
[]
[]
[]
[]
[]
[]
[]
[]
[]
[]
[]
[]
[]
[]
[]
[]
[]
[]
[]
[]
[]
[]
[]
[]
[]
[]
[]
[]
[]
[]
[]
[]
[]
[]
[]
[]
[]
[]
[]
[]
[]
[]
[]
[]
[]
[]
[]
[]
[]
[]
[]
[]
[]
[]
[]
[]
[]
[]
[]
[]
[]
[]
[]
[]
[]
[]
[]
[]
[]
[]
[]
[]
[]
[]
[]
[]
[]
[]
[]
[]
[]
[]
[]
[]
[]
[]
[]
[]
[]
[]
[]
[]
[]
[]
[]
[]
[]
[]
[]
[]
[]
[]
[]
[]
[]
[]
[]
[]
[]
[]
[]
[]
[]
[]
[]
[]
[]
[]
[]
[]
[]
[]
[]
[]
[]
[]
[]
[]
[]
[]
[]
[]
[]
[]
[]
[]
[]
[]
[]
[]
[]
[]
[]
[]
[]
[]
[]
[]
[]
[]
[]
[]
[]
[]
[]
[]
[]
[]
[]
[]
[]
[]
[]
[]
[]
[]
[]
[]
[]
[]
[]
[]
[]
[]
[]
[]
[]
[]
[]
[]
[]
[]
[]
[]
[]
[]
[]
[]
[]
[]
[]
[]
[]
[]
[]
[]
[]
[]
[]
[]
[]
[]
[]
[]
[]
[]
[]
[]
[]
[]
[]
[]
[]
[]
[]
[]
[]
[]
[]
[]
[]
[]
[]
[]
[]
[]
[]
[]
[]
[]
[]
[]
[]
[]
[]
[]
[]
[]
[]
[]
[]
[]
[]
[]
[]
[]
[]
[]
[]
[]
[]
[]
[]
[]
[]
[]
[]
[]
[]
[]
[]
[]
[]
[]
[]
[]
[]
[]
[]
[]
[]
[]
[]
[]
[]
[]
[]
[]
[]
[]
[]
[]
[]
[]
[]
[]
[]
[]
[]
[]
[]
[]
[]
[]
[]
[]
[]
[]
[]
[]
[]
[]
[]
[]
[]
[]
[]
[]
[]
[]
[]
[]
[]
[]
[]
[]
[]
[]
[]
[]
[]
[]
[]
[]
[]
[]
[]
[]
[]
[]
[]
[]
[]
[]
[]
[]
[]
[]
[]
[]
[]
[]
[]
[]
[]
[]
[]
[]
[]
[]
[]
[]
[]
[]
[]
[]
[]
[]
[]
[]
[]
[]
[]
[]
[]
[]
[]
[]
[]
[]
[]
[]
[]
[]
[]
[]
[]
[]
[]
[]
[]
[]
[]
[]
[]
[]
[]
[]
[]
[]
[]
[]
[]
[]
[]
[]
[]
[]
[]
[]
[]
[]
[]
[]
[]
[]
[]
[]
[]
[]
[]
[]
[]
[]
[]
[]
[]
[]
[]
[]
[]
[]
[]
[]
[]
[]
[]
[]
[]
[]
[]
[]
[]
[]
[]
[]
[]
[]
[]
[]
[]
[]
[]
[]
[]
[]
[]
[]
[]
[]
[]
[]
[]
[]
[]
[]
[]
[]
[]
[]
[]
[]
[]
[]
[]
[]
[]
[]
[]
[]
[]
[]
[]
[]
[]
[]
[]
[]
[]
[]
[]
[]
[]
[]
[]
[]
[]
[]
[]
[]
[]
[]
[]
[]
[]
[]
[]
[]
[]
[]
[]
[]
[]
[]
[]
[]
[]
[]
[]
[]
[]
[]
[]
[]
[]
[]
[]
[]
[]
[]
[]
[]
[]
[]
[]
[]
[]
[]
[]
[]
[]
[]
[]
[]
[]
[]
[]
[]
[]
[]
[]
[]
[]
[]
[]
[]
[]
[]
[]
[]
[]
[]
[]
[]
[]
[]
[]
[]
[]
[]
[]
[]
[]
[]
[]
[]
[]
[]
[]
[]
[]
[]
[]
[]
[]
[]
[]
[]
[]
[]
[]
[]
[]
[]
[]
[]
[]
[]
[]
[]
[]
[]
[]
[]
[]
[]
[]
[]
[]
[]
[]
[]
[]
[]
[]
[]
[]
[]
[]
[]
[]
[]
[]
[]
[]
[]
[]
[]
[]
[]
[]
[]
[]
[]
[]
[]
[]
[]
[]
[]
[]
[]
[]
[]
[]
[]
[]
[]
[]
[]
[]
[]
[]
[]
[]
[]
[]
[]
[]
[]
[]
[]
[]
[]
[]
[]
[]
[]
[]
[]
[]
[]
[]
[]
[]
[]
[]
[]
[]
[]
[]
[]
[]
[]
[]
[]
[]
[]
[]
[]
[]
[]
[]
[]
[]
[]
[]
[]
[]
[]
[]
[]
[]
[]
[]
[]
[]
[]
[]
[]
[]
[]
[]
[]
[]
[]
[]
[]
[]
[]
[]
[]
[]
[]
[]
[]
[]
[]
[]
[]
[]
[]
[]
[]
[]
[]
[]
[]
[]
[]
[]
[]
[]
[]
[]
[]
[]
[]
[]
[]
[]
[]
[]
[]
[]
[]
[]
[]
[]
[]
[]
[]
[]
[]
[]
[]
[]
[]
[]
[]
[]
[]
[]
[]
[]
[]
[]
[]
[]
[]
[]
[]
[]
[]
[]
[]
[]
[]
[]
[]
[]
[]
[]
[]
[]
[]
[]
[]
[]
[]
[]
[]
[]
[]
[]
[]
[]
[]
[]
[]
[]
[]
[]
[]
[]
[]
[]
[]
[]
[]
[]
[]
[]
[]
[]
[]
[]
[]
[]
[]
[]
[]
[]
[]
[]
[]
[]
[]
[]
[]
[]
[]
[]
[]
[]
[]
[]
[]
[]
[]
[]
[]
[]
[]
[]
[]
[]
[]
[]
[]
[]
[]
[]
[]
[]
[]
[]
[]
[]
[]
[]
[]
[]
[]
[]
[]
[]
[]
[]
[]
[]
[]
[]
[]
[]
[]
[]
[]
[]
[]
[]
[]
[]
[]
[]
[]
[]
[]
[]
[]
[]
[]
[]
[]
[]
[]
[]
[]
[]
[]
[]
[]
[]
[]
[]
[]
[]
[]
[]
[]
[]
[]
[]
[]
[]
[]
[]
[]
[]
[]
[]
[]
[]
[]
[]
[]
[]
[]
[]
[]
[]
[]
[]
[]
[]
[]
[]
[]
[]
[]
[]
[]
[]
[]
[]
[]
[]
[]
[]
[]
[]
[]
[]
[]
[]
[]
[]
[]
[]
[]
[]
[]
[]
[]
[]
[]
[]
[]
[]
[]
[]
[]
[]
[]
[]
[]
[]
[]
[]
[]
[]
[]
[]
[]
[]
[]
[]
[]
[]
[]
[]
[]
[]
[]
[]
[]
[]
[]
[]
[]
[]
[]
[]
[]
[]
[]
[]
[]
[]
[]
[]
[]
[]
[]
[]
[]
[]
[]
[]
[]
[]
[]
[]
[]
[]
[]
[]
[]
[]
[]
[]
[]
[]
[]
[]
[]
[]
[]
[]
[]
[]
[]
[]
[]
[]
[]
[]
[]
[]
[]
[]
[]
[]
[]
[]
[]
[]
[]
[]
[]
[]
[]
[]
[]
[]
[]
[]
[]
[]
[]
[]
[]
[]
[]
[]
[]
[]
[]
[]
[]
[]
[]
[]
[]
[]
[]
[]
[]
[]
[]
[]
[]
[]
[]
[]
[]
[]
[]
[]
[]
[]
[]
[]
[]
[]
[]
[]
[]
[]
[]
[]
[]
[]
[]
[]
[]
[]
[]
[]
[]
[]
[]
[]
[]
[]
[]
[]
[]
[]
[]
[]
[]
[]
[]
[]
[]
[]
[]
[]
[]
[]
[]
[]
[]
[]
[]
[]
[]
[]
[]
[]
[]
[]
[]
[]
[]
[]
[]
[]
[]
[]
[]
[]
[]
[]
[]
[]
[]
[]
[]
[]
[]
[]
[]
[]
[]
[]
[]
[]
[]
[]
[]
[]
[]
[]
[]
[]
[]
[]
[]
[]
[]
[]
[]
[]
[]
[]
[]
[]
[]
[]
[]
[]
[]
[]
[]
[]
[]
[]
[]
[]
[]
[]
[]
[]
[]
[]
[]
[]
[]
[]
[]
[]
[]
[]
[]
[]
[]
[]
[]
[]
[]
[]
[]
[]
[]
[]
[]
[]
[]
[]
[]
[]
[]
[]
[]
[]
[]
[]
[]
[]
[]
[]
[]
[]
[]
[]
[]
[]
[]
[]
[]
[]
[]
[]
[]
[]
[]
[]
[]
[]
[]
[]
[]
[]
[]
[]
[]
[]
[]
[]
[]
[]
[]
[]
[]
[]
[]
[]
[]
[]
[]
[]
[]
[]
[]
[]
[]
[]
[]
[]
[]
[]
[]
[]
[]
[]
[]
[]
[]
[]
[]
[]
[]
[]
[]
[]
[]
[]
[]
[]
[]
[]
[]
[]
[]
[]
[]
[]
[]
[]
[]
[]
[]
[]
[]
[]
[]
[]
[]
[]
[]
[]
[]
[]
[]
[]
[]
[]
[]
[]
[]
[]
[]
[]
[]
[]
[]
[]
[]
[]
[]
[]
[]
[]
[]
[]
[]
[]
[]
[]
[]
[]
[]
[]
[]
[]
[]
[]
[]
[]
[]
[]
[]
[]
[]
[]
[]
[]
[]
[]
[]
[]
[]
[]
[]
[]
[]
[]
[]
[]
[]
[]
[]
[]
[]
[]
[]
[]
[]
[]
[]
[]
[]
[]
[]
[]
[]
[]
[]
[]
[]
[]
[]
[]
[]
[]
[]
[]
[]
[]
[]
[]
[]
[]
[]
[]
[]
[]
[]
[]
[]
[]
[]
[]
[]
[]
[]
[]
[]
[]
[]
[]
[]
[]
[]
[]
[]
[]
[]
[]
[]
[]
[]
[]
[]
[]
[]
[]
[]
[]
[]
[]
[]
[]
[]
[]
[]
[]
[]
[]
[]
[]
[]
[]
[]
[]
[]
[]
[]
[]
[]
[]
[]
[]
[]
[]
[]
[]
[]
[]
[]
[]
[]
[]
[]
[]
[]
[]
[]
[]
[]
[]
[]
[]
[]
[]
[]
[]
[]
[]
[]
[]
[]
[]
[]
[]
[]
[]
[]
[]
[]
[]
[]
[]
[]
[]
[]
[]
[]
[]
[]
[]
[]
[]
[]
[]
[]
[]
[]
[]
[]
[]
[]
[]
[]
[]
[]
[]
[]
[]
[]
[]
[]
[]
[]
[]
[]
[]
[]
[]
[]
[]
[]
[]
[]
[]
[]
[]
[]
[]
[]
[]
[]
[]
[]
[]
[]
[]
[]
[]
[]
[]
[]
[]
[]
[]
[]
[]
[]
[]
[]
[]
[]
[]
[]
[]
[]
[]
[]
[]
[]
[]
[]
[]
[]
[]
[]
[]
[]
[]
[]
[]
[]
[]
[]
[]
[]
[]
[]
[]
[]
[]
[]
[]
[]
[]
[]
[]
[]
[]
[]
[]
[]
[]
[]
[]
[]
[]
[]
[]
[]
[]
[]
[]
[]
[]
[]
[]
[]
[]
[]
[]
[]
[]
[]
[]
[]
[]
[]
[]
[]
[]
[]
[]
[]
[]
[]
[]
[]
[]
[]
[]
[]
[]
[]
[]
[]
[]
[]
[]
[]
[]
[]
[]
[]
[]
[]
[]
[]
[]
[]
[]
[]
[]
[]
[]
[]
[]
[]
[]
[]
[]
[]
[]
[]
[]
[]
[]
[]
[]
[]
[]
[]
[]
[]
[]
[]
[]
[]
[]
[]
[]
[]
[]
[]
[]
[]
[]
[]
[]
[]
[]
[]
[]
[]
[]
[]
[]
[]
[]
[]
[]
[]
[]
[]
[]
[]
[]
[]
[]
[]
[]
[]
[]
[]
[]
[]
[]
[]
[]
[]
[]
[]
[]
[]
[]
[]
[]
[]
[]
[]
[]
[]
[]
[]
[]
[]
[]
[]
[]
[]
[]
[]
[]
[]
[]
[]
[]
[]
[]
[]
[]
[]
[]
[]
[]
[]
[]
[]
[]
[]
[]
[]
[]
[]
[]
[]
[]
[]
[]
[]
[]
[]
[]
[]
[]
[]
[]
[]
[]
[]
[]
[]
[]
[]
[]
[]
[]
[]
[]
[]
[]
[]
[]
[]
[]
[]
[]
[]
[]
[]
[]
[]
[]
[]
[]
[]
[]
[]
[]
[]
[]
[]
[]
[]
[]
[]
[]
[]
[]
[]
[]
[]
[]
[]
[]
[]
[]
[]
[]
[]
[]
[]
[]
[]
[]
[]
[]
[]
[]
[]
[]
[]
[]
[]
[]
[]
[]
[]
[]
[]
[]
[]
[]
[]
[]
[]
[]
[]
[]
[]
[]
[]
[]
[]
[]
[]
[]
[]
[]
[]
[]
[]
[]
[]
[]
[]
[]
[]
[]
[]
[]
[]
[]
[]
[]
[]
[]
[]
[]
[]
[]
[]
[]
[]
[]
[]
[]
[]
[]
[]
[]
[]
[]
[]
[]
[]
[]
[]
[]
[]
[]
[]
[]
[]
[]
[]
[]
[]
[]
[]
[]
[]
[]
[]
[]
[]
[]
[]
[]
[]
[]
[]
[]
[]
[]
[]
[]
[]
[]
[]
[]
[]
[]
[]
[]
[]
[]
[]
[]
[]
[]
[]
[]
[]
[]
[]
[]
[]
[]
[]
[]
[]
[]
[]
[]
[]
[]
[]
[]
[]
[]
[]
[]
[]
[]
[]
[]
[]
[]
[]
[]
[]
[]
[]
[]
[]
[]
[]
[]
[]
[]
[]
[]
[]
[]
[]
[]
[]
[]
[]
[]
[]
[]
[]
[]
[]
[]
[]
[]
[]
[]
[]
[]
[]
[]
[]
[]
[]
[]
[]
[]
[]
[]
[]
[]
[]
[]
[]
[]
[]
[]
[]
[]
[]
[]
[]
[]
[]
[]
[]
[]
[]
[]
[]
[]
[]
[]
[]
[]
[]
[]
[]
[]
[]
[]
[]
[]
[]
[]
[]
[]
[]
[]
[]
[]
[]
[]
[]
[]
[]
[]
[]
[]
[]
[]
[]
[]
[]
[]
[]
[]
[]
[]
[]
[]
[]
[]
[]
[]
[]
[]
[]
[]
[]
[]
[]
[]
[]
[]
[]
[]
[]
[]
[]
[]
[]
[]
[]
[]
[]
[]
[]
[]
[]
[]
[]
[]
[]
[]
[]
[]
[]
[]
[]
[]
[]
[]
[]
[]
[]
[]
[]
[]
[]
[]
[]
[]
[]
[]
[]
[]
[]
[]
[]
[]
[]
[]
[]
[]
[]
[]
[]
[]
[]
[]
[]
[]
[]
[]
[]
[]
[]
[]
[]
[]
[]
[]
[]
[]
[]
[]
[]
[]
[]
[]
[]
[]
[]
[]
[]
[]
[]
[]
[]
[]
[]
[]
[]
[]
[]
[]
[]
[]
[]
[]
[]
[]
[]
[]
[]
[]
[]
[]
[]
[]
[]
[]
[]
[]
[]
[]
[]
[]
[]
[]
[]
[]
[]
[]
[]
[]
[]
[]
[]
[]
[]
[]
[]
[]
[]
[]
[]
[]
[]
[]
[]
[]
[]
[]
[]
[]
[]
[]
[]
[]
[]
[]
[]
[]
[]
[]
[]
[]
[]
[]
[]
[]
[]
[]
[]
[]
[]
[]
[]
[]
[]
[]
[]
[]
[]
[]
[]
[]
[]
[]
[]
[]
[]
[]
[]
[]
[]
[]
[]
[]
[]
[]
[]
[]
[]
[]
[]
[]
[]
[]
[]
[]
[]
[]
[]
[]
[]
[]
[]
[]
[]
[]
[]
[]
[]
[]
[]
[]
[]
[]
[]
[]
[]
[]
[]
[]
[]
[]
[]
[]
[]
[]
[]
[]
[]
[]
[]
[]
[]
[]
[]
[]
[]
[]
[]
[]
[]
[]
[]
[]
[]
[]
[]
[]
[]
[]
[]
[]
[]
[]
[]
[]
[]
[]
[]
[]
[]
[]
[]
[]
[]
[]
[]
[]
[]
[]
[]
[]
[]
[]
[]
[]
[]
[]
[]
[]
[]
[]
[]
[]
[]
[]
[]
[]
[]
[]
[]
[]
[]
[]
[]
[]
[]
[]
[null,null,null,null,null,null,null,null,null,null,null,null,null,null,null,null,null,null,null,null,null,null,null,null,null,null,null,null,null,null,null,null,null,null,null,null,null,null,null,null,null,null,null,null,null,null,null,null,null,null,null,null,null,null,null,null,null,null,null,null,null,null,null,null,null,null,null,null,null,null,null,null,null,null,null,null,null,null,null,null,null,null,null,null,null,null,null,null,null,null,null,null,null,null,null,null,null,null,null,null,null,null,null,null,null,null,null,null,null,null,null,null,null,null,null,null,null,null,null,null,null,null,null,null,null,null,null,null,null,null,null,null,null,null,null,null,null,null,null,null,null,null,null,null,null,null,null,null,null,null,null,null,null,null,null,null,null,null,null,null,null,null,null,null,null,null,null,null,null,null,null,null,null,null,null,null,null,null,null,null,null,null,null,null,null,null,null,null,null,null,null,null,null,null,null,null,null,null,null,null,null,null,null,null,null,null,null,null,null,null,null,null,null,null,null,null,null,null,null,null,null,null,null,null,null,null,null,null,null,null,null,null,null,null,null,null,null,null,null,null,null,null,null,null,null,null,null,null,null,null,null,null,null,null,null,null,null,null,null,null,null,null,null,null,null,null,null,null,null,null,null,null,null,null,null,null,null,null,null,null,null,null,null,null,null,null,null,null,null,null,null,null,null,null,null,null,null,null,null,null,null,null,null,null,null,null,null,null,null,null,null,null,null,null,null,null,null,null,null,null,null,null,null,null,null,null,null,null,null,null,null,null,null,null,null,null,null,null,null,null,null,null,null,null,null,null,null,null,null,null,null,null,null,null,null,null,null,null,null,null,null,null,null,null,null,null,null,null,null,null,null,null,null,null,null,null,null,null,null,null,null,null,null,null,null,null,null,null,null,null,null,null,null,null,null,null,null,null,null,null,null,null,null,null,null,null,null,null,null,null,null,null,null,null,null,null,null,null,null,null,null,null,null,null,null,null,null,null,null,null,null,null,null,null,null,null,null,null,null,null,null,null,null,null,null,null,null,null,null,null,null,null,null,null,null,null,null,null,null,null,null,null,null,null,null,null,null,null,null,null,null,null,null,null,null,null,null,null,null,null,null,null,null,null,null,null,null,null,null,null,null,null,null,null,null,null,null,null,null,null,null,null,null,null,null,null,null,null,null,null,null,null,null,null,null,null,null,null,null,null,null,null,null,null,null,null,null,null,null,null,null,null,null,null,null,null,null,null,null,null,null,null,null,null,null,null,null,null,null,null,null,null,null,null,null,null,null,null,null,null,null,null,null,null,null,null,null,null,null,null,null,null,null,null,null,null,null,null,null,null,null,null,null,null,null,null,null,null,null,null,null,null,null,null,null,null,null,null,null,null,null,null,null,null,null,null,null,null,null,null,null,null,null,null,null,null,null,null,null,null,null,null,null,null,null,null,null,null,null,null,null,null,null,null,null,null,null,null,null,null,null,null,null,null,null,null,null,null,null,null,null,null,null,null,null,null,null,null,null,null,null,null,null,null,null,null,null,null,null,null,null,null,null,null,null,null,null,null,null,null,null,null,null,null,null,null,null,null,null,null,null,null,null,null,null,null,null,null,null,null,null,null,null,null,null,null,null,null,null,null,null,null,null,null,null,null,null,null,null,null,null,null,null,null,null,null,null,null,null,null,null,null,null,null,null,null,null,null,null,null,null,null,null,null,null,null,null,null,null,null,null,null,null,null,null,null,null,null,null,null,null,null,null,null,null,null,null,null,null,null,null,null,null,null,null,null,null,null,null,null,null,null,null,null,null,null,null,null,null,null,null,null,null,null,null,null,null,null,null,null,null,null,null,null,null,null,null,null,null,null,null,null,null,null,null,null,null,null,null,null,null,null,null,null,null,null,null,null,null,null,null,null,null,null,null,null,null,null,null,null,null,null,null,null,null,null,null,null,null,null,null,null,null,null,null,null,null,null,null,null,null,null,null,null,null,null,null,null,null,null,null,null,null,null,null,null,null,null,null,null,null,null,null,null,null,null,null,null,null,null,null,null,null,null,null,null,null,null,null,null,null,null,null,null,null,null,null,null,null,null,null,null,null,null,null,null,null,null,null,null,null,null,null,null,null,null,null,null,null,null,null,null,null,null,null,null,null,null,null,null,null,null,null,null,null,null,null,null,null,null,null,null,null,null,null,null,null,null,null,null,null,null,null,null,null,null,null,null,null,null,null,null,null,null,null,null,null,null,null,null,null,null,null,null,null,null,null,null,null,null,null,null,null,null,null,null,null,null,null,null,null,null,null,null,null,null,null,null,null,null,null,null,null,null,null,null,null,null,null,null,null,null,null,null,null,null,null,null,null,null,null,null,null,null,null,null,null,null,null,null,null,null,null,null,null,null,null,null,null,null,null,null,null,null,null,null,null,null,null,null,null,null,null,null,null,null,null,null,null,null,null,null,null,null,null,null,null,null,null,null,null,null,null,null,null,null,null,null,null,null,null,null,null,null,null,null,null,null,null,null,null,null,null,null,null,null,null,null,null,null,null,null,null,null,null,null,null,null,null,null,null,null,null,null,null,null,null,null,null,null,null,null,null,null,null,null,null,null,null,null,null,null,null,null,null,null,null,null,null,null,null,null,null,null,null,null,null,null,null,null,null,null,null,null,null,null,null,null,null,null,null,null,null,null,null,null,null,null,null,null,null,null,null,null,null,null,null,null,null,null,null,null,null,null,null,null,null,null,null,null,null,null,null,null,null,null,null,null,null,null,null,null,null,null,null,null,null,null,null,null,null,null,null,null,null,null,null,null,null,null,null,null,null,null,null,null,null,null,null,null,null,null,null,null,null,null,null,null,null,null,null,null,null,null,null,null,null,null,null,null,null,null,null,null,null,null,null,null,null,null,null,null,null,null,null,null,null,null,null,null,null,null,null,null,null,null,null,null,null,null,null,null,null,null,null,null,null,null,null,null,null,null,null,null,null,null,null,null,null,null,null,null,null,null,null,null,null,null,null,null,null,null,null,null,null,null,null,null,null,null,null,null,null,null,null,null,null,null,null,null,null,null,null,null,null,null,null,null,null,null,null,null,null,null,null,null,null,null,null,null,null,null,null,null,null,null,null,null,null,null,null,null,null,null,null,null,null,null,null,null,null,null,null,null,null,null,null,null,null,null,null,null,null,null,null,null,null,null,null,null,null,null,null,null,null,null,null,null,null,null,null,null,null,null,null,null,null,null,null,null,null,null,null,null,null,null,null,null,null,null,null,null,null,null,null,null,null,null,null,null,null,null,null,null,null,null,null,null,null,null,null,null,null,null,null,null,null,null,null,null,null,null,null,null,null,null,null,null,null,null,null,null,null,null,null,null,null,null,null,null,null,null,null,null,null,null,null,null,null,null,null,null,null,null,null,null,null,null,null,null,null,null,null,null,null,null,null,null,null,null,null,null,null,null,null,null,null,null,null,null,null,null,null,null,null,null,null,null,null,null,null,null,null,null,null,null,null,null,null,null,null,null,null,null,null,null,null,null,null,null,null,null,null,null,null,null,null,null,null,null,null,null,null,null,null,null,null,null,null,null,null,null,null,null,null,null,null,null,null,null,null,null,null,null,null,null,null,null,null,null,null,null,null,null,null,null,null,null,null,null,null,null,null,null,null,null,null,null,null,null,null,null,null,null,null,null,null,null,null,null,null,null,null,null,null,null,null,null,null,null,null,null,null,null,null,null,null,null,null,null,null,null,null,null,null,null,null,null,null,null,null,null,null,null,null,null,null,null,null,null,null,null,null,null,null,null,null,null,null,null,null,null,null,null,null,null,null,null,null,null,null,null,null,null,null,null,null,null,null,null,null,null,null,null,null,null,null,null,null,null,null,null,null,null,null,null,null,null,null,null,null,null,null,null,null,null,null,null,null,null,null,null,null,null,null,null,null,null,null,null,null,null,null,null,null,null,null,null,null,null,null,null,null,null,null,null,null,null,null,null,null,null,null,null,null,null,null,null,null,null,null,null,null,null,null,null,null,null,null,null,null,null,null,null,null,null,null,null,null,null,null,null,null,null,null,null,null,null,null,null,null,null,null,null,null,null,null,null,null,null,null,null,null,null,null,null,null,null,null,null,null,null,null,null,null,null,null,null,null,null,null,null,null,null,null,null,null,null,null,null,null,null,null,null,null,null,null,null,null,null,null,null,null,null,null,null,null,null,null,null,null,null,null,null,null,null,null,null,null,null,null,null,null,null,null,null,null,null,null,null,null,null,null,null,null,null,null,null,null,null,null,null,null,null,null,null,null,null,null,null,null,null,null,null,null,null,null,null,null,null,null,null,null,null,null,null,null,null,null,null,null,null,null,null,null,null,null,null,null,null,null,null,null,null,null,null,null,null,null,null,null,null,null,null,null,null,null,null,null,null,null,null,null,null,null,null,null,null,null,null,null,null,null,null,null,null,null,null,null,null,null,null,null,null,null,null,null,null,null,null,null,null,null,null,null,null,null,null,null,null,null,null,null,null,null,null,null,null,null,null,null,null,null,null,null,null,null,null,null,null,null,null,null,null,null,null,null,null,null,null,null,null,null,null,null,null,null,null,null,null,null,null,null,null,null,null,null,null,null,null,null,null,null,null,null,null,null,null,null,null,null,null,null,null,null,null,null,null,null,null,null,null,null,null,null,null,null,null,null,null,null,null,null,null,null,null,null,null,null,null,null,null,null,null,null,null,null,null,null,null,null,null,null,null,null,null,null,null,null,null,null,null,null,null,null,null,null,null,null,null,null,null,null,null,null,null,null,null,null,null,null,null,null,null,null,null,null,null,null,null,null,null,null,null,null,null,null,null,null,null,null,null,null,null,null,null,null,null,null,null,null,null,null,null,null,null,null,null,null,null,null,null,null,null,null,null,null,null,null,null,null,null,null,null,null,null,null,null,null,null,null,null,null,null,null,null,null,null,null,null,null,null,null,null,null,null,null,null,null,null,null,null,null,null,null,null,null,null,null,null,null,null,null,null,null,null,null,null,null,null,null,null,null,null,null,null,null,null,null,null,null,null,null,null,null,null,null,null,null,null,null,null,null,null,null,null,null,null,null,null,null,null,null,null,null,null,null,null,null,null,null,null,null,null,null,null,null,null,null,null,null,null,null,null,null,null,null,null,null,null,null,null,null,null,null,null,null,null,null,null,null,null,null,null,null,null,null,null,null,null,null,null,null,null,null,null,null,null,null,null,null,null,null,null,null,null,null,null,null,null,null,null,null,null,null,null,null,null,null,null,null,null,null,null,null,null,null,null,null,null,null,null,null,null,null,null,null,null,null,null,null,null,null,null,null,null,null,null,null,null,null,null,null,null,null,null,null,null,null,null,null,null,null,null,null,null,null,null,null,null,null,null,null,null,null,null,null,null,null,null,null,null,null,null,null,null,null,null,null,null,null,null,null,null,null,null,null,null,null,null,null,null,null,null,null,null,null,null,null,null,null,null,null,null,null,null,null,null,null,null,null,null,null,null,null,null,null,null,null,null,null,null,null,null,null,null,null,null,null,null,null,null,null,null,null,null,null,null,null,null,null,null,null,null,null,null,null,null,null,null,null,null,null,null,null,null,null,null,null,null,null,null,null,null,null,null,null,null,null,null,null,null,null,null,null,null,null,null,null,null,null,null,null,null,null,null,null,null,null,null,null,null,null,null,null,null,null,null,null,null,null,null,null,null,null,null,null,null,null,null,null,null,null,null,null,null,null,null,null,null,null,null,null,null,null,null,null,null,null,null,null,null,null,null,null,null,null,null,null,null,null,null,null,null,null,null,null,null,null,null,null,null,null,null,null,null,null,null,null,null,null,null,null,null,null,null,null,null,null,null,null,null,null,null,null,null,null,null,null,null,null,null,null,null,null,null,null,null,null,null,null,null,null,null,null,null,null,null,null,null,null,null,null,null,null,null,null,null,null,null,null,null,null,null,null,null,null,null,null,null,null,null,null,null,null,null,null,null,null,null,null,null,null,null,null,null,null,null,null,null,null,null,null,null,null,null,null,null,null,null,null,null,null,null,null,null,null,null,null,null,null,null,null,null,null,null,null,null,null,null,null,null,null,null,null,null,null,null,null,null,null,null,null,null,null,null,null,null,null,null,null,null,null,null,null,null,null,null,null,null,null,null,null,null,null,null,null,null,null,null,null,null,null,null,null,null,null,null,null,null,null,null,null,null,null,null,null,null,null,null,null,null,null,null,null,null,null,null,null,null,null,null,null,null,null,null,null,null,null,null,null,null,null,null,null,null,null,null,null,null,null,null,null,null,null,null,null,null,null,null,null,null,null,null,null,null,null,null,null,null,null,null,null,null,null,null,null,null,null,null,null,null,null,null,null,null,null,null,null,null,null,null,null,null,null,null,null,null,null,null,null,null,null,null,null,null,null,null,null,null,null,null,null,null,null,null,null,null,null,null,null,null,null,null,null,null,null,null,null,null,null,null,null,null,null,null,null,null,null,null,null,null,null,null,null,null,null,null,null,null,null,null,null,null,null,null,null,null,null,null,null,null,null,null,null,null,null,null,null,null,null,null,null,null,null,null,null,null,null,null,null,null,null,null,null,null,null,null,null,null,null,null,null,null,null,null,null,null,null,null,null,null,null,null,null,null,null,null,null,null,null,null,null,null,null,null,null,null,null,null,null,null,null,null,null,null,null,null,null,null,null,null,null,null,null,null,null,null,null,null,null,null,null,null,null,null,null,null,null,null,null,null,null,null,null,null,null,null,null,null,null,null,null,null,null,null,null,null,null,null,null,null,null,null,null,null,null,null,null,null,null,null,null,null,null,null,null,null,null,null,null,null,null,null,null,null,null,null,null,null,null,null,null,null,null,null,null,null,null,null,null,null,null,null,null,null,null,null,null,null,null,null,null,null,null,null,null,null,null,null,null,null,null,null,null,null,null,null,null,null,null,null,null,null,null,null,null,null,null,null,null,null,null,null,null,null,null,null,null,null,null,null,null,null,null,null,null,null,null,null,null,null,null,null,null,null,null,null,null,null,null,null,null,null,null,null,null,null,null,null,null,null,null,null,null,null,null,null,null,null,null,null,null,null,null,null,null,null,null,null,null,null,null,null,null,null,null,null,null,null,null,null,null,null,null,null,null,null,null,null,null,null,null,null,null,null,null,null,null,null,null,null,null,null,null,null,null,null,null,null,null,null,null,null,null,null,null,null,null,null,null,null,null,null,null,null,null,null,null,null,null,null,null,null,null,null,null,null,null,null,null,null,null,null,null,null,null,null,null,null,null,null,null,null,null,null,null,null,null,null,null,null,null,null,null,null,null,null,null,null,null,null,null,null,null,null,null,null,null,null,null,null,null,null,null,null,null,null,null,null,null,null,null,null,null,null,null,null,null,null,null,null,null,null,null,null,null,null,null,null,null,null,null,null,null,null,null,null,null,null,null,null,null,null,null,null,null,null,null,null,null,null,null,null,null,null,null,null,null,null,null,null,null,null,null,null,null,null,null,null,null,null,null,null,null,null,null,null,null,null,null,null,null,null,null,null,null,null,null,null,null,null,null,null,null,null,null,null,null,null,null,null,null,null,null,null,null,null,null,null,null,null,null,null,null,null,null,null,null,null,null,null,null,null,null,null,null,null,null,null,null,null,null,null,null,null,null,null,null,null,null,null,null,null,null,null,null,null,null,null,null,null,null,null,null,null,null,null,null,null,null,null,null,null,null,null,null,null,null,null,null,null,null,null,null,null,null,null,null,null,null,null,null,null,null,null,null,null,null,null,null,null,null,null,null,null,null,null,null,null,null,null,null,null,null,null,null,null,null,null,null,null,null,null,null,null,null,null,null,null,null,null,null,null,null,null,null,null,null,null,null,null,null,null,null,null,null,null,null,null,null,null,null,null,null,null,null,null,null,null,null,null,null,null,null,null,null,null,null,null,null,null,null,null,null,null,null,null,null,null,null,null,null,null,null,null,null,null,null,null,null,null,null,null,null,null,null,null,null,null,null,null,null,null,null,null,null,null,null,null,null,null,null,null,null,null,null,null,null,null,null,null,null,null,null,null,null,null,null,null,null,null,null,null,null,null,null,null,null,null,null,null,null,null,null,null,null,null,null,null,null,null,null,null,null,null,null,null,null,null,null,null,null,null,null,null,null,null,null,null,null,null,null,null,null,null,null,null,null,null,null,null,null,null,null,null,null,null,null,null,null,null,null,null,null,null,null,null,null,null,null,null,null,null,null,null,null,null,null,null,null,null,null,null,null,null,null,null,null,null,null,null,null,null,null,null,null,null,null,null,null,null,null,null,null,null,null,null,null,null,null,null,null,null,null,null,null,null,null,null,null,null,null,null,null,null,null,null,null,null,null,null,null,null,null,null,null,null,null,null,null,null,null,null,null,null,null,null,null,null,null,null,null,null,null,null,null,null,null,null,null,null,null,null,null,null,null,null,null,null,null,null,null,null,null,null,null,null,null,null,null,null,null,null,null,null,null,null,null,null,null,null,null,null,null,null,null,null,null,null,null,null,null,null,null,null,null,null,null,null,null,null,null,null,null,null,null,null,null,null,null,null,null,null,null,null,null,null,null,null,null,null,null,null,null,null,null,null,null,null,null,null,null,null,null,null,null,null,null,null,null,null,null,null,null,null,null,null,null,null,null,null,null,null,null,null,null,null,null,null,null,null,null,null,null,null,null,null,null,null,null,null,null,null,null,null,null,null,null,null,null,null,null,null,null,null,null,null,null,null,null,null,null,null,null,null,null,null,null,null,null,null,null,null,null,null,null,null,null,null,null,null,null,null,null,null,null,null,null,null,null,null,null,null,null,null,null,null,null,null,null,null,null,null,null,null,null,null,null,null,null,null,null,null,null,null,null,null,null,null,null,null,null,null,null,null,null,null,null,null,null,null,null,null,null,null,null,null,null,null,null,null,null,null,null,null,null,null,null,null,null,null,null,null,null,null,null,null,null,null,null,null,null,null,null,null,null,null,null,null,null,null,null,null,null,null,null,null,null,null,null,null,null,null,null,null,null,null,null,null,null,null,null,null,null,null,null,null,null,null,null,null,null,null,null,null,null,null,null,null,null,null,null,null,null,null,null,null,null,null,null,null,null,null,null,null,null,null,null,null,null,null,null,null,null,null,null,null,null,null,null,null,null,null,null,null,null,null,null,null,null,null,null,null,null,null,null,null,null,null,null,null,null,null,null,null,null,null,null,null,null,null,null,null,null,null,null,null,null,null,null,null,null,null,null,null,null,null,null,null,null,null,null,null,null,null,null,null,null,null,null,null,null,null,null,null,null,null,null,null,null,null,null,null,null,null,null,null,null,null,null,null,null,null,null,null,null,null,null,null,null,null,null,null,null,null,null,null,null,null,null,null,null,null,null,null,null,null,null,null,null,null,null,null,null,null,null,null,null,null,null,null,null,null,null,null,null,null,null,null,null,null,null,null,null,null,null,null,null,null,null,null,null,null,null,null,null,null,null,null,null,null,null,null,null,null,null,null,null,null,null,null,null,null,null,null,null,null,null,null,null,null,null,null,null,null,null,null,null,null,null,null,null,null,null,null,null,null,null,null,null,null,null,null,null,null,null,null,null,null,null,null,null,null,null,null,null,null,null,null,null,null,null,null,null,null,null,null,null,null,null,null,null,null,null,null,null,null,null,null,null,null,null,null,null,null,null,null,null,null,null,null,null,null,null,null,null,null,null,null,null,null,null,null,null,null,null,null,null,null,null,null,null,null,null,null,null,null,null,null,null,null,null,null,null,null,null,null,null,null,null,null,null,null,null,null,null,null,null,null,null,null,null,null,null,null,null,null,null,null,null,null,null,null,null,null,null,null,null,null,null,null,null,null,null,null,null,null,null,null,null,null,null,null,null,null,null,null,null,null,null,null,null,null,null,null,null,null,null,null,null,null,null,null,null,null,null,null,null,null,null,null,null,null,null,null,null,null,null,null,null,null,null,null,null,null,null,null,null,null,null,null,null,null,null,null,null,null,null,null,null,null,null,null,null,null,null,null,null,null,null,null,null,null,null,null,null,null,null,null,null,null,null,null,null,null,null,null,null,null,null,null,null,null,null,null,null,null,null,null,null,null,null,null,null,null,null,null,null,null,null,null,null,null,null,null,null,null,null,null,null,null,null,null,null,null,null,null,null,null,null,null,null,null,null,null,null,null,null,null,null,null,null,null,null,null,null,null,null,null,null,null,null,null,null,null,null,null,null,null,null,null,null,null,null,null,null,null,null,null,null,null,null,null,null,null,null,null,null,null,null,null,null,null,null,null,null,null,null,null,null,null,null,null,null,null,null,null,null,null,null,null,null,null,null,null,null,null,null,null,null,null,null,null,null,null,null,null,null,null,null,null,null,null,null,null,null,null,null,null,null,null,null,null,null,null,null,null,null,null,null,null,null,null,null,null,null,null,null,null,null,null,null,null,null,null,null,null,null,null,null,null,null,null,null,null,null,null,null,null,null,null,null,null,null,null,null,null,null,null,null,null,null,null,null,null,null,null,null,null,null,null,null,null,null,null,null,null,null,null,null,null,null,null,null,null,null,null,null,null,null,null,null,null,null,null,null,null,null,null,null,null,null,null,null,null,null,null,null,null,null,null,null,null,null,null,null,null,null,null,null,null,null,null,null,null,null,null,null,null,null,null,null,null,null,null,null,null,null,null,null,null,null,null,null,null,null,null,null,null,null,null,null,null,null,null,null,null,null,null,null,null,null,null,null,null,null,null,null,null,null,null,null,null,null,null,null,null,null,null,null,null,null,null,null,null,null,null,null,null,null,null,null,null,null,null,null,null,null,null,null,null,null,null,null,null,null,null,null,null,null,null,null,null,null,null,null,null,null,null,null,null,null,null,null,null,null,null,null,null,null,null,null,null,null,null,null,null,null,null,null,null,null,null,null,null,null,null,null,null,null,null,null,null,null,null,null,null,null,null,null,null,null,null,null,null,null,null,null,null,null,null,null,null,null,null,null,null,null,null,null,null,null,null,null,null,null,null,null,null,null,null,null,null,null,null,null,null,null,null,null,null,null,null,null,null,null,null,null,null,null,null,null,null,null,null,null,null,null,null,null,null,null,null,null,null,null,null,null,null,null,null,null,null,null,null,null,null,null,null,null,null,null,null,null,null,null,null,null,null,null,null,null,null,null,null,null,null,null,null,null,null,null,null,null,null,null,null,null,null,null,null,null,null,null,null,null,null,null,null,null,null,null,null,null,null,null,null,null,null,null,null,null,null,null,null,null,null,null,null,null,null,null,null,null,null,null,null,null,null,null,null,null,null,null,null,null,null,null,null,null,null,null,null,null,null,null,null,null,null,null,null,null,null,null,null,null,null,null,null,null,null,null,null,null,null,null,null,null,null,null,null,null,null,null,null,null,null,null,null,null,null,null,null,null,null,null,null,null,null,null,null,null,null,null,null,null,null,null,null,null,null,null,null,null,null,null,null,null,null,null,null,null,null,null,null,null,null,null,null,null,null,null,null,null,null,null,null,null,null,null,null,null,null,null,null,null,null,null,null,null,null,null,null,null,null,null,null,null,null,null,null,null,null,null,null,null,null,null,null,null,null,null,null,null,null,null,null,null,null,null,null,null,null,null,null,null,null,null,null,null,null,null,null,null,null,null,null,null,null,null,null,null,null,null,null,null,null,null,null,null,null,null,null,null,null,null,null,null,null,null,null,null,null,null,null,null,null,null,null,null,null,null,null,null,null,null,null,null,null,null,null,null,null,null,null,null,null,null,null,null,null,null,null,null,null,null,null,null,null,null,null,null,null,null,null,null,null,null,null,null,null,null,null,null,null,null,null,null,null,null,null,null,null,null,null,null,null,null,null,null,null,null,null,null,null,null,null,null,null,null,null,null,null,null,null,null,null,null,null,null,null,null,null,null,null,null,null,null,null,null,null,null,null,null,null,null,null,null,null,null,null,null,null,null,null,null,null,null,null,null,null,null,null,null,null,null,null,null,null,null,null,null,null,null,null,null,null,null,null,null,null,null,null,null,null,null,null,null,null,null,null,null,null,null,null,null,null,null,null,null,null,null,null,null,null,null,null,null,null,null,null,null,null,null,null,null,null,null,null,null,null,null,null,null,null,null,null,null,null,null,null,null,null,null,null,null,null,null,null,null,null,null,null,null,null,null,null,null,null,null,null,null,null,null,null,null,null,null,null,null,null,null,null,null,null,null,null,null,null,null,null,null,null,null,null,null,null,null,null,null,null,null,null,null,null,null,null,null,null,null,null,null,null,null,null,null,null,null,null,null,null,null,null,null,null,null,null,null,null,null,null,null,null,null,null,null,null,null,null,null,null,null,null,null,null,null,null,null,null,null,null,null,null,null,null,null,null,null,null,null,null,null,null,null,null,null,null,null,null,null,null,null,null,null,null,null,null,null,null,null,null,null,null,null,null,null,null,null,null,null,null,null,null,null,null,null,null,null,null,null,null,null,null,null,null,null,null,null,null,null,null,null,null,null,null,null,null,null,null,null,null,null,null,null,null,null,null,null,null,null,null,null,null,null,null,null,null,null,null,null,null,null,null,null,null,null,null,null,null,null,null,null,null,null,null,null,null,null,null,null,null,null,null,null,null,null,null,null,null,null,null,null,null,null,null,null,null,null,null,null,null,null,null,null,null,null,null,null,null,null,null,null,null,null,null,null,null,null,null,null,null,null,null,null,null,null,null,null,null,null,null,null,null,null,null,null,null,null,null,null,null,null,null,null,null,null,null,null,null,null,null,null,null,null,null,null,null,null,null,null,null,null,null,null,null,null,null,null,null,null,null,null,null,null,null,null,null,null,null,null,null,null,null,null,null,null,null,null,null,null,null,null,null,null,null,null,null,null,null,null,null,null,null,null,null,null,null,null,null,null,null,null,null,null,null,null,null,null,null,null,null,null,null,null,null,null,null,null,null,null,null,null,null,null,null,null,null,null,null,null,null,null,null,null,null,null,null,null,null,null,null,null,null,null,null,null,null,null,null,null,null,null,null,null,null,null,null,null,null,null,null,null,null,null,null,null,null,null,null,null,null,null,null,null,null,null,null,null,null,null,null,null,null,null,null,null,null,null,null,null,null,null,null,null,null,null,null,null,null,null,null,null,null,null,null,null,null,null,null,null,null,null,null,null,null,null,null,null,null,null,null,null,null,null,null,null,null,null,null,null,null,null,null,null,null,null,null,null,null,null,null,null,null,null,null,null,null,null,null,null,null,null,null,null,null,null,null,null,null,null,null,null,null,null,null,null,null,null,null,null,null,null,null,null,null,null,null,null,null,null,null,null,null,null,null,null,null,null,null,null,null,null,null,null,null,null,null,null,null,null,null,null,null,null,null,null,null,null,null,null,null,null,null,null,null,null,null,null,null,null,null,null,null,null,null,null,null,null,null,null,null,null,null,null,null,null,null,null,null,null,null,null,null,null,null,null,null,null,null,null,null,null,null,null,null,null,null,null,null,null,null,null,null,null,null,null,null,null,null,null,null,null,null,null,null,null,null,null,null,null,null,null,null,null,null,null,null,null,null,null,null,null,null,null,null,null,null,null,null,null,null,null,null,null,null,null,null,null,null,null,null,null,null,null,null,null,null,null,null,null,null,null,null,null,null,null,null,null,null,null,null,null,null,null,null,null,null,null,null,null,null,null,null,null,null,null,null,null,null,null,null,null,null,null,null,null,null,null,null,null,null,null,null,null,null,null,null,null,null,null,null,null,null,null,null,null,null,null,null,null,null,null,null,null,null,null,null,null,null,null,null,null,null,null,null,null,null,null,null,null,null,null,null,null,null,null,null,null,null,null,null,null,null,null,null,null,null,null,null,null,null,null,null,null,null,null,null,null,null,null,null,null,null,null,null,null,null,null,null,null,null,null,null,null,null,null,null,null,null,null,null,null,null,null,null,null,null,null,null,null,null,null,null,null,null,null,null,null,null,null,null,null,null,null,null,null,null,null,null,null,null,null,null,null,null,null,null,null,null,null,null,null,null,null,null,null,null,null,null,null,null,null,null,null,null,null,null,null,null,null,null,null,null,null,null,null,null,null,null,null,null,null,null,null,null,null,null,null,null,null,null,null,null,null,null,null,null,null,null,null,null,null,null,null,null,null,null,null,null,null,null,null,null,null,null,null,null,null,null,null,null,null,null,null,null,null,null,null,null,null,null,null,null,null,null,null,null,null,null,null,null,null,null,null,null,null,null,null,null,null,null,null,null,null,null,null,null,null,null,null,null,null,null,null,null,null,null,null,null,null,null,null,null,null,null,null,null,null,null,null,null,null,null,null,null,null,null,null,null,null,null,null,null,null,null,null,null,null,null,null,null,null,null,null,null,null,null,null,null,null,null,null,null,null,null,null,null,null,null,null,null,null,null,null,null,null,null,null,null,null,null,null,null,null,null,null,null,null,null,null,null,null,null,null,null,null,null,null,null,null,null,null,null,null,null,null,null,null,null,null,null,null,null,null,null,null,null,null,null,null,null,null,null,null,null,null,null,null,null,null,null,null,null,null,null,null,null,null,null,null,null,null,null,null,null,null,null,null,null,null,null,null,null,null,null,null,null,null,null,null,null,null,null,null,null,null,null,null,null,null,null,null,null,null,null,null,null,null,null,null,null,null,null,null,null,null,null,null,null,null,null,null,null,null,null,null,null,null,null,null,null,null,null,null,null,null,null,null,null,null,null,null,null,null,null,null,null,null,null,null,null,null,null,null,null,null,null,null,null,null,null,null,null,null,null,null,null,null,null,null,null,null,null,null,null,null,null,null,null,null,null,null,null,null,null,null,null,null,null,null,null,null,null,null,null,null,null,null,null,null,null,null,null,null,null,null,null,null,null,null,null,null,null,null,null,null,null,null,null,null,null,null,null,null,null,null,null,null,null,null,null,null,null,null,null,null,null,null,null,null,null,null,null,null,null,null,null,null,null,null,null,null,null,null,null,null,null,null,null,null,null,null,null,null,null,null,null,null,null,null,null,null,null,null,null,null,null,null,null,null,null,null,null,null,null,null,null,null,null,null,null,null,null,null,null,null,null,null,null,null,null,null,null,null,null,null,null,null,null,null,null,null,null,null,null,null,null,null,null,null,null,null,null,null,null,null,null,null,null,null,null,null,null,null,null,null,null,null,null,null,null,null,null,null,null,null,null,null,null,null,null,null,null,null,null,null,null,null,null,null,null,null,null,null,null,null,null,null,null,null,null,null,null,null,null,null,null,null,null,null,null,null,null,null,null,null,null,null,null,null,null,null,null,null,null,null,null,null,null,null,null,null,null,null,null,null,null,null,null,null,null,null,null,null,null,null,null,null,null,null,null,null,null,null,null,null,null,null,null,null,null,null,null,null,null,null,null,null,null,null,null,null,null,null,null,null,null,null,null,null,null,null,null,null,null,null,null,null,null,null,null,null,null,null,null,null,null,null,null,null,null,null,null,null,null,null,null,null,null,null,null,null,null,null,null,null,null,null,null,null,null,null,null,null,null,null,null,null,null,null,null,null,null,null,null,null,null,null,null,null,null,null,null,null,null,null,null,null,null,null,null,null,null,null,null,null,null,null,null,null,null,null,null,null,null,null,null,null,null,null,null,null,null,null,null,null,null,null,null,null,null,null,null,null,null,null,null,null,null,null,null,null,null,null,null,null,null,null,null,null,null,null,null,null,null,null,null,null,null,null,null,null,null,null,null,null,null,null,null,null,null,null,null,null,null,null,null,null,null,null,null,null,null,null,null,null,null,null,null,null,null,null,null,null,null,null,null,null,null,null,null,null,null,null,null,null,null,null,null,null,null,null,null,null,null,null,null,null,null,null,null,null,null,null,null,null,null,null,null,null,null,null,null,null,null,null,null,null,null,null,null,null,null,null,null,null,null,null,null,null,null,null,null,null,null,null,null,null,null,null,null,null,null,null,null,null,null,null,null,null,null,null,null,null,null,null,null,null,null,null,null,null,null,null,null,null,null,null,null,null,null,null,null,null,null,null,null,null,null,null,null,null,null,null,null,null,null,null,null,null,null,null,null,null,null,null,null,null,null,null,null,null,null,null,null,null,null,null,null,null,null,null,null,null,null,null,null,null,null,null,null,null,null,null,null,null,null,null,null,null,null,null,null,null,null,null,null,null,null,null,null,null,null,null,null,null,null,null,null,null,null,null,null,null,null,null,null,null,null,null,null,null,null,null,null,null,null,null,null,null,null,null,null,null,null,null,null,null,null,null,null,null,null,null,null,null,null,null,null,null,null,null,null,null,null,null,null,null,null,null,null,null,null,null,null,null,null,null,null,null,null,null,null,null,null,null,null,null,null,null,null,null,null,null,null,null,null,null,null,null,null,null,null,null,null,null,null,null,null,null,null,null,null,null,null,null,null,null,null,null,null,null,null,null,null,null,null,null,null,null,null,null,null,null,null,null,null,null,null,null,null,null,null,null,null,null,null,null,null,null,null,null,null,null,null,null,null,null,null,null,null,null,null,null,null,null,null,null,null,null,null,null,null,null,null,null,null,null,null,null,null,null,null,null,null,null,null,null,null,null,null,null,null,null,null,null,null,null,null,null,null,null,null,null,null,null,null,null,null,null,null,null,null,null,null,null,null,null,null,null,null,null,null,null,null,null,null,null,null,null,null,null,null,null,null,null,null,null,null,null,null,null,null,null,null,null,null,null,null,null,null,null,null,null,null,null,null,null,null,null,null,null,null,null,null,null,null,null,null,null,null,null,null,null,null,null,null,null,null,null,null,null,null,null,null,null,null,null,null,null,null,null,null,null,null,null,null,null,null,null,null,null,null,null,null,null,null,null,null,null,null,null,null,null,null,null,null,null,null,null,null,null,null,null,null,null,null,null,null,null,null,null,null,null,null,null,null,null,null,null,null,null,null,null,null,null,null,null,null,null,null,null,null,null,null,null,null,null,null,null,null,null,null,null,null,null,null,null,null,null,null,null,null,null,null,null,null,null,null,null,null,null,null,null,null,null,null,null,null,null,null,null,null,null,null,null,null,null,null,null,null,null,null,null,null,null,null,null,null,null,null,null,null,null,null,null,null,null,null,null,null,null,null,null,null,null,null,null,null,null,null,null,null,null,null,null,null,null,null,null,null,null,null,null,null,null,null,null,null,null,null,null,null,null,null,null,null,null,null,null,null,null,null,null,null,null,null,null,null,null,null,null,null,null,null,null,null,null,null,null,null,null,null,null,null,null,null,null,null,null,null,null,null,null,null,null,null,null,null,null,null,null,null,null,null,null,null,null,null,null,null,null,null,null,null,null,null,null,null,null,null,null,null,null,null,null,null,null,null,null,null,null,null,null,null,null,null,null,null,null,null,null,null,null,null,null,null,null,null,null,null,null,null,null,null,null,null,null,null,null,null,null,null,null,null,null,null,null,null,null,null,null,null,null,null,null,null,null,null,null,null,null,null,null,null,null,null,null,null,null,null,null,null,null,null,null,null,null,null,null,null,null,null,null,null,null,null,null,null,null,null,null,null,null,null,null,null,null,null,null,null,null,null,null,null,null,null,null,null,null,null,null,null,null,null,null,null,null,null,null,null,null,null,null,null,null,null,null,null,null,null,null,null,null,null,null,null,null,null,null,null,null,null,null,null,null,null,null,null,null,null,null,null,null,null,null,null,null,null,null,null,null,null,null,null,null,null,null,null,null,null,null,null,null,null,null,null,null,null,null,null,null,null,null,null,null,null,null,null,null,null,null,null,null,null,null,null,null,null,null,null,null,null,null,null,null,null,null,null,null,null,null,null,null,null,null,null,null,null,null,null,null,null,null,null,null,null,null,null,null,null,null,null,null,null,null,null,null,null,null,null,null,null,null,null,null,null,null,null,null,null,null,null,null,null,null,null,null,null,null,null,null,null,null,null,null,null,null,null,null,null,null,null,null,null,null,null,null,null,null,null,null,null,null,null,null,null,null,null,null,null,null,null,null,null,null,null,null,null,null,null,null,null,null,null,null,null,null,null,null,null,null,null,null,null,null,null,null,null,null,null,null,null,null,null,null,null,null,null,null,null,null,null,null,null,null,null,null,null,null,null,null,null,null,null,null,null,null,null,null,null,null,null,null,null,null,null,null,null,null,null,null,null,null,null,null,null,null,null,null,null,null,null,null,null,null,null,null,null,null,null,null,null,null,null,null,null,null,null,null,null,null,null,null,null,null,null,null,null,null,null,null,null,null,null,null,null,null,null,null,null,null,null,null,null,null,null,null,null,null,null,null,null,null,null,null,null,null,null,null,null,null,null,null,null,null,null,null,null,null,null,null,null,null,null,null,null,null,null,null,null,null,null,null,null,null,null,null,null,null,null,null,null,null,null,null,null,null,null,null,null,null,null,null,null,null,null,null,null,null,null,null,null,null,null,null,null,null,null,null,null,null,null,null,null,null,null,null,null,null,null,null,null,null,null,null,null,null,null,null,null,null,null,null,null,null,null,null,null,null,null,null,null,null,null,null,null,null,null,null,null,null,null,null,null,null,null,null,null,null,null,null,null,null,null,null,null,null,null,null,null,null,null,null,null,null,null,null,null,null,null,null,null,null,null,null,null,null,null,null,null,null,null,null,null,null,null,null,null,null,null,null,null,null,null,null,null,null,null,null,null,null,null,null,null,null,null,null,null,null,null,null,null,null,null,null,null,null,null,null,null,null,null,null,null,null,null,null,null,null,null,null,null,null,null,null,null,null,null,null,null,null,null,null,null,null,null,null,null,null,null,null,null,null,null,null,null,null,null,null,null,null,null,null,null,null,null,null,null,null,null,null,null,null,null,null,null,null,null,null,null,null,null,null,null,null,null,null,null,null,null,null,null,null,null,null,null,null,null,null,null,null,null,null,null,null,null,null,null,null,null,null,null,null,null,null,null,null,null,null,null,null,null,null,null,null,null,null,null,null,null,null,null,null,null,null,null,null,null,null,null,null,null,null,null,null,null,null,null,null,null,null,null,null,null,null,null,null,null,null,null,null,null,null,null,null,null,null,null,null,null,null,null,null,null,null,null,null,null,null,null,null,null,null,null,null,null,null,null,null,null,null,null,null,null,null,null,null,null,null,null,null,null,null,null,null,null,null,null,null,null,null,null,null,null,null,null,null,null,null,null,null,null,null,null,null,null,null,null,null,null,null,null,null,null,null,null,null,null,null,null,null,null,null,null,null,null,null,null,null,null,null,null,null,null,null,null,null,null,null,null,null,null,null,null,null,null,null,null,null,null,null,null,null,null,null,null,null,null,null,null,null,null,null,null,null,null,null,null,null,null,null,null,null,null,null,null,null,null,null,null,null,null,null,null,null,null,null,null,null,null,null,null,null,null,null,null,null,null,null,null,null,null,null,null,null,null,null,null,null,null,null,null,null,null,null,null,null,null,null,null,null,null,null,null,null,null,null,null,null,null,null,null,null,null,null,null,null,null,null,null,null,null,null,null,null,null,null,null,null,null,null,null,null,null,null,null,null,null,null,null,null,null,null,null,null,null,null,null,null,null,null,null,null,null,null,null,null,null,null,null,null,null,null,null,null,null,null,null,null,null,null,null,null,null,null,null,null,null,null,null,null,null,null,null,null,null,null,null,null,null,null,null,null,null,null,null,null,null,null,null,null,null,null,null,null,null,null,null,null,null,null,null,null,null,null,null,null,null,null,null,null,null,null,null,null,null,null,null,null,null,null,null,null,null,null,null,null,null,null,null,null,null,null,null,null,null,null,null,null,null,null,null,null,null,null,null,null,null,null,null,null,null,null,null,null,null,null,null,null,null,null,null,null,null,null,null,null,null,null,null,null,null,null,null,null,null,null,null,null,null,null,null,null,null,null,null,null,null,null,null,null,null,null,null,null,null,null,null,null,null,null,null,null,null,null,null,null,null,null,null,null,null,null,null,null,null,null,null,null,null,null,null,null,null,null,null,null,null,null,null,null,null,null,null,null,null,null,null,null,null,null,null,null,null,null,null,null,null,null,null,null,null,null,null,null,null,null,null,null,null,null,null,null,null,null,null,null,null,null,null,null,null,null,null,null,null,null,null,null,null,null,null,null,null,null,null,null,null,null,null,null,null,null,null,null,null,null,null,null,null,null,null,null,null,null,null,null,null,null,null,null,null,null,null,null,null,null,null,null,null,null,null,null,null,null,null,null,null,null,null,null,null,null,null,null,null,null,null,null,null,null,null,null,null,null,null,null,null,null,null,null,null,null,null,null,null,null,null,null,null,null,null,null,null,null,null,null,null,null,null,null,null,null,null,null,null,null,null,null,null,null,null,null,null,null,null,null,null,null,null,null,null,null,null,null,null,null,null,null,null,null,null,null,null,null,null,null,null,null,null,null,null,null,null,null,null,null,null,null,null,null,null,null,null,null,null,null,null,null,null,null,null,null,null,null,null,null,null,null,null,null,null,null,null,null,null,null,null,null,null,null,null,null,null,null,null,null,null,null,null,null,null,null,null,null,null,null,null,null,null,null,null,null,null,null,null,null,null,null,null,null,null,null,null,null,null,null,null,null,null,null,null,null,null,null,null,null,null,null,null,null,null,null,null,null,null,null,null,null,null,null,null,null,null,null,null,null,null,null,null,null,null,null,null,null,null,null,null,null,null,null,null,null,null,null,null,null,null,null,null,null,null,null,null,null,null,null,null,null,null,null,null,null,null,null,null,null,null,null,null,null,null,null,null,null,null,null,null,null,null,null,null,null,null,null,null,null,null,null,null,null,null,null,null,null,null,null,null,null,null,null,null,null,null,null,null,null,null,null,null,null,null,null,null,null,null,null,null,null,null,null,null,null,null,null,null,null,null,null,null,null,null,null,null,null,null,null,null,null,null,null,null,null,null,null,null,null,null,null,null,null,null,null,null,null,null,null,null,null,null,null,null,null,null,null,null,null,null,null,null,null,null,null,null,null,null,null,null,null,null,null,null,null,null,null,null,null,null,null,null,null,null,null,null,null,null,null,null,null,null,null,null,null,null,null,null,null,null,null,null,null,null,null,null,null,null,null,null,null,null,null,null,null,null,null,null,null,null,null,null,null,null,null,null,null,null,null,null,null,null,null,null,null,null,null,null,null,null,null,null,null,null,null,null,null,null,null,null,null,null,null,null,null,null,null,null,null,null,null,null,null,null,null,null,null,null,null,null,null,null,null,null,null,null,null,null,null,null,null,null,null,null,null,null,null,null,null,null,null,null,null,null,null,null,null,null,null,null,null,null,null,null,null,null,null,null,null,null,null,null,null,null,null,null,null,null,null,null,null,null,null,null,null,null,null,null,null,null,null,null,null,null,null,null,null,null,null,null,null,null,null,null,null,null,null,null,null,null,null,null,null,null,null,null,null,null,null,null,null,null,null,null,null,null,null,null,null,null,null,null,null,null,null,null,null,null,null,null,null,null,null,null,null,null,null,null,null,null,null,null,null,null,null,null,null,null,null,null,null,null,null,null,null,null,null,null,null,null,null,null,null,null,null,null,null,null,null,null,null,null,null,null,null,null,null,null,null,null,null,null,null,null,null,null,null,null,null,null,null,null,null,null,null,null,null,null,null,null,null,null,null,null,null,null,null,null,null,null,null,null,null,null,null,null,null,null,null,null,null,null,null,null,null,null,null,null,null,null,null,null,null,null,null,null,null,null,null,null,null,null,null,null,null,null,null,null,null,null,null,null,null,null,null,null,null,null,null,null,null,null,null,null,null,null,null,null,null,null,null,null,null,null,null,null,null,null,null,null,null,null,null,null,null,null,null,null,null,null,null,null,null,null,null,null,null,null,null,null,null,null,null,null,null,null,null,null,null,null,null,null,null,null,null,null,null,null,null,null,null,null,null,null,null,null,null,null,null,null,null,null,null,null,null,null,null,null,null,null,null,null,null,null,null,null,null,null,null,null,null,null,null,null,null,null,null,null,null,null,null,null,null,null,null,null,null,null,null,null,null,null,null,null,null,null,null,null,null,null,null,null,null,null,null,null,null,null,null,null,null,null,null,null,null,null,null,null,null,null,null,null,null,null,null,null,null,null,null,null,null,null,null,null,null,null,null,null,null,null,null,null,null,null,null,null,null,null,null,null,null,null,null,null,null,null,null,null,null,null,null,null,null,null,null,null,null,null,null,null,null,null,null,null,null,null,null,null,null,null,null,null,null,null,null,null,null,null,null,null,null,null,null,null,null,null,null,null,null,null,null,null,null,null,null,null,null,null,null,null,null,null,null,null,null,null,null,null,null,null,null,null,null,null,null,null,null,null,null,null,null,null,null,null,null,null,null,null,null,null,null,null,null,null,null,null,null,null,null,null,null,null,null,null,null,null,null,null,null,null,null,null,null,null,null,null,null,null,null,null,null,null,null,null,null,null,null,null,null,null,null,null,null,null,null,null,null,null,null,null,null,null,null,null,null,null,null,null,null,null,null,null,null,null,null,null,null,null,null,null,null,null,null,null,null,null,null,null,null,null,null,null,null,null,null,null,null,null,null,null,null,null,null,null,null,null,null,null,null,null,null,null,null,null,null,null,null,null,null,null,null,null,null,null,null,null,null,null,null,null,null,null,null,null,null,null,null,null,null,null,null,null,null,null,null,null,null,null,null,null,null,null,null,null,null,null,null,null,null,null,null,null,null,null,null,null,null,null,null,null,null,null,null,null,null,null,null,null,null,null,null,null,null,null,null,null,null,null,null,null,null,null,null,null,null,null,null,null,null,null,null,null,null,null,null,null,null,null,null,null,null,null,null,null,null,null,null,null,null,null,null,null,null,null,null,null,null,null,null,null,null,null,null,null,null,null,null,null,null,null,null,null,null,null,null,null,null,null,null,null,null,null,null,null,null,null,null,null,null,null,null,null,null,null,null,null,null,null,null,null,null,null,null,null,null,null,null,null,null,null,null,null,null,null,null,null,null,null,null,null,null,null,null,null,null,null,null,null,null,null,null,null,null,null,null,null,null,null,null,null,null,null,null,null,null,null,null,null,null,null,null,null,null,null,null,null,null,null,null,null,null,null,null,null,null,null,null,null,null,null,null,null,null,null,null,null,null,null,null,null,null,null,null,null,null,null,null,null,null,null,null,null,null,null,null,null,null,null,null,null,null,null,null,null,null,null,null,null,null,null,null,null,null,null,null,null,null,null,null,null,null,null,null,null,null,null,null,null,null,null,null,null,null,null,null,null,null,null,null,null,null,null,null,null,null,null,null,null,null,null,null,null,null,null,null,null,null,null,null,null,null,null,null,null,null,null,null,null,null,null,null,null,null,null,null,null,null,null,null,null,null,null,null,null,null,null,null,null,null,null,null,null,null,null,null,null,null,null,null,null,null,null,null,null,null,null,null,null,null,null,null,null,null,null,null,null,null,null,null,null,null,null,null,null,null,null,null,null,null,null,null,null,null,null,null,null,null,null,null,null,null,null,null,null,null,null,null,null,null,null,null,null,null,null,null,null,null,null,null,null,null,null,null,null,null,null,null,null,null,null,null,null,null,null,null,null,null,null,null,null,null,null,null,null,null,null,null,null,null,null,null,null,null,null,null,null,null,null,null,null,null,null,null,null,null,null,null,null,null,null,null,null,null,null,null,null,null,null,null,null,null,null,null,null,null,null,null,null,null,null,null,null,null,null,null,null,null,null,null,null,null,null,null,null,null,null,null,null,null,null,null,null,null,null,null,null,null,null,null,null,null,null,null,null,null,null,null,null,null,null,null,null,null,null,null,null,null,null,null,null,null,null,null,null,null,null,null,null,null,null,null,null,null,null,null,null,null,null,null,null,null,null,null,null,null,null,null,null,null,null,null,null,null,null,null,null,null,null,null,null,null,null,null,null,null,null,null,null,null,null,null,null,null,null,null,null,null,null,null,null,null,null,null,null,null,null,null,null,null,null,null,null,null,null,null,null,null,null,null,null,null,null,null,null,null,null,null,null,null,null,null,null,null,null,null,null,null,null,null,null,null,null,null,null,null,null,null,null,null,null,null,null,null,null,null,null,null,null,null,null,null,null,null,null,null,null,null,null,null,null,null,null,null,null,null,null,null,null,null,null,null,null,null,null,null,null,null,null,null,null,null,null,null,null,null,null,null,null,null,null,null,null,null,null,null,null,null,null,null,null,null,null,null,null,null,null,null,null,null,null,null,null,null,null,null,null,null,null,null,null,null,null,null,null,null,null,null,null,null,null,null,null,null,null,null,null,null,null,null,null,null,null,null,null,null,null,null,null,null,null,null,null,null,null,null,null,null,null,null,null,null,null,null,null,null,null,null,null,null,null,null,null,null,null,null,null,null,null,null,null,null,null,null,null,null,null,null,null,null,null,null,null,null,null,null,null,null,null,null,null,null,null,null,null,null,null,null,null,null,null,null,null,null,null,null,null,null,null,null,null,null,null,null,null,null,null,null,null,null,null,null,null,null,null,null,null,null,null,null,null,null,null,null,null,null,null,null,null,null,null,null,null,null,null,null,null,null,null,null,null,null,null,null,null,null,null,null,null,null,null,null,null,null,null,null,null,null,null,null,null,null,null,null,null,null,null,null,null,null,null,null,null,null,null,null,null,null,null,null,null,null,null,null,null,null,null,null,null,null,null,null,null,null,null,null,null,null,null,null,null,null,null,null,null,null,null,null,null,null,null,null,null,null,null,null,null,null,null,null,null,null,null,null,null,null,null,null,null,null,null,null,null,null,null,null,null,null,null,null,null,null,null,null,null,null,null,null,null,null,null,null,null,null,null,null,null,null,null,null,null,null,null,null,null,null,null,null,null,null,null,null,null,null,null,null,null,null,null,null,null,null,null,null,null,null,null,null,null,null,null,null,null,null,null,null,null,null,null,null,null,null,null,null,null,null,null,null,null,null,null,null,null,null,null,null,null,null,null,null,null,null,null,null,null,null,null,null,null,null,null,null,null,null,null,null,null,null,null,null,null,null,null,null,null,null,null,null,null,null,null,null,null,null,null,null,null,null,null,null,null,null,null,null,null,null,null,null,null,null,null,null,null,null,null,null,null,null,null,null,null,null,null,null,null,null,null,null,null,null,null,null,null,null,null,null,null,null,null,null,null,null,null,null,null,null,null,null,null,null,null,null,null,null,null,null,null,null,null,null,null,null,null,null,null,null,null,null,null,null,null,null,null,null,null,null,null,null,null,null,null,null,null,null,null,null,null,null,null,null,null,null,null,null,null,null,null,null,null,null,null,null,null,null,null,null,null,null,null,null,null,null,null,null,null,null,null,null,null,null,null,null,null,null,null,null,null,null,null,null,null,null,null,null,null,null,null,null,null,null,null,null,null,null,null,null,null,null,null,null,null,null,null,null,null,null,null,null,null,null,null,null,null,null,null,null,null,null,null,null,null,null,null,null,null,null,null,null,null,null,null,null,null,null,null,null,null,null,null,null,null,null,null,null,null,null,null,null,null,null,null,null,null,null,null,null,null,null,null,null,null,null,null,null,null,null,null,null,null,null,null,null,null,null,null,null,null,null,null,null,null,null,null,null,null,null,null,null,null,null,null,null,null,null,null,null,null,null,null,null,null,null,null,null,null,null,null,null,null,null,null,null,null,null,null,null,null,null,null,null,null,null,null,null,null,null,null,null,null,null,null,null,null,null,null,null,null,null,null,null,null,null,null,null,null,null,null,null,null,null,null,null,null,null,null,null,null,null,null,null,null,null,null,null,null,null,null,null,null,null,null,null,null,null,null,null,null,null,null,null,null,null,null,null,null,null,null,null,null,null,null,null,null,null,null,null,null,null,null,null,null,null,null,null,null,null,null,null,null,null,null,null,null,null,null,null,null,null,null,null,null,null,null,null,null,null,null,null,null,null,null,null,null,null,null,null,null,null,null,null,null,null,null,null,null,null,null,null,null,null,null,null,null,null,null,null,null,null,null,null,null,null,null,null,null,null,null,null,null,null,null,null,null,null,null,null,null,null,null,null,null,null,null,null,null,null,null,null,null,null,null,null,null,null,null,null,null,null,null,null,null,null,null,null,null,null,null,null,null,null,null,null,null,null,null,null,null,null,null,null,null,null,null,null,null,null,null,null,null,null,null,null,null,null,null,null,null,null,null,null,null,null,null,null,null,null,null,null,null,null,null,null,null,null,null,null,null,null,null,null,null,null,null,null,null,null,null,null,null,null,null,null,null,null,null,null,null,null,null,null,null,null,null,null,null,null,null,null,null,null,null,null,null,null,null,null,null,null,null,null,null,null,null,null,null,null,null,null,null,null,null,null,null,null,null,null,null,null,null,null,null,null,null,null,null,null,null,null,null,null,null,null,null,null,null,null,null,null,null,null,null,null,null,null,null,null,null,null,null,null,null,null,null,null,null,null,null,null,null,null,null,null,null,null,null,null,null,null,null,null,null,null,null,null,null,null,null,null,null,null,null,null,null,null,null,null,null,null,null,null,null,null,null,null,null,null,null,null,null,null,null,null,null,null,null,null,null,null,null,null,null,null,null,null,null,null,null,null,null,null,null,null,null,null,null,null,null,null,null,null,null,null,null,null,null,null,null,null,null,null,null,null,null,null,null,null,null,null,null,null,null,null,null,null,null,null,null,null,null,null,null,null,null,null,null,null,null,null,null,null,null,null,null,null,null,null,null,null,null,null,null,null,null,null,null,null,null,null,null,null,null,null,null,null,null,null,null,null,null,null,null,null,null,null,null,null,null,null,null,null,null,null,null,null,null,null,null,null,null,null,null,null,null,null,null,null,null,null,null,null,null,null,null,null,null,null,null,null,null,null,null,null,null,null,null,null,null,null,null,null,null,null,null,null,null,null,null,null,null,null,null,null,null,null,null,null,null,null,null,null,null,null,null,null,null,null,null,null,null,null,null,null,null,null,null,null,null,null,null,null,null,null,null,null,null,null,null,null,null,null,null,null,null,null,null,null,null,null,null,null,null,null,null,null,null,null,null,null,null,null,null,null,null,null,null,null,null,null,null,null,null,null,null,null,null,null,null,null,null,null,null,null,null,null,null,null,null,null,null,null,null,null,null,null,null,null,null,null,null,null,null,null,null,null,null,null,null,null,null,null,null,null,null,null,null,null,null,null,null,null,null,null,null,null,null,null,null,null,null,null,null,null,null,null,null,null,null,null,null,null,null,null,null,null,null,null,null,null,null,null,null,null,null,null,null,null,null,null,null,null,null,null,null,null,null,null,null,null,null,null,null,null,null,null,null,null,null,null,null,null,null,null,null,null,null,null,null,null,null,null,null,null,null,null,null,null,null,null,null,null,null,null,null,null,null,null,null,null,null,null,null,null,null,null,null,null,null,null,null,null,null,null,null,null,null,null,null,null,null,null,null,null,null,null,null,null,null,null,null,null,null,null,null,null,null,null,null,null,null,null,null,null,null,null,null,null,null,null,null,null,null,null,null,null,null,null,null,null,null,null,null,null,null,null,null,null,null,null,null,null,null,null,null,null,null,null,null,null,null,null,null,null,null,null,null,null,null,null,null,null,null,null,null,null,null,null,null,null,null,null,null,null,null,null,null,null,null,null,null,null,null,null,null,null,null,null,null,null,null,null,null,null,null,null,null,null,null,null,null,null,null,null,null,null,null,null,null,null,null,null,null,null,null,null,null,null,null,null,null,null,null,null,null,null,null,null,null,null,null,null,null,null,null,null,null,null,null,null,null,null,null,null,null,null,null,null,null,null,null,null,null,null,null,null,null,null,null,null,null,null,null,null,null,null,null,null,null,null,null,null,null,null,null,null,null,null,null,null,null,null,null,null,null,null,null,null,null,null,null,null,null,null,null,null,null,null,null,null,null,null,null,null,null,null,null,null,null,null,null,null,null,null,null,null,null,null,null,null,null,null,null,null,null,null,null,null,null,null,null,null,null,null,null,null,null,null,null,null,null,null,null,null,null,null,null,null,null,null,null,null,null,null,null,null,null,null,null,null,null,null,null,null,null,null,null,null,null,null,null,null,null,null,null,null,null,null,null,null,null,null,null,null,null,null,null,null,null,null,null,null,null,null,null,null,null,null,null,null,null,null,null,null,null,null,null,null,null,null,null,null,null,null,null,null,null,null,null,null,null,null,null,null,null,null,null,null,null,null,null,null,null,null,null,null,null,null,null,null,null,null,null,null,null,null,null,null,null,null,null,null,null,null,null,null,null,null,null,null,null,null,null,null,null,null,null,null,null,null,null,null,null,null,null,null,null,null,null,null,null,null,null,null,null,null,null,null,null,null,null,null,null,null,null,null,null,null,null,null,null,null,null,null,null,null,null,null,null,null,null,null,null,null,null,null,null,null,null,null,null,null,null,null,null,null,null,null,null,null,null,null,null,null,null,null,null,null,null,null,null,null,null,null,null,null,null,null,null,null,null,null,null,null,null,null,null,null,null,null,null,null,null,null,null,null,null,null,null,null,null,null,null,null,null,null,null,null,null,null,null,null,null,null,null,null,null,null,null,null,null,null,null,null,null,null,null,null,null,null,null,null,null,null,null,null,null,null,null,null,null,null,null,null,null,null,null,null,null,null,null,null,null,null,null,null,null,null,null,null,null,null,null,null,null,null,null,null,null,null,null,null,null,null,null,null,null,null,null,null,null,null,null,null,null,null,null,null,null,null,null,null,null,null,null,null,null,null,null,null,null,null,null,null,null,null,null,null,null,null,null,null,null,null,null,null,null,null,null,null,null,null,null,null,null,null,null,null,null,null,null,null,null,null,null,null,null,null,null,null,null,null,null,null,null,null,null,null,null,null,null,null,null,null,null,null,null,null,null,null,null,null,null,null,null,null,null,null,null,null,null,null,null,null,null,null,null,null,null,null,null,null,null,null,null,null,null,null,null,null,null,null,null,null,null,null,null,null,null,null,null,null,null,null,null,null,null,null,null,null,null,null,null,null,null,null,null,null,null,null,null,null,null,null,null,null,null,null,null,null,null,null,null,null,null,null,null,null,null,null,null,null,null,null,null,null,null,null,null,null,null,null,null,null,null,null,null,null,null,null,null,null,null,null,null,null,null,null,null,null,null,null,null,null,null,null,null,null,null,null,null,null,null,null,null,null,null,null,null,null,null,null,null,null,null,null,null,null,null,null,null,null,null,null,null,null,null,null,null,null,null,null,null,null,null,null,null,null,null,null,null,null,null,null,null,null,null,null,null,null,null,null,null,null,null,null,null,null,null,null,null,null,null,null,null,null,null,null,null,null,null,null,null,null,null,null,null,null,null,null,null,null,null,null,null,null,null,null,null,null,null,null,null,null,null,null,null,null,null,null,null,null,null,null,null,null,null,null,null,null,null,null,null,null,null,null,null,null,null,null,null,null,null,null,null,null,null,null,null,null,null,null,null,null,null,null,null,null,null,null,null,null,null,null,null,null,null,null,null,null,null,null,null,null,null,null,null,null,null,null,null,null,null,null,null,null,null,null,null,null,null,null,null,null,null,null,null,null,null,null,null,null,null,null,null,null,null,null,null,null,null,null,null,null,null,null,null,null,null,null,null,null,null,null,null,null,null,null,null,null,null,null,null,null,null,null,null,null,null,null,null,null,null,null,null,null,null,null,null,null,null,null,null,null,null,null,null,null,null,null,null,null,null,null,null,null,null,null,null,null,null,null,null,null,null,null,null,null,null,null,null,null,null,null,null,null,null,null,null,null,null,null,null,null,null,null,null,null,null,null,null,null,null,null,null,null,null,null,null,null,null,null,null,null,null,null,null,null,null,null,null,null,null,null,null,null,null,null,null,null,null,null,null,null,null,null,null,null,null,null,null,null,null,null,null,null,null,null,null,null,null,null,null,null,null,null,null,null,null,null,null,null,null,null,null,null,null,null,null,null,null,null,null,null,null,null,null,null,null,null,null,null,null,null,null,null,null,null,null,null,null,null,null,null,null,null,null,null,null,null,null,null,null,null,null,null,null,null,null,null,null,null,null,null,null,null,null,null,null,null,null,null,null,null,null,null,null,null,null,null,null,null,null,null,null,null,null,null,null,null,null,null,null,null,null,null,null,null,null,null,null,null,null,null,null,null,null,null,null,null,null,null,null,null,null,null,null,null,null,null,null,null,null,null,null,null,null,null,null,null,null,null,null,null,null,null,null,null,null,null,null,null,null,null,null,null,null,null,null,null,null,null,null,null,null,null,null,null,null,null,null,null,null,null,null,null,null,null,null,null,null,null,null,null,null,null,null,null,null,null,null,null,null,null,null,null,null,null,null,null,null,null,null,null,null,null,null,null,null,null,null,null,null,null,null,null,null,null,null,null,null,null,null,null,null,null,null,null,null,null,null,null,null,null,null,null,null,null,null,null,null,null,null,null,null,null,null,null,null,null,null,null,null,null,null,null,null,null,null,null,null,null,null,null,null,null,null,null,null,null,null,null,null,null,null,null,null,null,null,null,null,null,null,null,null,null,null,null,null,null,null,null,null,null,null,null,null,null,null,null,null,null,null,null,null,null,null,null,null,null,null,null,null,null,null,null,null,null,null,null,null,null,null,null,null,null,null,null,null,null,null,null,null,null,null,null,null,null,null,null,null,null,null,null,null,null,null,null,null,null,null,null,null,null,null,null,null,null,null,null,null,null,null,null,null,null,null,null,null,null,null,null,null,null,null,null,null,null,null,null,null,null,null,null,null,null,null,null,null,null,null,null,null,null,null,null,null,null,null,null,null,null,null,null,null,null,null,null,null,null,null,null,null,null,null,null,null,null,null,null,null,null,null,null,null,null,null,null,null,null,null,null,null,null,null,null,null,null,null,null,null,null,null,null,null,null,null,null,null,null,null,null,null,null,null,null,null,null,null,null,null,null,null,null,null,null,null,null,null,null,null,null,null,null,null,null,null,null,null,null,null,null,null,null,null,null,null,null,null,null,null,null,null,null,null,null,null,null,null,null,null,null,null,null,null,null,null,null,null,null,null,null,null,null,null,null,null,null,null,null,null,null,null,null,null,null,null,null,null,null,null,null,null,null,null,null,null,null,null,null,null,null,null,null,null,null,null,null,null,null,null,null,null,null,null,null,null,null,null,null,null,null,null,null,null,null,null,null,null,null,null,null,null,null,null,null,null,null,null,null,null,null,null,null,null,null,null,null,null,null,null,null,null,null,null,null,null,null,null,null,null,null,null,null,null,null,null,null,null,null,null,null,null,null,null,null,null,null,null,null,null,null,null,null,null,null,null,null,null,null,null,null,null,null,null,null,null,null,null,null,null,null,null,null,null,null,null,null,null,null,null,null,null,null,null,null,null,null,null,null,null,null,null,null,null,null,null,null,null,null,null,null,null,null,null,null,null,null,null,null,null,null,null,null,null,null,null,null,null,null,null,null,null,null,null,null,null,null,null,null,null,null,null,null,null,null,null,null,null,null,null,null,null,null,null,null,null,null,null,null,null,null,null,null,null,null,null,null,null,null,null,null,null,null,null,null,null,null,null,null,null,null,null,null,null,null,null,null,null,null,null,null,null,null,null,null,null,null,null,null,null,null,null,null,null,null,null,null,null,null,null,null,null,null,null,null,null,null,null,null,null,null,null,null,null,null,null,null,null,null,null,null,null,null,null,null,null,null,null,null,null,null,null,null,null,null,null,null,null,null,null,null,null,null,null,null,null,null,null,null,null,null,null,null,null,null,null,null,null,null,null,null,null,null,null,null,null,null,null,null,null,null,null,null,null,null,null,null,null,null,null,null,null,null,null,null,null,null,null,null,null,null,null,null,null,null,null,null,null,null,null,null,null,null,null,null,null,null,null,null,null,null,null,null,null,null,null,null,null,null,null,null,null,null,null,null,null,null,null,null,null,null,null,null,null,null,null,null,null,null,null,null,null,null,null,null,null,null,null,null,null,null,null,null,null,null,null,null,null,null,null,null,null,null,null,null,null,null,null,null,null,null,null,null,null,null,null,null,null,null,null,null,null,null,null,null,null,null,null,null,null,null,null,null,null,null,null,null,null,null,null,null,null,null,null,null,null,null,null,null,null,null,null,null,null,null,null,null,null,null,null,null,null,null,null,null,null,null,null,null,null,null,null,null,null,null,null,null,null,null,null,null,null,null,null,null,null,null,null,null,null,null,null,null,null,null,null,null,null,null,null,null,null,null,null,null,null,null,null,null,null,null,null,null,null,null,null,null,null,null,null,null,null,null,null,null,null,null,null,null,null,null,null,null,null,null,null,null,null,null,null,null,null,null,null,null,null,null,null,null,null,null,null,null,null,null,null,null,null,null,null,null,null,null,null,null,null,null,null,null,null,null,null,null,null,null,null,null,null,null,null,null,null,null,null,null,null,null,null,null,null,null,null,null,null,null,null,null,null,null,null,null,null,null,null,null,null,null,null,null,null,null,null,null,null,null,null,null,null,null,null,null,null,null,null,null,null,null,null,null,null,null,null,null,null,null,null,null,null,null,null,null,null,null,null,null,null,null,null,null,null,null,null,null,null,null,null,null,null,null,null,null,null,null,null,null,null,null,null,null,null,null,null,null,null,null,null,null,null,null,null,null,null,null,null,null,null,null,null,null,null,null,null,null,null,null,null,null,null,null,null,null,null,null,null,null,null,null,null,null,null,null,null,null,null,null,null,null,null,null,null,null,null,null,null,null,null,null,null,null,null,null,null,null,null,null,null,null,null,null,null,null,null,null,null,null,null,null,null,null,null,null,null,null,null,null,null,null,null,null,null,null,null,null,null,null,null,null,null,null,null,null,null,null,null,null,null,null,null,null,null,null,null,null,null,null,null,null,null,null,null,null,null,null,null,null,null,null,null,null,null,null,null,null,null,null,null,null,null,null,null,null,null,null,null,null,null,null,null,null,null,null,null,null,null,null,null,null,null,null,null,null,null,null,null,null,null,null,null,null,null,null,null,null,null,null,null,null,null,null,null,null,null,null,null,null,null,null,null,null,null,null,null,null,null,null,null,null,null,null,null,null,null,null,null,null,null,null,null,null,null,null,null,null,null,null,null,null,null,null,null,null,null,null,null,null,null,null,null,null,null,null,null,null,null,null,null,null,null,null,null,null,null,null,null,null,null,null,null,null,null,null,null,null,null,null,null,null,null,null,null,null,null,null,null,null,null,null,null,null,null,null,null,null,null,null,null,null,null,null,null,null,null,null,null,null,null,null,null,null,null,null,null,null,null,null,null,null,null,null,null,null,null,null,null,null,null,null,null,null,null,null,null,null,null,null,null,null,null,null,null,null,null,null,null,null,null,null,null,null,null,null,null,null,null,null,null,null,null,null,null,null,null,null,null,null,null,null,null,null,null,null,null,null,null,null,null,null,null,null,null,null,null,null,null,null,null,null,null,null,null,null,null,null,null,null,null,null,null,null,null,null,null,null,null,null,null,null,null,null,null,null,null,null,null,null,null,null,null,null,null,null,null,null,null,null,null,null,null,null,null,null,null,null,null,null,null,null,null,null,null,null,null,null,null,null,null,null,null,null,null,null,null,null,null,null,null,null,null,null,null,null,null,null,null,null,null,null,null,null,null,null,null,null,null,null,null,null,null,null,null,null,null,null,null,null,null,null,null,null,null,null,null,null,null,null,null,null,null,null,null,null,null,null,null,null,null,null,null,null,null,null,null,null,null,null,null,null,null,null,null,null,null,null,null,null,null,null,null,null,null,null,null,null,null,null,null,null,null,null,null,null,null,null,null,null,null,null,null,null,null,null,null,null,null,null,null,null,null,null,null,null,null,null,null,null,null,null,null,null,null,null,null,null,null,null,null,null,null,null,null,null,null,null,null,null,null,null,null,null,null,null,null,null,null,null,null,null,null,null,null,null,null,null,null,null,null,null,null,null,null,null,null,null,null,null,null,null,null,null,null,null,null,null,null,null,null,null,null,null,null,null,null,null,null,null,null,null,null,null,null,null,null,null,null,null,null,null,null,null,null,null,null,null,null,null,null,null,null,null,null,null,null,null,null,null,null,null,null,null,null,null,null,null,null,null,null,null,null,null,null,null,null,null,null,null,null,null,null,null,null,null,null,null,null,null,null,null,null,null,null,null,null,null,null,null,null,null,null,null,null,null,null,null,null,null,null,null,null,null,null,null,null,null,null,null,null,null,null,null,null,null,null,null,null,null,null,null,null,null,null,null,null,null,null,null,null,null,null,null,null,null,null,null,null,null,null,null,null,null,null,null,null,null,null,null,null,null,null,null,null,null,null,null,null,null,null,null,null,null,null,null,null,null,null,null,null,null,null,null,null,null,null,null,null,null,null,null,null,null,null,null,null,null,null,null,null,null,null,null,null,null,null,null,null,null,null,null,null,null,null,null,null,null,null,null,null,null,null,null,null,null,null,null,null,null,null,null,null,null,null,null,null,null,null,null,null,null,null,null,null,null,null,null,null,null,null,null,null,null,null,null,null,null,null,null,null,null,null,null,null,null,null,null,null,null,null,null,null,null,null,null,null,null,null,null,null,null,null,null,null,null,null,null,null,null,null,null,null,null,null,null,null,null,null,null,null,null,null,null,null,null,null,null,null,null,null,null,null,null,null,null,null,null,null,null,null,null,null,null,null,null,null,null,null,null,null,null,null,null,null,null,null,null,null,null,null,null,null,null,null,null,null,null,null,null,null,null,null,null,null,null,null,null,null,null,null,null,null,null,null,null,null,null,null,null,null,null,null,null,null,null,null,null,null,null,null,null,null,null,null,null,null,null,null,null,null,null,null,null,null,null,null,null,null,null,null,null,null,null,null,null,null,null,null,null,null,null,null,null,null,null,null,null,null,null,null,null,null,null,null,null,null,null,null,null,null,null,null,null,null,null,null,null,null,null,null,null,null,null,null,null,null,null,null,null,null,null,null,null,null,null,null,null,null,null,null,null,null,null,null,null,null,null,null,null,null,null,null,null,null,null,null,null,null,null,null,null,null,null,null,null,null,null,null,null,null,null,null,null,null,null,null,null,null,null,null,null,null,null,null,null,null,null,null,null,null,null,null,null,null,null,null,null,null,null,null,null,null,null,null,null,null,null,null,null,null,null,null,null,null,null,null,null,null,null,null,null,null,null,null,null,null,null,null,null,null,null,null,null,null,null,null,null,null,null,null,null,null,null,null,null,null,null,null,null,null,null,null,null,null,null,null,null,null,null,null,null,null,null,null,null,null,null,null,null,null,null,null,null,null,null,null,null,null,null,null,null,null,null,null,null,null,null,null,null,null,null,null,null,null,null,null,null,null,null,null,null,null,null,null,null,null,null,null,null,null,null,null,null,null,null,null,null,null,null,null,null,null,null,null,null,null,null,null,null,null,null,null,null,null,null,null,null,null,null,null,null,null,null,null,null,null,null,null,null,null,null,null,null,null,null,null,null,null,null,null,null,null,null,null,null,null,null,null,null,null,null,null,null,null,null,null,null,null,null,null,null,null,null,null,null,null,null,null,null,null,null,null,null,null,null,null,null,null,null,null,null,null,null,null,null,null,null,null,null,null,null,null,null,null,null,null,null,null,null,null,null,null,null,null,null,null,null,null,null,null,null,null,null,null,null,null,null,null,null,null,null,null,null,null,null,null,null,null,null,null,null,null,null,null,null,null,null,null,null,null,null,null,null,null,null,null,null,null,null,null,null,null,null,null,null,null,null,null,null,null,null,null,null,null,null,null,null,null,null,null,null,null,null,null,null,null,null,null,null,null,null,null,null,null,null,null,null,null,null,null,null,null,null,null,null,null,null,null,null,null,null,null,null,null,null,null,null,null,null,null,null,null,null,null,null,null,null,null,null,null,null,null,null,null,null,null,null,null,null,null,null,null,null,null,null,null,null,null,null,null,null,null,null,null,null,null,null,null,null,null,null,null,null,null,null,null,null,null,null,null,null,null,null,null,null,null,null,null,null,null,null,null,null,null,null,null,null,null,null,null,null,null,null,null,null,null,null,null,null,null,null,null,null,null,null,null,null,null,null,null,null,null,null,null,null,null,null,null,null,null,null,null,null,null,null,null,null,null,null,null,null,null,null,null,null,null,null,null,null,null,null,null,null,null,null,null,null,null,null,null,null,null,null,null,null,null,null,null,null,null,null,null,null,null,null,null,null,null,null,null,null,null,null,null,null,null,null,null,null,null,null,null,null,null,null,null,null,null,null,null,null,null,null,null,null,null,null,null,null,null,null,null,null,null,null,null,null,null,null,null,null,null,null,null,null,null,null,null,null,null,null,null,null,null,null,null,null,null,null,null,null,null,null,null,null,null,null,null,null,null,null,null,null,null,null,null,null,null,null,null,null,null,null,null,null,null,null,null,null,null,null,null,null,null,null,null,null,null,null,null,null,null,null,null,null,null,null,null,null,null,null,null,null,null,null,null,null,null,null,null,null,null,null,null,null,null,null,null,null,null,null,null,null,null,null,null,null,null,null,null,null,null,null,null,null,null,null,null,null,null,null,null,null,null,null,null,null,null,null,null,null,null,null,null,null,null,null,null,null,null,null,null,null,null,null,null,null,null,null,null,null,null,null,null,null,null,null,null,null,null,null,null,null,null,null,null,null,null,null,null,null,null,null,null,null,null,null,null,null,null,null,null,null,null,null,null,null,null,null,null,null,null,null,null,null,null,null,null,null,null,null,null,null,null,null,null,null,null,null,null,null,null,null,null,null,null,null,null,null,null,null,null,null,null,null,null,null,null,null,null,null,null,null,null,null,null,null,null,null,null,null,null,null,null,null,null,null,null,null,null,null,null,null,null,null,null,null,null,null,null,null,null,null,null,null,null,null,null,null,null,null,null,null,null,null,null,null,null,null,null,null,null,null,null,null,null,null,null,null,null,null,null,null,null,null,null,null,null,null,null,null,null,null,null,null,null,null,null,null,null,null,null,null,null,null,null,null,null,null,null,null,null,null,null,null,null,null,null,null,null,null,null,null,null,null,null,null,null,null,null,null,null,null,null,null,null,null,null,null,null,null,null,null,null,null,null,null,null,null,null,null,null,null,null,null,null,null,null,null,null,null,null,null,null,null,null,null,null,null,null,null,null,null,null,null,null,null,null,null,null,null,null,"This program was created by Leonardo Samson Leonen on June 19, 2019 (Winnipeg, Manitoba, Canada)"]